Local authority department which incurred the expenditure,Service Division,Cost Centre,Summary of the Purpose of Expenditure,Expense Type,Expense Code,Detailed Expense Type,Date of Transaction,Transaction Number,Beneficiary,Merchant Category Number,Merchant Category,Gross Amount,VAT,Net Amount
Regeneration Economy and Growth,Culture Sport and Tourism,030712,VCD - Project Delivery,Supplies and Services,384199,Miscellaneous Expenses,01-Jun-2022,000008241897960,FACEBK W6KADE3VC2,7311,Other hired and contracted services,13.89,0.00,13.89
Children and Young Peoples Services,Head of Childrens Social Care,085364,Children Looked After Team 1,Supplies and Services,342033,Computers and Communications,01-Jun-2022,000008241898250,Canva 03437-11943029,7333,Computer hardware,99.99,0.00,99.99
Children and Young Peoples Services,Head of Early Help Inclusion & Vulnerable Children.,085962,Aycliffe Secure - Durham,Transfer Payments,515002,Social Services Clients,01-Jun-2022,000008241898258,Nike GBP,5655,Pocket money,59.95,0.00,59.95
Regeneration Economy and Growth,Communications Management,060270,Communications and Marketing,Supplies and Services,336005,Advertising E336,01-Jun-2022,000008241898702,FACEBK TK6LZBF4B2,7311,Advertising other than for staff,323.50,0.00,323.50
Regeneration Economy and Growth,Communications Management,060270,Communications and Marketing,Supplies and Services,336005,Advertising E336,01-Jun-2022,000008241898706,LinkedIn 7912602124,7311,Advertising other than for staff,74.76,0.00,74.76
Regeneration Economy and Growth,Business Durham CL0850,030689,Inward Investment and Aftercare,Supplies and Services,336005,Advertising E336,01-Jun-2022,000008256893940,LinkedIn 7913938404,7311,Advertising other than for staff,2.55,0.00,2.55
Children and Young Peoples Services,Head of Education and Skills,071801,Selby Cottage Childcare Centre,Supplies and Services,324117,Provisions E324,01-Jun-2022,000008256893956,ONE STOP 3026,5411,Catering costs - provisions,4.40,0.00,4.40
Children and Young Peoples Services,Head of Education and Skills,071801,Selby Cottage Childcare Centre,Supplies and Services,324117,Provisions E324,01-Jun-2022,000008256893958,TESCO STORES 2278,5411,Catering costs - provisions,37.90,0.00,37.90
Children and Young Peoples Services,Head of Education and Skills,071801,Selby Cottage Childcare Centre,Supplies and Services,304403,Equipment and Materials,01-Jun-2022,000008256893960,AMZNMKTPLACE AMAZON.CO,5999,Other consumables,9.13,1.52,7.61
Children and Young Peoples Services,Head of Education and Skills,071801,Selby Cottage Childcare Centre,Supplies and Services,304403,Equipment and Materials,01-Jun-2022,000008256893962,AMZNMKTPLACE AMAZON.CO,5999,Other consumables,7.95,1.33,6.62
Children and Young Peoples Services,Head of Childrens Social Care,085501,Child Care Cases Legal Expenses,Supplies and Services,304403,Equipment and Materials,01-Jun-2022,000008256893990,STOCKTON BOROUGH COUNC,9399,Other consumables,11.00,0.00,11.00
Children and Young Peoples Services,Head of Childrens Social Care,085332,Middlestone Moor CU,Supplies and Services,324117,Provisions E324,01-Jun-2022,000008256894012,ASDA SUPERSTORE 4987,5411,Catering costs - provisions,93.37,0.00,93.37
Children and Young Peoples Services,Head of Childrens Social Care,085332,Middlestone Moor CU,Supplies and Services,324117,Provisions E324,01-Jun-2022,000008256894014,TESCO STORES 2371,5411,Catering costs - provisions,184.02,0.00,184.02
Children and Young Peoples Services,Head of Childrens Social Care,085341,High Etherley Satelite Home,Supplies and Services,324117,Provisions E324,01-Jun-2022,000008256894094,ICELAND,5411,Catering costs - provisions,43.75,0.00,43.75
Children and Young Peoples Services,Head of Childrens Social Care,085341,High Etherley Satelite Home,Supplies and Services,324117,Provisions E324,01-Jun-2022,000008256894096,TESCO STORES 6329,5411,Catering costs - provisions,216.78,0.00,216.78
Neighbourhoods and Climate Change,Environmental Services,031202,North Pennines - Peatscapes,Supplies and Services,338066,Services,01-Jun-2022,000008256894100,CUMBRIA COUNTY COU,7375,Professional fees 338066,87.60,0.00,87.60
Neighbourhoods and Climate Change,Environmental Services,010367,C&G - South Grounds Maintenance,Supplies and Services,304221,Equipment and Materials,01-Jun-2022,000008256894106,MKM PETERLEE,5211,Direct materials,58.22,0.00,58.22
Neighbourhoods and Climate Change,Environmental Services,010367,C&G - South Grounds Maintenance,Supplies and Services,304221,Equipment and Materials,01-Jun-2022,000008256894108,WWW.SCREWFIX.COM,5211,Direct materials,29.99,0.00,29.99
Regeneration Economy and Growth,Development and Housing,030776,LINKCD Flexible Fund,Supplies and Services,304259,Equipment and Materials,01-Jun-2022,000008256894110,WWW.DURHAM.GOV.UK,9399,Equipment-purchase and rental,11.00,0.00,11.00
Children and Young Peoples Services,Head of Early Help Inclusion & Vulnerable Children.,088105,W/Close and Willington Family Centre,Supplies and Services,324117,Provisions E324,01-Jun-2022,000008256894116,ASDA GROCERIES ONLINE,5411,Catering costs - provisions,67.70,0.00,67.70
Regeneration Economy and Growth,Culture Sport and Tourism,054233,Bishop Auckland Town Hall Library,Supplies and Services,324117,Provisions E324,01-Jun-2022,000008256894118,HERON FOODS,5411,Catering costs - provisions,7.39,0.00,7.39
Regeneration Economy and Growth,Development and Housing,030771,Durham Advance Flexible Fund,Supplies and Services,304259,Equipment and Materials,01-Jun-2022,000008256894120,GEN REGISTER OFFICE,9399,Equipment-purchase and rental,14.00,0.00,14.00
Regeneration Economy and Growth,Development and Housing,030771,Durham Advance Flexible Fund,Supplies and Services,304259,Equipment and Materials,01-Jun-2022,000008256894122,GEN REGISTER OFFICE,9399,Equipment-purchase and rental,14.00,0.00,14.00
Children and Young Peoples Services,Head of Early Help Inclusion & Vulnerable Children.,074000,National Supporting Families Programme,Transfer Payments,525033,Other,01-Jun-2022,000008256894138,AMZNMktplace,5999,Grants to individuals,296.10,49.40,246.70
Children and Young Peoples Services,Head of Early Help Inclusion & Vulnerable Children.,074000,National Supporting Families Programme,Transfer Payments,525033,Other,01-Jun-2022,000008256894140,ASDA GEORGE COM LEEDS,5411,Grants to individuals,62.95,10.49,52.46
Children and Young Peoples Services,Head of Childrens Social Care,085347,Solo Home The Manse,Supplies and Services,384999,Miscellaneous Expenses,01-Jun-2022,000008256894156,Amazon.co.uk 2G28Y05B4,5969,Other expenses,39.99,0.00,39.99
Children and Young Peoples Services,Head of Childrens Social Care,085347,Solo Home The Manse,Employees,040149,Recruitment Instruction and Training,01-Jun-2022,000008256894158,NATIONAL TRUST,8398,Training-all costs,6.35,0.00,6.35
Children and Young Peoples Services,Head of Childrens Social Care,085331,New Lea Childrens Home,Supplies and Services,324117,Provisions E324,01-Jun-2022,000008256894246,ASDA SUPERSTORE,5411,Catering costs - provisions,3.00,0.00,3.00
Children and Young Peoples Services,Head of Education and Skills,071732,Dean Bank Childcare,Supplies and Services,304403,Equipment and Materials,01-Jun-2022,000008256894258,AMZNMktplace,5999,Other consumables,64.13,0.00,64.13
Children and Young Peoples Services,Head of Education and Skills,071732,Dean Bank Childcare,Supplies and Services,304403,Equipment and Materials,01-Jun-2022,000008256894260,AMZNMktplace,5999,Other consumables,109.74,0.00,109.74
Children and Young Peoples Services,Head of Education and Skills,071732,Dean Bank Childcare,Supplies and Services,304403,Equipment and Materials,01-Jun-2022,000008256894262,AMZNMKTPLACE AMAZON.CO,5999,Other consumables,-7.96,0.00,-7.96
Resources BK0010,Legal & Democratic Services,069540,Charter Trust,Supplies and Services,328041,Clothing uniforms and laundry E328,01-Jun-2022,000008256894284,MR STEPHEN PARKIN T A,5611,Clothing uniforms and laundry,17.90,0.00,17.90
Resources BK0010,Legal & Democratic Services,067910,Democratic Representation 067910,Supplies and Services,384965,Miscellaneous Expenses,01-Jun-2022,000008256894286,Durham City Studios,5999,Civic Functions,20.00,0.00,20.00
Resources BK0010,Legal & Democratic Services,067910,Democratic Representation 067910,Supplies and Services,332047,Printing Stationery and Gen Off Exps,01-Jun-2022,000008256894288,RYMAN,5943,Stationery,29.98,5.00,24.98
Adult and Health Services,Head of Adults,052953,Training - Social Work,Supplies and Services,312009,Newspapers books and periodicals E312,01-Jun-2022,000008256894292,PAVILION PUBLISHING AN,5192,Newspapers books and periodicals,34.57,0.00,34.57
Neighbourhoods and Climate Change,Environmental Services,010301,C&G - North Grounds Maintenance,Supplies and Services,304403,Equipment and Materials,01-Jun-2022,000008256894324,BESCOL,5231,Other consumables,69.00,0.00,69.00
Neighbourhoods and Climate Change,Environmental Services,010301,C&G - North Grounds Maintenance,Supplies and Services,304221,Equipment and Materials,01-Jun-2022,000008256894326,SCREWFIX DIR LTD,5211,Direct materials,57.15,0.00,57.15
Regeneration Economy and Growth,Development and Housing,030771,Durham Advance Flexible Fund,Transport,235057,Public Transport,01-Jun-2022,000008256894328,WWW.GONORTHEAST.CO.UK,4111,Staff travelling,34.00,0.00,34.00
Regeneration Economy and Growth,Development and Housing,030771,Durham Advance Flexible Fund,Transport,235057,Public Transport,01-Jun-2022,000008256894330,WWW.GONORTHEAST.CO.UK,4111,Staff travelling,20.00,0.00,20.00
Children and Young Peoples Services,Head of Early Help Inclusion & Vulnerable Children.,085956,Lumley,Transfer Payments,515002,Social Services Clients,01-Jun-2022,000008256894338,HOUSE OF FRASER,5311,Pocket money,79.99,0.00,79.99
Children and Young Peoples Services,Head of Early Help Inclusion & Vulnerable Children.,085956,Lumley,Transfer Payments,515002,Social Services Clients,01-Jun-2022,000008256894340,WWW.CHICME.COM,5691,Pocket money,50.40,0.00,50.40
Children and Young Peoples Services,Head of Early Help Inclusion & Vulnerable Children.,085962,Aycliffe Secure - Durham,Transfer Payments,515002,Social Services Clients,01-Jun-2022,000008256894342,AMZNMktplace,5999,Pocket money,14.98,2.50,12.48
Children and Young Peoples Services,Head of Early Help Inclusion & Vulnerable Children.,085956,Lumley,Transfer Payments,515002,Social Services Clients,01-Jun-2022,000008256894344,SHEIN.COM,5399,Pocket money,18.73,0.00,18.73
Children and Young Peoples Services,Head of Early Help Inclusion & Vulnerable Children.,085956,Lumley,Transfer Payments,515002,Social Services Clients,01-Jun-2022,000008256894346,SHEIN.COM,5399,Pocket money,3.25,0.00,3.25
Children and Young Peoples Services,Head of Early Help Inclusion & Vulnerable Children.,085954,Walworth,Supplies and Services,384302,Miscellaneous Expenses,01-Jun-2022,000008256894348,ARGOS LTD,5310,Activity expenses,449.99,0.00,449.99
Children and Young Peoples Services,Head of Early Help Inclusion & Vulnerable Children.,085956,Lumley,Supplies and Services,384302,Miscellaneous Expenses,01-Jun-2022,000008256894350,AMZNMKTPLACE AMAZON.CO,5999,Activity expenses,27.98,4.66,23.32
Children and Young Peoples Services,Head of Education and Skills,070169,Durham SSP,Supplies and Services,304999,Equipment and Materials,01-Jun-2022,000008256894366,Microsoft Microsoft 36,5816,Misc equipment tools and materials,7.99,0.00,7.99
Children and Young Peoples Services,Head of Education and Skills,075035,DurhamDirections Re-engagement,Supplies and Services,364301,Grants to Voluntary Organisations,01-Jun-2022,000008256894368,WWW.GONORTHEAST.CO.UK,4111,Hardship,15.00,0.00,15.00
Resources BK0010,HR & Employee Services,010984,Training and Development,Supplies and Services,304403,Equipment and Materials,01-Jun-2022,000008256894370,TAHDAH VERIFIED,5734,Other consumables,164.00,0.00,164.00
Resources BK0010,HR & Employee Services,010984,Training and Development,Supplies and Services,304403,Equipment and Materials,01-Jun-2022,000008256894372,TAHDAH VERIFIED,5734,Other consumables,205.00,0.00,205.00
Resources BK0010,HR & Employee Services,010984,Training and Development,Supplies and Services,304403,Equipment and Materials,01-Jun-2022,000008256894374,TAHDAH VERIFIED,5734,Other consumables,145.00,0.00,145.00
Children and Young Peoples Services,Head of Early Help Inclusion & Vulnerable Children.,088104,BA/BC/Crook Intensive Family Support Team,Supplies and Services,304259,Equipment and Materials,01-Jun-2022,000008256894410,FIRSTAID4LESS.CO.UK,5999,Equipment-purchase and rental,48.42,0.00,48.42
Children and Young Peoples Services,Head of Childrens Social Care,085397,Regionalisation of Adoption,Supplies and Services,336005,Advertising E336,01-Jun-2022,000008256894412,EVERYTHING BRANDED,7311,Advertising other than for staff,249.00,0.00,249.00
Children and Young Peoples Services,Head of Childrens Social Care,085614,Families First West Durham,Supplies and Services,364301,Grants to Voluntary Organisations,01-Jun-2022,000008256894414,TRAVELODGE,3615,Hardship,105.04,0.00,105.04
Children and Young Peoples Services,Head of Childrens Social Care,085614,Families First West Durham,Supplies and Services,364301,Grants to Voluntary Organisations,01-Jun-2022,000008256894416,TRAVELODGE,3615,Hardship,133.60,0.00,133.60
Children and Young Peoples Services,Head of Early Help Inclusion & Vulnerable Children.,088109,Dean Bank and Tudhoe Family Centre,Supplies and Services,384302,Miscellaneous Expenses,01-Jun-2022,000008256894418,ARGOS LTD,5310,Activity expenses,99.98,0.00,99.98
Neighbourhoods and Climate Change,Environmental Services,010367,C&G - South Grounds Maintenance,Supplies and Services,304221,Equipment and Materials,01-Jun-2022,000008256894422,B & Q 1120,5200,Direct materials,30.00,0.00,30.00
Children and Young Peoples Services,Head of Childrens Social Care,085342,16 Hickstead Rise (previously 9 Cedar Ave),Supplies and Services,324117,Provisions E324,01-Jun-2022,000008256894424,WILKO RETAIL LIMITED,5399,Catering costs - provisions,12.00,0.00,12.00
Children and Young Peoples Services,Head of Childrens Social Care,085351,Framwellgate Moor CU,Supplies and Services,348037,Subsistence E348,01-Jun-2022,000008256894440,SWIRLS,5812,Subsistence,17.97,0.00,17.97
Children and Young Peoples Services,Head of Childrens Social Care,085351,Framwellgate Moor CU,Supplies and Services,324117,Provisions E324,01-Jun-2022,000008256894442,SAINSBURYS LOCAL,5411,Catering costs - provisions,8.78,0.00,8.78
Children and Young Peoples Services,Head of Education and Skills,071802,Louisa Cent Nursery,Supplies and Services,324117,Provisions E324,01-Jun-2022,000008256894444,ASDA SUPERSTORE,5411,Catering costs - provisions,2.25,0.00,2.25
Regeneration Economy and Growth,Corporate Property and Land,010814,Bldg Serv - R&M General,Supplies and Services,304259,Equipment and Materials,01-Jun-2022,000008256894446,AMZNMktplace,5999,Equipment-purchase and rental,215.28,35.88,179.40
Regeneration Economy and Growth,Corporate Property and Land,010814,Bldg Serv - R&M General,Supplies and Services,304259,Equipment and Materials,01-Jun-2022,000008256894446 - 1,AMZNMktplace,5999,Equipment-purchase and rental,0.12,,0.12
Children and Young Peoples Services,Head of Childrens Social Care,085331,New Lea Childrens Home,Supplies and Services,348037,Subsistence E348,01-Jun-2022,000008256894470,EposNow,5812,Subsistence,21.00,0.00,21.00
Children and Young Peoples Services,Head of Childrens Social Care,085331,New Lea Childrens Home,Supplies and Services,304999,Equipment and Materials,01-Jun-2022,000008256894472,HOME BARGAINS,5251,Misc equipment tools and materials,1.18,0.00,1.18
Children and Young Peoples Services,Head of Childrens Social Care,085331,New Lea Childrens Home,Supplies and Services,304999,Equipment and Materials,01-Jun-2022,000008256894474,HOME BARGAINS,5251,Misc equipment tools and materials,68.65,0.00,68.65
Children and Young Peoples Services,Head of Childrens Social Care,085331,New Lea Childrens Home,Employees,040149,Recruitment Instruction and Training,01-Jun-2022,000008256894476,THE SALVATION ARMY,8398,Training-all costs,11.00,0.00,11.00
Regeneration Economy and Growth,Culture Sport and Tourism,010593,Shildon Leisure Centre - General,Supplies and Services,304259,Equipment and Materials,01-Jun-2022,000008256894498,AMZNMktplace,5999,Equipment-purchase and rental,11.88,1.98,9.90
Regeneration Economy and Growth,Culture Sport and Tourism,010593,Shildon Leisure Centre - General,Supplies and Services,304259,Equipment and Materials,01-Jun-2022,000008256894498 - 1,AMZNMktplace,5999,Equipment-purchase and rental,0.06,,0.06
Children and Young Peoples Services,Head of Childrens Social Care,085331,New Lea Childrens Home,Supplies and Services,324117,Provisions E324,01-Jun-2022,000008256894514,LIDL GB BSHP AUCKLAND,5411,Catering costs - provisions,7.07,0.00,7.07
Children and Young Peoples Services,Head of Early Help Inclusion & Vulnerable Children.,085957,Secure Management,Supplies and Services,304403,Equipment and Materials,01-Jun-2022,000008256894552,AMZNMKTPLACE AMAZON.CO,5999,Other consumables,59.99,10.00,49.99
Children and Young Peoples Services,Head of Early Help Inclusion & Vulnerable Children.,085957,Secure Management,Third Party Payments,430100,Rendered by Private Contractors,01-Jun-2022,000008256894554,FAST KEY SERVICES LIMI,7399,Payments to sub-contractors,19.43,0.00,19.43
Resources BK0010,Procurement Sales & Business Services,065501,Business Support - Executive Support,Supplies and Services,312009,Newspapers books and periodicals E312,01-Jun-2022,000008256894562,DURHAM CITY NEWS,5994,Newspapers books and periodicals,68.70,0.00,68.70
Dedicated Schools Grant BG0015,DSG High Needs Block,079040,HNB Management and support,Supplies and Services,304403,Equipment and Materials,01-Jun-2022,000008256894564,AMZNMktplace,5999,Other consumables,91.56,15.26,76.30
Dedicated Schools Grant BG0015,DSG High Needs Block,079040,HNB Management and support,Supplies and Services,304403,Equipment and Materials,01-Jun-2022,000008256894564 - 1,AMZNMktplace,5999,Other consumables,0.12,,0.12
Children and Young Peoples Services,Head of Childrens Social Care,085379,Care Leavers Team 2,Transport,235057,Public Transport,01-Jun-2022,000008256894566,thetrainline.com,4112,Staff travelling,25.06,0.00,25.06
Children and Young Peoples Services,Head of Childrens Social Care,085379,Care Leavers Team 2,Transport,235057,Public Transport,01-Jun-2022,000008256894568,thetrainline.com,4112,Staff travelling,49.92,0.00,49.92
Regeneration Economy and Growth,Business Durham CL0850,030690,Durham Dales Centre - Tourist Information Centre,Supplies and Services,304337,Equipment and Materials,01-Jun-2022,000008256894570,ZELLY UK TRADING LIMIT,5137,Consumables/items for resale,320.64,0.00,320.64
Children and Young Peoples Services,Head of Early Help Inclusion & Vulnerable Children.,088100,Durham & CLS Intensive Family Support Team,Supplies and Services,304259,Equipment and Materials,01-Jun-2022,000008256894624,WWW.THEWORKS.CO.UK,5310,Equipment-purchase and rental,21.00,0.00,21.00
Children and Young Peoples Services,Head of Childrens Social Care,085332,Middlestone Moor CU,Supplies and Services,324117,Provisions E324,01-Jun-2022,000008256894648,ASDA SUPERSTORE 4987,5411,Catering costs - provisions,-12.50,0.00,-12.50
Children and Young Peoples Services,Head of Childrens Social Care,085332,Middlestone Moor CU,Supplies and Services,304403,Equipment and Materials,01-Jun-2022,000008256894670,CEX,5065,Other consumables,225.00,0.00,225.00
Children and Young Peoples Services,Head of Childrens Social Care,085332,Middlestone Moor CU,Transport,235057,Public Transport,01-Jun-2022,000008256894672,THE RIVERWALK CAR PARK,7523,Staff travelling,1.80,0.00,1.80
Children and Young Peoples Services,Head of Childrens Social Care,085332,Middlestone Moor CU,Supplies and Services,324117,Provisions E324,01-Jun-2022,000008256894674,ASDA SUPERSTORE 4987,5411,Catering costs - provisions,15.00,0.00,15.00
Resources BK0010,HR & Employee Services,066895,Advice & Guidance,Supplies and Services,372009,Subscriptions E372,01-Jun-2022,000008256894684,INDEED TEL+35312545907,7399,Subscriptions 372009,12.02,0.00,12.02
Children and Young Peoples Services,Head of Childrens Social Care,085551,Short Break Services-Park Hse Sher,Supplies and Services,348037,Subsistence E348,01-Jun-2022,000008256894720,VMS - ROADCHEF,5812,Subsistence,44.41,0.00,44.41
Children and Young Peoples Services,Head of Childrens Social Care,085551,Short Break Services-Park Hse Sher,Supplies and Services,348037,Subsistence E348,01-Jun-2022,000008256894722,MCDONALDS,5814,Subsistence,17.91,0.00,17.91
Children and Young Peoples Services,Head of Childrens Social Care,085551,Short Break Services-Park Hse Sher,Supplies and Services,348037,Subsistence E348,01-Jun-2022,000008256894724,MCDONALDS,5814,Subsistence,4.77,0.00,4.77
Regeneration Economy and Growth,Corporate Property and Land,010525,Catering - Green Lane,Supplies and Services,324117,Provisions E324,01-Jun-2022,000008257013534,FREEMAN CATERING BUTCH,5422,Catering costs - provisions,58.64,0.00,58.64
Regeneration Economy and Growth,Corporate Property and Land,010525,Catering - Green Lane,Supplies and Services,324117,Provisions E324,01-Jun-2022,000008257013536,JR HOLLAND FOODSERVICE,5499,Catering costs - provisions,-2.79,0.00,-2.79
Regeneration Economy and Growth,Corporate Property and Land,030691,Catering - Durham Dales Centre,Supplies and Services,324117,Provisions E324,01-Jun-2022,000008257013540,JR HOLLAND FOODSERVICE,5499,Catering costs - provisions,294.33,0.00,294.33
Regeneration Economy and Growth,Corporate Property and Land,030691,Catering - Durham Dales Centre,Supplies and Services,324117,Provisions E324,01-Jun-2022,000008257013542,JR HOLLAND FOODSERVICE,5499,Catering costs - provisions,28.74,0.00,28.74
Adult and Health Services,Head of Adults,055643,Hawthorn House LD Respite Unit,Supplies and Services,324117,Provisions E324,01-Jun-2022,000008257013548,FREEMAN CATERING BUTCH,5422,Catering costs - provisions,27.84,0.00,27.84
Adult and Health Services,Head of Adults,055643,Hawthorn House LD Respite Unit,Supplies and Services,324117,Provisions E324,01-Jun-2022,000008257013550,JR HOLLAND FOODSERVICE,5499,Catering costs - provisions,13.29,0.00,13.29
Adult and Health Services,Head of Adults,055643,Hawthorn House LD Respite Unit,Supplies and Services,324117,Provisions E324,01-Jun-2022,000008257013552,JR HOLLAND FOODSERVICE,5499,Catering costs - provisions,16.21,0.00,16.21
Regeneration Economy and Growth,Corporate Property and Land,021235,Catering - Wharton Park,Supplies and Services,324117,Provisions E324,01-Jun-2022,000008257013578,JR HOLLAND FOODSERVICE,5499,Catering costs - provisions,39.94,0.00,39.94
Regeneration Economy and Growth,Culture Sport and Tourism,011263,Louisa Centre 011263,Supplies and Services,324117,Provisions E324,01-Jun-2022,000008257013580,JR HOLLAND FOODSERVICE,5499,Catering costs - provisions,16.40,0.00,16.40
Regeneration Economy and Growth,Corporate Property and Land,021242,Catering - County Hall,Supplies and Services,324117,Provisions E324,01-Jun-2022,000008257013584,JR HOLLAND FOODSERVICE,5499,Catering costs - provisions,15.84,0.00,15.84
Regeneration Economy and Growth,Corporate Property and Land,021324,Catering - Meadowfield,Supplies and Services,324117,Provisions E324,01-Jun-2022,000008257013590,JR HOLLAND FOODSERVICE,5499,Catering costs - provisions,7.72,0.00,7.72
Regeneration Economy and Growth,Corporate Property and Land,021324,Catering - Meadowfield,Supplies and Services,324117,Provisions E324,01-Jun-2022,000008257013592,JR HOLLAND FOODSERVICE,5499,Catering costs - provisions,85.52,0.00,85.52
Regeneration Economy and Growth,Development and Housing,030771,Durham Advance Flexible Fund,Supplies and Services,304259,Equipment and Materials,01-Jun-2022,000010113170933,GEN REGISTER OFFICE,9399,Equipment-purchase and rental,-7.50,0.00,-7.50
Regeneration Economy and Growth,Business Durham CL0850,030689,Inward Investment and Aftercare,Supplies and Services,304403,Equipment and Materials,02-Jun-2022,000008256893942,ADOBE CREATIVE CLOUD,5734,Other consumables,51.98,8.66,43.32
Regeneration Economy and Growth,Business Durham CL0850,030689,Inward Investment and Aftercare,Supplies and Services,336005,Advertising E336,02-Jun-2022,000008256893944,Google ADS6853017821,7311,Advertising other than for staff,43.51,0.00,43.51
Regeneration Economy and Growth,Business Durham CL0850,030689,Inward Investment and Aftercare,Supplies and Services,342222,Computers and Communications,02-Jun-2022,000008256893946,FASTHOSTS,4816,Comp hardware purch-network servers,63.00,0.00,63.00
Regeneration Economy and Growth,Business Durham CL0850,030689,Inward Investment and Aftercare,Supplies and Services,342222,Computers and Communications,02-Jun-2022,000008256893948,FASTHOSTS,4816,Comp hardware purch-network servers,75.06,0.00,75.06
Regeneration Economy and Growth,Culture Sport and Tourism,030712,VCD - Project Delivery,Supplies and Services,384199,Miscellaneous Expenses,02-Jun-2022,000008256894006,MAILCHIMP MISC,5968,Other hired and contracted services,283.11,0.00,283.11
Children and Young Peoples Services,Head of Childrens Social Care,085331,New Lea Childrens Home,Supplies and Services,324117,Provisions E324,02-Jun-2022,000008256894112,ASDA SUPERSTORE,5411,Catering costs - provisions,18.00,0.00,18.00
Children and Young Peoples Services,Head of Childrens Social Care,085511,Emergency Duty Team,Supplies and Services,352001,Conference Expenses,02-Jun-2022,000008256894136,TRAVELODGE,3615,Conferencesseminars fees etc,351.85,0.00,351.85
Children and Young Peoples Services,Head of Early Help Inclusion & Vulnerable Children.,085962,Aycliffe Secure - Durham,Supplies and Services,324117,Provisions E324,02-Jun-2022,000008256894294,TESCO STORES 2916,5411,Catering costs - provisions,64.70,0.00,64.70
Adult and Health Services,Head of Adults,055643,Hawthorn House LD Respite Unit,Supplies and Services,324117,Provisions E324,02-Jun-2022,000008256894430,SAINSBURYS S/MKTS,5411,Catering costs - provisions,13.90,0.00,13.90
Children and Young Peoples Services,Head of Childrens Social Care,085331,New Lea Childrens Home,Supplies and Services,324117,Provisions E324,02-Jun-2022,000008256894478,ASDA GROCERIES ONLINE,5411,Catering costs - provisions,107.81,0.00,107.81
Children and Young Peoples Services,Head of Childrens Social Care,085331,New Lea Childrens Home,Supplies and Services,304403,Equipment and Materials,02-Jun-2022,000008256894516,CEX BISHOP AUCKLAND,5065,Other consumables,6.00,0.00,6.00
Children and Young Peoples Services,Head of Childrens Social Care,085331,New Lea Childrens Home,Supplies and Services,324117,Provisions E324,02-Jun-2022,000008256894518,WILKO RETAIL LIMITED,5399,Catering costs - provisions,4.05,0.00,4.05
Children and Young Peoples Services,Head of Childrens Social Care,085331,New Lea Childrens Home,Supplies and Services,328041,Clothing uniforms and laundry E328,02-Jun-2022,000008256894520,NEXT RETAIL LTD,5651,Clothing uniforms and laundry,22.00,0.00,22.00
Children and Young Peoples Services,Head of Childrens Social Care,085331,New Lea Childrens Home,Supplies and Services,328041,Clothing uniforms and laundry E328,02-Jun-2022,000008256894522,MOUNTAIN WAREHOUSE,5691,Clothing uniforms and laundry,31.19,0.00,31.19
Children and Young Peoples Services,Head of Childrens Social Care,085331,New Lea Childrens Home,Supplies and Services,348037,Subsistence E348,02-Jun-2022,000008256894524,MCDONALDS 1514,5814,Subsistence,17.21,0.00,17.21
Children and Young Peoples Services,Head of Childrens Social Care,085331,New Lea Childrens Home,Supplies and Services,304259,Equipment and Materials,02-Jun-2022,000008256894526,SPORTSDIRECT 264,5941,Equipment-purchase and rental,18.15,0.00,18.15
Children and Young Peoples Services,Head of Childrens Social Care,085331,New Lea Childrens Home,Supplies and Services,304259,Equipment and Materials,02-Jun-2022,000008256894528,SPORTSDIRECT 368,5941,Equipment-purchase and rental,85.97,0.00,85.97
Children and Young Peoples Services,Head of Childrens Social Care,085342,16 Hickstead Rise (previously 9 Cedar Ave),Supplies and Services,304403,Equipment and Materials,02-Jun-2022,000008256894534,AMZNMktplace,5999,Other consumables,21.95,0.00,21.95
Children and Young Peoples Services,Head of Childrens Social Care,085347,Solo Home The Manse,Supplies and Services,324117,Provisions E324,02-Jun-2022,000008256894574,BRITISH BEEF JERKY LTD,5499,Catering costs - provisions,10.60,0.00,10.60
Children and Young Peoples Services,Head of Childrens Social Care,085347,Solo Home The Manse,Supplies and Services,384199,Miscellaneous Expenses,02-Jun-2022,000008256894576,NORTHUMBERLAND COUNTRY,7998,Other hired and contracted services,43.50,0.00,43.50
Children and Young Peoples Services,Head of Childrens Social Care,085358,Orchard House Sacriston Solo Home,Supplies and Services,384999,Miscellaneous Expenses,02-Jun-2022,000008256894658,Amazon.co.uk 2G7HS88Y4,5969,Other expenses,12.99,0.00,12.99
Children and Young Peoples Services,Head of Childrens Social Care,085358,Orchard House Sacriston Solo Home,Supplies and Services,384999,Miscellaneous Expenses,02-Jun-2022,000008256894660,Amazon.co.uk 2G51Q8QJ4,5969,Other expenses,6.45,0.00,6.45
Children and Young Peoples Services,Head of Childrens Social Care,085332,Middlestone Moor CU,Supplies and Services,344033,Telephones,02-Jun-2022,000008256894676,THREE,4814,Telephones general-all costs,15.00,0.00,15.00
Children and Young Peoples Services,Head of Childrens Social Care,085334,West Rainton Satelite Home,Supplies and Services,324117,Provisions E324,02-Jun-2022,000008256894678,TESCO STORES 2371,5411,Catering costs - provisions,74.76,0.00,74.76
Regeneration Economy and Growth,Communications Management,060270,Communications and Marketing,Supplies and Services,336005,Advertising E336,02-Jun-2022,000008256894686,Google ADS8772529636,7311,Advertising other than for staff,89.22,0.00,89.22
Neighbourhoods and Climate Change,Environmental Services,011060,C&G - Hardwick Park Catering,Supplies and Services,324117,Provisions E324,02-Jun-2022,000008257013556,JR HOLLAND FOODSERVICE,5499,Catering costs - provisions,97.27,0.00,97.27
Regeneration Economy and Growth,Corporate Property and Land,021235,Catering - Wharton Park,Supplies and Services,324117,Provisions E324,02-Jun-2022,000008264071620,BATLEYS PERTH,5300,Catering costs - provisions,281.70,46.95,234.75
Regeneration Economy and Growth,Corporate Property and Land,021235,Catering - Wharton Park,Supplies and Services,324117,Provisions E324,02-Jun-2022,000008264071620 - 1,BATLEYS PERTH,5300,Catering costs - provisions,31.42,,31.42
Neighbourhoods and Climate Change,Environmental Services,011060,C&G - Hardwick Park Catering,Supplies and Services,324117,Provisions E324,02-Jun-2022,000008308432234,BATLEYS PERTH,5300,Catering costs - provisions,144.78,24.13,120.65
Neighbourhoods and Climate Change,Environmental Services,011060,C&G - Hardwick Park Catering,Supplies and Services,324117,Provisions E324,02-Jun-2022,000008308432234 - 1,BATLEYS PERTH,5300,Catering costs - provisions,237.34,,237.34
Neighbourhoods and Climate Change,Environmental Services,011060,C&G - Hardwick Park Catering,Supplies and Services,324117,Provisions E324,02-Jun-2022,000008308432240,BATLEYS PERTH,5300,Catering costs - provisions,187.14,31.19,155.95
Neighbourhoods and Climate Change,Environmental Services,011060,C&G - Hardwick Park Catering,Supplies and Services,324117,Provisions E324,02-Jun-2022,000008308432240 - 1,BATLEYS PERTH,5300,Catering costs - provisions,41.75,,41.75
Neighbourhoods and Climate Change,Environmental Services,011060,C&G - Hardwick Park Catering,Supplies and Services,324117,Provisions E324,02-Jun-2022,000008308432246,BATLEYS PERTH,5300,Catering costs - provisions,84.31,14.06,70.25
Children and Young Peoples Services,Head of Education and Skills,071801,Selby Cottage Childcare Centre,Supplies and Services,304403,Equipment and Materials,03-Jun-2022,000008256893964,AMZNMKTPLACE AMAZON.CO,5999,Other consumables,7.97,1.33,6.64
Regeneration Economy and Growth,Culture Sport and Tourism,054814,Gala Theatre - Cinema,Supplies and Services,338047,Services,03-Jun-2022,000008256894002,MWK IT SOLUTIONS,5734,Direct production costs,42.00,0.00,42.00
Regeneration Economy and Growth,Culture Sport and Tourism,030705,Visit County Durham 030705,Supplies and Services,342033,Computers and Communications,03-Jun-2022,000008256894008,FASTHOSTS,4816,Computer hardware,7.54,1.26,6.28
Children and Young Peoples Services,Head of Education and Skills,054640,Durham Learning Resources 054640,Supplies and Services,304403,Equipment and Materials,03-Jun-2022,000008256894102,AMZNMktplace,5999,Other consumables,6.38,1.06,5.32
Children and Young Peoples Services,Head of Childrens Social Care,085347,Solo Home The Manse,Supplies and Services,324117,Provisions E324,03-Jun-2022,000008256894160,TESCO STORES 2371,5411,Catering costs - provisions,230.60,0.00,230.60
Children and Young Peoples Services,Head of Childrens Social Care,085342,16 Hickstead Rise (previously 9 Cedar Ave),Supplies and Services,304403,Equipment and Materials,03-Jun-2022,000008256894248,AMZNMktplace,5999,Other consumables,32.98,0.00,32.98
Children and Young Peoples Services,Head of Childrens Social Care,085342,16 Hickstead Rise (previously 9 Cedar Ave),Supplies and Services,324117,Provisions E324,03-Jun-2022,000008256894252,ICELAND FOODS,5411,Catering costs - provisions,51.25,0.00,51.25
Children and Young Peoples Services,Head of Early Help Inclusion & Vulnerable Children.,085962,Aycliffe Secure - Durham,Supplies and Services,304403,Equipment and Materials,03-Jun-2022,000008256894296,AMZNMktplace,5999,Other consumables,16.65,2.78,13.87
Children and Young Peoples Services,Head of Early Help Inclusion & Vulnerable Children.,085965,Barnard,Supplies and Services,324117,Provisions E324,03-Jun-2022,000008256894352,TESCO STORES 6329,5411,Catering costs - provisions,109.81,0.00,109.81
Children and Young Peoples Services,Head of Childrens Social Care,085334,West Rainton Satelite Home,Supplies and Services,348037,Subsistence E348,03-Jun-2022,000008256894360,MCDONALDS 1514,5814,Subsistence,6.80,0.00,6.80
Children and Young Peoples Services,Head of Childrens Social Care,085342,16 Hickstead Rise (previously 9 Cedar Ave),Supplies and Services,324117,Provisions E324,03-Jun-2022,000008256894426,B&M 035 - SHILDON,5399,Catering costs - provisions,3.78,0.00,3.78
Children and Young Peoples Services,Head of Childrens Social Care,085332,Middlestone Moor CU,Supplies and Services,304403,Equipment and Materials,03-Jun-2022,000008256894634,AMZNMktplace,5999,Other consumables,20.98,3.50,17.48
Children and Young Peoples Services,Head of Childrens Social Care,085332,Middlestone Moor CU,Supplies and Services,304403,Equipment and Materials,03-Jun-2022,000008256894636,AMZNMktplace,5999,Other consumables,5.99,1.00,4.99
Children and Young Peoples Services,Head of Childrens Social Care,085332,Middlestone Moor CU,Supplies and Services,304403,Equipment and Materials,03-Jun-2022,000008256894638,AMZNMktplace,5999,Other consumables,13.56,2.26,11.30
Children and Young Peoples Services,Head of Childrens Social Care,085332,Middlestone Moor CU,Supplies and Services,304221,Equipment and Materials,03-Jun-2022,000008256894640,HOMEBASE LTD 822,5200,Direct materials,123.92,0.00,123.92
Children and Young Peoples Services,Head of Early Help Inclusion & Vulnerable Children.,085962,Aycliffe Secure - Durham,Supplies and Services,304403,Equipment and Materials,03-Jun-2022,000008256894650,AMZNMKTPLACE AMAZON.CO,5999,Other consumables,9.98,1.66,8.32
Children and Young Peoples Services,Head of Early Help Inclusion & Vulnerable Children.,085962,Aycliffe Secure - Durham,Supplies and Services,304403,Equipment and Materials,03-Jun-2022,000008256894652,AMZNMKTPLACE AMAZON.CO,5999,Other consumables,15.99,2.67,13.32
Children and Young Peoples Services,Head of Childrens Social Care,085551,Short Break Services-Park Hse Sher,Supplies and Services,324117,Provisions E324,03-Jun-2022,000008256894726,PPOINT_ Shergill Store,5499,Catering costs - provisions,9.96,0.00,9.96
Children and Young Peoples Services,Head of Childrens Social Care,085551,Short Break Services-Park Hse Sher,Supplies and Services,324117,Provisions E324,03-Jun-2022,000008256894728,CO-OP GROUP 010486,5411,Catering costs - provisions,2.80,0.00,2.80
Regeneration Economy and Growth,Corporate Property and Land,030691,Catering - Durham Dales Centre,Supplies and Services,324117,Provisions E324,03-Jun-2022,000008257013544,JR HOLLAND FOODSERVICE,5499,Catering costs - provisions,31.89,0.00,31.89
Adult and Health Services,Head of Adults,055643,Hawthorn House LD Respite Unit,Supplies and Services,324117,Provisions E324,03-Jun-2022,000008257013554,JR HOLLAND FOODSERVICE,5499,Catering costs - provisions,24.84,0.00,24.84
Regeneration Economy and Growth,Corporate Property and Land,021234,Catering - Locomotion,Supplies and Services,324117,Provisions E324,03-Jun-2022,000008257013574,JR HOLLAND FOODSERVICE,5499,Catering costs - provisions,7.90,0.00,7.90
Regeneration Economy and Growth,Corporate Property and Land,021234,Catering - Locomotion,Supplies and Services,324117,Provisions E324,03-Jun-2022,000008257013576,JR HOLLAND FOODSERVICE,5499,Catering costs - provisions,23.52,0.00,23.52
Adult and Health Services,Head of Adults,055643,Hawthorn House LD Respite Unit,Supplies and Services,324117,Provisions E324,03-Jun-2022,000008264071614,BATLEYS PERTH,5300,Catering costs - provisions,15.12,2.52,12.60
Adult and Health Services,Head of Adults,055643,Hawthorn House LD Respite Unit,Supplies and Services,324117,Provisions E324,03-Jun-2022,000008264071614 - 1,BATLEYS PERTH,5300,Catering costs - provisions,72.45,,72.45
Regeneration Economy and Growth,Corporate Property and Land,021234,Catering - Locomotion,Supplies and Services,324117,Provisions E324,03-Jun-2022,000008264071618,BATLEYS PERTH,5300,Catering costs - provisions,-4.24,0.00,-4.24
Regeneration Economy and Growth,Corporate Property and Land,021242,Catering - County Hall,Supplies and Services,324117,Provisions E324,03-Jun-2022,000008264071622,BATLEYS PERTH,5300,Catering costs - provisions,47.74,7.96,39.78
Regeneration Economy and Growth,Business Durham CL0850,030689,Inward Investment and Aftercare,Supplies and Services,342222,Computers and Communications,04-Jun-2022,000008256893950,FASTHOSTS,4816,Comp hardware purch-network servers,7.54,0.00,7.54
Children and Young Peoples Services,Head of Childrens Social Care,085347,Solo Home The Manse,Supplies and Services,348037,Subsistence E348,04-Jun-2022,000008256894162,ZTL Boat shack,5812,Subsistence,12.00,0.00,12.00
Children and Young Peoples Services,Head of Childrens Social Care,085342,16 Hickstead Rise (previously 9 Cedar Ave),Supplies and Services,304403,Equipment and Materials,04-Jun-2022,000008256894250,AMZNMKTPLACE AMAZON.CO,5999,Other consumables,12.95,0.00,12.95
Children and Young Peoples Services,Head of Education and Skills,071732,Dean Bank Childcare,Supplies and Services,324117,Provisions E324,04-Jun-2022,000008256894264,Wm Morrisons Store Pic,5411,Catering costs - provisions,8.00,0.00,8.00
Children and Young Peoples Services,Head of Childrens Social Care,085364,Children Looked After Team 1,Supplies and Services,352001,Conference Expenses,04-Jun-2022,000008256894334,Hotel on Booking.com,7011,Conferencesseminars fees etc,418.50,0.00,418.50
Children and Young Peoples Services,Head of Early Help Inclusion & Vulnerable Children.,085956,Lumley,Supplies and Services,324117,Provisions E324,04-Jun-2022,000008256894354,TESCO STORES 6329,5411,Catering costs - provisions,131.11,0.00,131.11
Adult and Health Services,Head of Adults,055643,Hawthorn House LD Respite Unit,Supplies and Services,324117,Provisions E324,04-Jun-2022,000008256894432,CO-OP GROUP 010465,5411,Catering costs - provisions,4.00,0.00,4.00
Children and Young Peoples Services,Head of Childrens Social Care,085342,16 Hickstead Rise (previously 9 Cedar Ave),Supplies and Services,348037,Subsistence E348,04-Jun-2022,000008256894448,COSTA COFFEE,5814,Subsistence,11.85,0.00,11.85
Children and Young Peoples Services,Head of Childrens Social Care,085342,16 Hickstead Rise (previously 9 Cedar Ave),Supplies and Services,304999,Equipment and Materials,04-Jun-2022,000008256894450,BOOTS/0548,5912,Misc equipment tools and materials,2.65,0.00,2.65
Children and Young Peoples Services,Head of Childrens Social Care,085342,16 Hickstead Rise (previously 9 Cedar Ave),Supplies and Services,324117,Provisions E324,04-Jun-2022,000008256894452,TESCO STORES 5805,5411,Catering costs - provisions,3.30,0.00,3.30
Children and Young Peoples Services,Head of Childrens Social Care,085342,16 Hickstead Rise (previously 9 Cedar Ave),Supplies and Services,304403,Equipment and Materials,04-Jun-2022,000008256894454,COLLECTABLES,5947,Other consumables,4.99,0.00,4.99
Children and Young Peoples Services,Head of Childrens Social Care,085342,16 Hickstead Rise (previously 9 Cedar Ave),Supplies and Services,328041,Clothing uniforms and laundry E328,04-Jun-2022,000008256894456,PRIMARK,5651,Clothing uniforms and laundry,49.00,0.00,49.00
Children and Young Peoples Services,Head of Childrens Social Care,085331,New Lea Childrens Home,Supplies and Services,348037,Subsistence E348,04-Jun-2022,000008256894480,EposNow,5812,Subsistence,1.50,0.00,1.50
Children and Young Peoples Services,Head of Childrens Social Care,085331,New Lea Childrens Home,Supplies and Services,328041,Clothing uniforms and laundry E328,04-Jun-2022,000008256894482,ORIGINAL FACTORY S,5311,Clothing uniforms and laundry,6.00,0.00,6.00
Children and Young Peoples Services,Head of Childrens Social Care,085331,New Lea Childrens Home,Supplies and Services,328041,Clothing uniforms and laundry E328,04-Jun-2022,000008256894484,ORIGINAL FACTORY S,5311,Clothing uniforms and laundry,1.35,0.00,1.35
Children and Young Peoples Services,Head of Childrens Social Care,085331,New Lea Childrens Home,Supplies and Services,328041,Clothing uniforms and laundry E328,04-Jun-2022,000008256894486,ORIGINAL FACTORY S,5311,Clothing uniforms and laundry,20.00,0.00,20.00
Children and Young Peoples Services,Head of Childrens Social Care,085331,New Lea Childrens Home,Employees,040149,Recruitment Instruction and Training,04-Jun-2022,000008256894488,THE SALVATION ARMY,8398,Training-all costs,2.00,0.00,2.00
Children and Young Peoples Services,Head of Childrens Social Care,085331,New Lea Childrens Home,Employees,040149,Recruitment Instruction and Training,04-Jun-2022,000008256894490,THE SALVATION ARMY,8398,Training-all costs,5.50,0.00,5.50
Children and Young Peoples Services,Head of Childrens Social Care,085331,New Lea Childrens Home,Supplies and Services,324117,Provisions E324,04-Jun-2022,000008256894492,PPOINT_ PVR and CO LTD,5499,Catering costs - provisions,4.10,0.00,4.10
Children and Young Peoples Services,Head of Childrens Social Care,085334,West Rainton Satelite Home,Supplies and Services,348037,Subsistence E348,04-Jun-2022,000008256894506,SOUTH DURHAM DINER,5812,Subsistence,2.50,0.00,2.50
Children and Young Peoples Services,Head of Childrens Social Care,085334,West Rainton Satelite Home,Supplies and Services,304259,Equipment and Materials,04-Jun-2022,000008256894508,DOLPHIN CENTRE,9399,Equipment-purchase and rental,3.95,0.00,3.95
Children and Young Peoples Services,Head of Childrens Social Care,085334,West Rainton Satelite Home,Supplies and Services,324117,Provisions E324,04-Jun-2022,000008256894510,Selecta U.K. Limited,5499,Catering costs - provisions,1.50,0.00,1.50
Children and Young Peoples Services,Head of Childrens Social Care,085334,West Rainton Satelite Home,Supplies and Services,324117,Provisions E324,04-Jun-2022,000008256894512,WM MORRISONS STORE,5411,Catering costs - provisions,26.59,0.00,26.59
Neighbourhoods and Climate Change,Environmental Services,031200,North Pennines Core,Supplies and Services,304999,Equipment and Materials,04-Jun-2022,000008256894628,123 REG LTD,5968,Misc equipment tools and materials,28.78,0.00,28.78
Children and Young Peoples Services,Head of Childrens Social Care,085332,Middlestone Moor CU,Supplies and Services,304403,Equipment and Materials,04-Jun-2022,000008256894642,AMZNBusiness 2G8CF97J4,5999,Other consumables,6.79,1.13,5.66
Children and Young Peoples Services,Head of Childrens Social Care,085332,Middlestone Moor CU,Supplies and Services,304403,Equipment and Materials,04-Jun-2022,000008256894644,AMZNMktplace,5999,Other consumables,7.99,1.33,6.66
Regeneration Economy and Growth,Culture Sport and Tourism,054233,Bishop Auckland Town Hall Library,Supplies and Services,324117,Provisions E324,04-Jun-2022,000008256894656,B&M 134 - BISHOP AUCKL,5399,Catering costs - provisions,7.74,0.00,7.74
Regeneration Economy and Growth,Communications Management,060270,Communications and Marketing,Supplies and Services,336005,Advertising E336,04-Jun-2022,000008256894688,LinkedIn 7925086654,7311,Advertising other than for staff,105.32,0.00,105.32
Children and Young Peoples Services,Head of Childrens Social Care,085341,High Etherley Satelite Home,Transfer Payments,515140,Social Services Clients,04-Jun-2022,000008256894706,AGE UK COUNTY DURHAM,8398,Clothing allowances,5.00,0.00,5.00
Children and Young Peoples Services,Head of Childrens Social Care,085341,High Etherley Satelite Home,Transport,235057,Public Transport,04-Jun-2022,000008256894708,GO NORTH EAST LIMITED,4131,Staff travelling,7.80,0.00,7.80
Children and Young Peoples Services,Head of Childrens Social Care,085341,High Etherley Satelite Home,Supplies and Services,348037,Subsistence E348,04-Jun-2022,000008256894710,CARTERS FISH RESTAURAN,5814,Subsistence,13.20,0.00,13.20
Children and Young Peoples Services,Head of Childrens Social Care,085341,High Etherley Satelite Home,Supplies and Services,348037,Subsistence E348,04-Jun-2022,000008256894712,STARBUCKS,5814,Subsistence,7.20,0.00,7.20
Children and Young Peoples Services,Head of Childrens Social Care,085341,High Etherley Satelite Home,Transport,235057,Public Transport,04-Jun-2022,000008256894714,SumUp A P Taxis,4121,Staff travelling,10.50,0.00,10.50
Children and Young Peoples Services,Head of Education and Skills,071801,Selby Cottage Childcare Centre,Supplies and Services,304403,Equipment and Materials,05-Jun-2022,000008256893966,AMZNMKTPLACE AMAZON.CO,5999,Other consumables,11.99,2.00,9.99
Children and Young Peoples Services,Head of Childrens Social Care,085347,Solo Home The Manse,Transport,235057,Public Transport,05-Jun-2022,000008256894164,SCARBOROUGH BOROUGH CO,7523,Staff travelling,3.30,0.00,3.30
Children and Young Peoples Services,Head of Childrens Social Care,085347,Solo Home The Manse,Supplies and Services,348037,Subsistence E348,05-Jun-2022,000008256894166,JAVA OF WHITBY LTD,5814,Subsistence,44.10,0.00,44.10
Children and Young Peoples Services,Head of Childrens Social Care,085347,Solo Home The Manse,Supplies and Services,348037,Subsistence E348,05-Jun-2022,000008256894168,The Galleon,5812,Subsistence,10.80,0.00,10.80
Children and Young Peoples Services,Head of Childrens Social Care,085342,16 Hickstead Rise (previously 9 Cedar Ave),Supplies and Services,324117,Provisions E324,05-Jun-2022,000008256894254,ICELAND FOODS,5411,Catering costs - provisions,-7.07,0.00,-7.07
Children and Young Peoples Services,Head of Early Help Inclusion & Vulnerable Children.,085962,Aycliffe Secure - Durham,Supplies and Services,304403,Equipment and Materials,05-Jun-2022,000008256894298,AMZNMktplace,5999,Other consumables,41.98,7.00,34.98
Children and Young Peoples Services,Head of Early Help Inclusion & Vulnerable Children.,085962,Aycliffe Secure - Durham,Supplies and Services,304403,Equipment and Materials,05-Jun-2022,000008256894300,AMZNMktplace,5999,Other consumables,39.56,6.59,32.97
Children and Young Peoples Services,Head of Early Help Inclusion & Vulnerable Children.,085962,Aycliffe Secure - Durham,Supplies and Services,304403,Equipment and Materials,05-Jun-2022,000008256894302,AMZNMktplace,5999,Other consumables,39.98,6.66,33.32
Children and Young Peoples Services,Head of Early Help Inclusion & Vulnerable Children.,085954,Walworth,Supplies and Services,324117,Provisions E324,05-Jun-2022,000008256894356,TESCO STORES 6329,5411,Catering costs - provisions,129.16,0.00,129.16
Children and Young Peoples Services,Head of Early Help Inclusion & Vulnerable Children.,088112,Seaham & Central Durham Intensive Family Support Team,Supplies and Services,384999,Miscellaneous Expenses,05-Jun-2022,000008256894364,Amazon.co.uk 2G4HK6UH4,5969,Other expenses,14.25,0.00,14.25
Dedicated Schools Grant BG0015,DSG Schools Block,418507,Belmont Community School 004185 - Performing Arts,Supplies and Services,304403,Equipment and Materials,05-Jun-2022,000008256894402,AMZNMKTPLACE AMAZON.CO,5999,Other consumables,61.80,10.40,51.40
Dedicated Schools Grant BG0015,DSG Schools Block,418516,Belmont Community School 004185 - Marketing,Supplies and Services,324117,Provisions E324,05-Jun-2022,000008256894404,MARTIN MCCOLL,5499,Catering costs - provisions,5.43,0.00,5.43
Children and Young Peoples Services,Head of Childrens Social Care,085331,New Lea Childrens Home,Supplies and Services,324117,Provisions E324,05-Jun-2022,000008256894494,ASDA SUPERSTORE,5411,Catering costs - provisions,25.53,0.00,25.53
Children and Young Peoples Services,Head of Early Help Inclusion & Vulnerable Children.,085801,CDYJS - Support,Supplies and Services,348037,Subsistence E348,05-Jun-2022,000008256894586,BEAMISH MARY INN,5813,Subsistence,76.65,0.00,76.65
Resources BK0010,Procurement Sales & Business Services,065503,Business Support - Spectrum,Supplies and Services,312009,Newspapers books and periodicals E312,05-Jun-2022,000008256894626,AMZN Mktp UK 2G60O89F4,5942,Newspapers books and periodicals,27.71,4.62,23.09
Children and Young Peoples Services,Head of Childrens Social Care,085332,Middlestone Moor CU,Supplies and Services,324117,Provisions E324,05-Jun-2022,000008256894646,ASDA STORES,5411,Catering costs - provisions,19.95,0.00,19.95
Children and Young Peoples Services,Head of Childrens Social Care,085332,Middlestone Moor CU,Supplies and Services,348037,Subsistence E348,05-Jun-2022,000008264000344,MCDONALDS,5814,Subsistence,16.95,0.00,16.95
Regeneration Economy and Growth,Business Durham CL0850,030689,Inward Investment and Aftercare,Supplies and Services,342033,Computers and Communications,06-Jun-2022,000008263999650,STK Shutterstock,7333,Computer hardware,9.30,1.55,7.75
Regeneration Economy and Growth,Business Durham CL0850,030689,Inward Investment and Aftercare,Supplies and Services,342033,Computers and Communications,06-Jun-2022,000008263999650 - 1,STK Shutterstock,7333,Computer hardware,9.70,,9.70
Children and Young Peoples Services,Head of Education and Skills,071801,Selby Cottage Childcare Centre,Supplies and Services,324117,Provisions E324,06-Jun-2022,000008263999658,TESCO STORES 2278,5411,Catering costs - provisions,23.45,0.00,23.45
Resources BK0010,Legal & Democratic Services,069326,Practice Management,Employees,040149,Recruitment Instruction and Training,06-Jun-2022,000008263999736,EB THE TWELFTH ANNUAL,7399,Training-all costs,396.00,0.00,396.00
Resources BK0010,Legal & Democratic Services,069326,Practice Management,Employees,040149,Recruitment Instruction and Training,06-Jun-2022,000008263999738,EB THE TWELFTH ANNUAL,7399,Training-all costs,132.00,0.00,132.00
Children and Young Peoples Services,Head of Childrens Social Care,085347,Solo Home The Manse,Supplies and Services,324117,Provisions E324,06-Jun-2022,000008263999744,B&M 600 - THORNE,5399,Catering costs - provisions,31.39,0.00,31.39
Children and Young Peoples Services,Head of Education and Skills,075033,DurhamWorks 3,Supplies and Services,364301,Grants to Voluntary Organisations,06-Jun-2022,000008263999746,WWW.GONORTHEAST.CO.UK,4111,Hardship,15.00,0.00,15.00
Children and Young Peoples Services,Head of Childrens Social Care,085342,16 Hickstead Rise (previously 9 Cedar Ave),Supplies and Services,324117,Provisions E324,06-Jun-2022,000008263999772,STARBUCKS BISHOP AUCKL,5499,Catering costs - provisions,10.90,0.00,10.90
Children and Young Peoples Services,Head of Early Help Inclusion & Vulnerable Children.,079050,SENSS-Sensory,Supplies and Services,304403,Equipment and Materials,06-Jun-2022,000008263999780,AMZNMKTPLACE AMAZON.CO,5999,Other consumables,20.38,3.40,16.98
Children and Young Peoples Services,Head of Early Help Inclusion & Vulnerable Children.,079050,SENSS-Sensory,Supplies and Services,304403,Equipment and Materials,06-Jun-2022,000008263999786,SP TALKING PRODUCTS,5734,Other consumables,58.08,0.00,58.08
Children and Young Peoples Services,Head of Childrens Social Care,085332,Middlestone Moor CU,Supplies and Services,324117,Provisions E324,06-Jun-2022,000008263999796,ASDA SUPERSTORE 4987,5411,Catering costs - provisions,72.75,0.00,72.75
Children and Young Peoples Services,Head of Childrens Social Care,085332,Middlestone Moor CU,Supplies and Services,324117,Provisions E324,06-Jun-2022,000008263999802,TESCO STORES 2371,5411,Catering costs - provisions,7.87,0.00,7.87
Children and Young Peoples Services,Head of Childrens Social Care,085332,Middlestone Moor CU,Supplies and Services,324117,Provisions E324,06-Jun-2022,000008263999806,TESCO STORES 2371,5411,Catering costs - provisions,-7.87,0.00,-7.87
Children and Young Peoples Services,Head of Education and Skills,078100,Curric and Professional Development 078100,Supplies and Services,304403,Equipment and Materials,06-Jun-2022,000008263999840,AMZNMktplace,5999,Other consumables,17.99,3.00,14.99
Children and Young Peoples Services,Head of Childrens Social Care,085334,West Rainton Satelite Home,Supplies and Services,324117,Provisions E324,06-Jun-2022,000008263999842,TESCO STORES 2371,5411,Catering costs - provisions,48.36,0.00,48.36
Neighbourhoods and Climate Change,Environmental Services,010367,C&G - South Grounds Maintenance,Supplies and Services,304221,Equipment and Materials,06-Jun-2022,000008263999870,MKM PETERLEE,5211,Direct materials,11.98,2.00,9.98
Children and Young Peoples Services,Head of Early Help Inclusion & Vulnerable Children.,079599,Psychological-HQ,Supplies and Services,304403,Equipment and Materials,06-Jun-2022,000008263999888,AMZNMktplace,5999,Other consumables,105.84,17.64,88.20
Children and Young Peoples Services,Head of Early Help Inclusion & Vulnerable Children.,079599,Psychological-HQ,Supplies and Services,304403,Equipment and Materials,06-Jun-2022,000008263999892,AMZNMktplace,5999,Other consumables,120.00,20.00,100.00
Children and Young Peoples Services,Head of Childrens Social Care,085331,New Lea Childrens Home,Supplies and Services,324117,Provisions E324,06-Jun-2022,000008263999932,ASDA SUPERSTORE,5411,Catering costs - provisions,45.55,0.00,45.55
Children and Young Peoples Services,Head of Early Help Inclusion & Vulnerable Children.,085962,Aycliffe Secure - Durham,Supplies and Services,324117,Provisions E324,06-Jun-2022,000008263999942,Selecta U.K. Limited,5499,Catering costs - provisions,1.50,0.00,1.50
Children and Young Peoples Services,Head of Early Help Inclusion & Vulnerable Children.,085962,Aycliffe Secure - Durham,Supplies and Services,324117,Provisions E324,06-Jun-2022,000008263999946,Selecta U.K. Limited,5499,Catering costs - provisions,1.70,0.00,1.70
Children and Young Peoples Services,Head of Early Help Inclusion & Vulnerable Children.,085962,Aycliffe Secure - Durham,Supplies and Services,324117,Provisions E324,06-Jun-2022,000008263999952,Selecta U.K. Limited,5499,Catering costs - provisions,1.50,0.00,1.50
Children and Young Peoples Services,Head of Early Help Inclusion & Vulnerable Children.,085957,Secure Management,Supplies and Services,324117,Provisions E324,06-Jun-2022,000008263999978,TESCO STORES 6329,5411,Catering costs - provisions,48.99,0.00,48.99
Children and Young Peoples Services,Head of Early Help Inclusion & Vulnerable Children.,085956,Lumley,Transfer Payments,515002,Social Services Clients,06-Jun-2022,000008263999988,SHEIN.COM,5399,Pocket money,-80.91,0.00,-80.91
Resources BK0010,Transactional & Customer Services,065120,Income 065120,Supplies and Services,304403,Equipment and Materials,06-Jun-2022,000008264000024,AMZNMKTPLACE AMAZON.CO,5999,Other consumables,157.20,26.20,131.00
Resources BK0010,Transactional & Customer Services,065120,Income 065120,Supplies and Services,304403,Equipment and Materials,06-Jun-2022,000008264000024 - 1,AMZNMKTPLACE AMAZON.CO,5999,Other consumables,0.20,,0.20
Children and Young Peoples Services,Head of Childrens Social Care,085368,Children Looked After Team 5,Supplies and Services,338045,Services,06-Jun-2022,000008264000040,DARLINGTON BC INTERNET,9399,Legal expenses 338045,11.00,0.00,11.00
Children and Young Peoples Services,Head of Childrens Social Care,085367,Children Looked After Team 4,Supplies and Services,338045,Services,06-Jun-2022,000008264000044,GEN REGISTER OFFICE,9399,Legal expenses 338045,11.00,0.00,11.00
Children and Young Peoples Services,Head of Childrens Social Care,085368,Children Looked After Team 5,Supplies and Services,338045,Services,06-Jun-2022,000008264000048,GEN REGISTER OFFICE,9399,Legal expenses 338045,11.00,0.00,11.00
Children and Young Peoples Services,Head of Childrens Social Care,085366,Children Looked After Team 3,Supplies and Services,338045,Services,06-Jun-2022,000008264000050,GEN REGISTER OFFICE,9399,Legal expenses 338045,11.00,0.00,11.00
Children and Young Peoples Services,Head of Childrens Social Care,085366,Children Looked After Team 3,Supplies and Services,338045,Services,06-Jun-2022,000008264000052,GEN REGISTER OFFICE,9399,Legal expenses 338045,11.00,0.00,11.00
Adult and Health Services,Head of Adults,055643,Hawthorn House LD Respite Unit,Supplies and Services,324117,Provisions E324,06-Jun-2022,000008264000084,HERON FOODS,5411,Catering costs - provisions,12.87,0.00,12.87
Regeneration Economy and Growth,Business Durham CL0850,030672,Operations Team,Supplies and Services,352001,Conference Expenses,06-Jun-2022,000008264000088,RAMSIDE HALL HOTEL,7011,Conferencesseminars fees etc,118.80,0.00,118.80
Children and Young Peoples Services,Head of Childrens Social Care,085351,Framwellgate Moor CU,Supplies and Services,348037,Subsistence E348,06-Jun-2022,000008264000090,COFFEE @ CHESNEYS,5812,Subsistence,14.00,0.00,14.00
Children and Young Peoples Services,Head of Childrens Social Care,085351,Framwellgate Moor CU,Supplies and Services,324117,Provisions E324,06-Jun-2022,000008264000092,B&M 681 - DURHAM,5399,Catering costs - provisions,34.89,0.00,34.89
Children and Young Peoples Services,Head of Childrens Social Care,085351,Framwellgate Moor CU,Supplies and Services,304259,Equipment and Materials,06-Jun-2022,000008264000096,CURRYS DURHAM RET PK,5732,Equipment-purchase and rental,27.74,0.00,27.74
Children and Young Peoples Services,Head of Childrens Social Care,085347,Solo Home The Manse,Supplies and Services,324117,Provisions E324,06-Jun-2022,000008264000114,TESCO STORES 5184,5411,Catering costs - provisions,28.99,0.00,28.99
Children and Young Peoples Services,Head of Education and Skills,071732,Dean Bank Childcare,Supplies and Services,324117,Provisions E324,06-Jun-2022,000008264000120,ASDA GROCERIES ONLINE,5411,Catering costs - provisions,44.16,0.00,44.16
Children and Young Peoples Services,Head of Childrens Social Care,085334,West Rainton Satelite Home,Supplies and Services,304259,Equipment and Materials,06-Jun-2022,000008264000160,DOLPHIN CENTRE,9399,Equipment-purchase and rental,3.95,0.00,3.95
Children and Young Peoples Services,Head of Childrens Social Care,085331,New Lea Childrens Home,Supplies and Services,328041,Clothing uniforms and laundry E328,06-Jun-2022,000008264000164,POUNDSTRETCHER 692,5331,Clothing uniforms and laundry,7.00,0.00,7.00
Children and Young Peoples Services,Head of Childrens Social Care,085331,New Lea Childrens Home,Supplies and Services,304999,Equipment and Materials,06-Jun-2022,000008264000166,BOOTS 6023,5912,Misc equipment tools and materials,4.00,0.00,4.00
Children and Young Peoples Services,Head of Childrens Social Care,085331,New Lea Childrens Home,Supplies and Services,324117,Provisions E324,06-Jun-2022,000008264000168,ASDA STORES,5411,Catering costs - provisions,29.98,0.00,29.98
Children and Young Peoples Services,Head of Early Help Inclusion & Vulnerable Children.,085957,Secure Management,Premises,108251,Service Repairs and Maintenance,06-Jun-2022,000008264000230,AMZNMktplace,5999,Alarm and security maintenance,39.98,6.66,33.32
Regeneration Economy and Growth,Transport and Contracted Services,031701,Care Connect All Localities,Supplies and Services,304259,Equipment and Materials,06-Jun-2022,000008264000236,AMZNMKTPLACE AMAZON.CO,5999,Equipment-purchase and rental,218.04,36.36,181.68
Children and Young Peoples Services,Head of Education and Skills,071802,Louisa Cent Nursery,Supplies and Services,324117,Provisions E324,06-Jun-2022,000008264000260,ASDA GROCERIES ONLINE,5411,Catering costs - provisions,192.04,0.00,192.04
Children and Young Peoples Services,Head of Education and Skills,071802,Louisa Cent Nursery,Supplies and Services,324117,Provisions E324,06-Jun-2022,000008264000264,ASDA GROCERIES ONLINE,5411,Catering costs - provisions,-0.85,0.00,-0.85
Resources BK0010,Procurement Sales & Business Services,065503,Business Support - Spectrum,Transport,235057,Public Transport,06-Jun-2022,000008264000308,WWW.GONORTHEAST.CO.UK,4111,Staff travelling,34.00,0.00,34.00
Resources BK0010,Procurement Sales & Business Services,065503,Business Support - Spectrum,Transport,235057,Public Transport,06-Jun-2022,000008264000310,WWW.GONORTHEAST.CO.UK,4111,Staff travelling,34.00,0.00,34.00
Regeneration Economy and Growth,Development and Housing,030554,International Relations 030554,Supplies and Services,384926,Miscellaneous Expenses,06-Jun-2022,000008264000324,EURO DISNEY ASS,7996,International visits,"2,229.88",0.00,2229.88
Regeneration Economy and Growth,Culture Sport and Tourism,054233,Bishop Auckland Town Hall Library,Supplies and Services,324117,Provisions E324,06-Jun-2022,000008264000362,HERON FOODS,5411,Catering costs - provisions,16.56,0.00,16.56
Children and Young Peoples Services,Head of Childrens Social Care,085358,Orchard House Sacriston Solo Home,Supplies and Services,324117,Provisions E324,06-Jun-2022,000008264000368,ASDA GROCERIES ONLINE,5411,Catering costs - provisions,209.02,0.00,209.02
Children and Young Peoples Services,Head of Childrens Social Care,085358,Orchard House Sacriston Solo Home,Supplies and Services,324117,Provisions E324,06-Jun-2022,000008264000372,ASDA GROCERIES ONLINE,5411,Catering costs - provisions,-6.20,0.00,-6.20
Regeneration Economy and Growth,Communications Management,060270,Communications and Marketing,Supplies and Services,336005,Advertising E336,06-Jun-2022,000008264000440,FACEBK EFT7ADB5B2,7311,Advertising other than for staff,500.00,0.00,500.00
Neighbourhoods and Climate Change,Environmental Services,031071,E&D - Sustainability and Climate Change,Transport,235057,Public Transport,06-Jun-2022,000008264000450,DSB KASTRUP AUT,4111,Staff travelling,52.46,0.00,52.46
Neighbourhoods and Climate Change,Environmental Services,031071,E&D - Sustainability and Climate Change,Transport,235057,Public Transport,06-Jun-2022,000008264000454,EDINBURGH TRAMS LIMITE,4111,Staff travelling,42.50,0.00,42.50
Neighbourhoods and Climate Change,Environmental Services,010367,C&G - South Grounds Maintenance,Supplies and Services,304999,Equipment and Materials,06-Jun-2022,000008264000498,Snowballs,5251,Misc equipment tools and materials,35.28,0.00,35.28
Children and Young Peoples Services,Head of Early Help Inclusion & Vulnerable Children.,088110,Easington & Peterlee Intensive Family Support Team,Supplies and Services,364301,Grants to Voluntary Organisations,06-Jun-2022,000008264000516,AMZNMktplace,5999,Hardship,7.60,0.00,7.60
Children and Young Peoples Services,Head of Early Help Inclusion & Vulnerable Children.,088110,Easington & Peterlee Intensive Family Support Team,Supplies and Services,364301,Grants to Voluntary Organisations,06-Jun-2022,000008264000520,AMZNMktplace,5999,Hardship,7.69,0.00,7.69
Children and Young Peoples Services,Head of Early Help Inclusion & Vulnerable Children.,088112,Seaham & Central Durham Intensive Family Support Team,Supplies and Services,364301,Grants to Voluntary Organisations,06-Jun-2022,000008264000526,ASDA GROCERIES ONLINE,5411,Hardship,221.20,0.00,221.20
Regeneration Economy and Growth,Corporate Property and Land,010525,Catering - Green Lane,Supplies and Services,324117,Provisions E324,06-Jun-2022,000008264071608,JR HOLLAND FOODSERVICE,5499,Catering costs - provisions,62.62,0.00,62.62
Regeneration Economy and Growth,Corporate Property and Land,011275,Catering -Durham Leadership Centre,Supplies and Services,324117,Provisions E324,06-Jun-2022,000008264071610,JR HOLLAND FOODSERVICE,5499,Catering costs - provisions,122.88,0.00,122.88
Regeneration Economy and Growth,Corporate Property and Land,030691,Catering - Durham Dales Centre,Supplies and Services,324117,Provisions E324,06-Jun-2022,000008264071612,JR HOLLAND FOODSERVICE,5499,Catering costs - provisions,81.04,0.00,81.04
Adult and Health Services,Head of Adults,055643,Hawthorn House LD Respite Unit,Supplies and Services,324117,Provisions E324,06-Jun-2022,000008264071616,JR HOLLAND FOODSERVICE,5499,Catering costs - provisions,22.62,0.00,22.62
Regeneration Economy and Growth,Corporate Property and Land,021242,Catering - County Hall,Supplies and Services,324117,Provisions E324,06-Jun-2022,000008264071624,JR HOLLAND FOODSERVICE,5499,Catering costs - provisions,15.84,0.00,15.84
Regeneration Economy and Growth,Corporate Property and Land,021242,Catering - County Hall,Supplies and Services,324117,Provisions E324,06-Jun-2022,000008264071626,JR HOLLAND FOODSERVICE,5499,Catering costs - provisions,304.17,0.00,304.17
Children and Young Peoples Services,Head of Childrens Social Care,085611,Families First Stanley,Supplies and Services,364301,Grants to Voluntary Organisations,06-Jun-2022,000008268232558,ARGOS LTD,5310,Hardship,269.95,0.00,269.95
Regeneration Economy and Growth,Development and Housing,030771,Durham Advance Flexible Fund,Supplies and Services,304259,Equipment and Materials,06-Jun-2022,000008268232806,DVLA DRIVER ONLINE,9399,Equipment-purchase and rental,34.00,0.00,34.00
Children and Young Peoples Services,Head of Childrens Social Care,085351,Framwellgate Moor CU,Supplies and Services,304221,Equipment and Materials,06-Jun-2022,000008268232950,B & Q 1343,5200,Direct materials,37.08,0.00,37.08
Children and Young Peoples Services,Head of Childrens Social Care,085351,Framwellgate Moor CU,Supplies and Services,324117,Provisions E324,06-Jun-2022,000008268232952,ALDI 12 774,5411,Catering costs - provisions,165.13,0.00,165.13
Neighbourhoods and Climate Change,Environmental Services,031071,E&D - Sustainability and Climate Change,Supplies and Services,348037,Subsistence E348,06-Jun-2022,000008268233152,CAFFE NERO EDINBURGH A,5814,Subsistence,41.05,0.00,41.05
Neighbourhoods and Climate Change,Environmental Services,031071,E&D - Sustainability and Climate Change,Supplies and Services,348037,Subsistence E348,06-Jun-2022,000008268233154,MOOSEHEAD BAR,5812,Subsistence,164.54,0.00,164.54
Children and Young Peoples Services,Head of Childrens Social Care,085551,Short Break Services-Park Hse Sher,Supplies and Services,324117,Provisions E324,06-Jun-2022,000008268233164,ICELAND FOODS,5411,Catering costs - provisions,97.70,0.00,97.70
Children and Young Peoples Services,Head of Early Help Inclusion & Vulnerable Children.,088101,Bullion Lane & Brandon Family Centre,Supplies and Services,328041,Clothing uniforms and laundry E328,06-Jun-2022,000008268233188,ARGOS LTD,5310,Clothing uniforms and laundry,48.95,8.16,40.79
Regeneration Economy and Growth,Corporate Property and Land,011296,Catering - Crimdon Dene Hub,Supplies and Services,324117,Provisions E324,06-Jun-2022,000008268293652,BATLEYS PERTH,5300,Catering costs - provisions,280.98,46.83,234.15
Regeneration Economy and Growth,Corporate Property and Land,011296,Catering - Crimdon Dene Hub,Supplies and Services,324117,Provisions E324,06-Jun-2022,000008268293652 - 1,BATLEYS PERTH,5300,Catering costs - provisions,101.50,,101.50
Regeneration Economy and Growth,Corporate Property and Land,030691,Catering - Durham Dales Centre,Supplies and Services,324117,Provisions E324,06-Jun-2022,000008268293654,BATLEYS PERTH,5300,Catering costs - provisions,144.72,24.12,120.60
Regeneration Economy and Growth,Corporate Property and Land,030691,Catering - Durham Dales Centre,Supplies and Services,324117,Provisions E324,06-Jun-2022,000008268293654 - 1,BATLEYS PERTH,5300,Catering costs - provisions,194.19,,194.19
Regeneration Economy and Growth,Corporate Property and Land,021235,Catering - Wharton Park,Supplies and Services,324117,Provisions E324,06-Jun-2022,000008268293660,BATLEYS PERTH,5300,Catering costs - provisions,109.20,18.20,91.00
Regeneration Economy and Growth,Corporate Property and Land,021235,Catering - Wharton Park,Supplies and Services,324117,Provisions E324,06-Jun-2022,000008268293660 - 1,BATLEYS PERTH,5300,Catering costs - provisions,11.63,,11.63
Regeneration Economy and Growth,Culture Sport and Tourism,054812,Gala Theatre - Catering etc,Supplies and Services,324117,Provisions E324,06-Jun-2022,000008268293668,BATLEYS PERTH,5300,Catering costs - provisions,53.10,8.85,44.25
Regeneration Economy and Growth,Culture Sport and Tourism,054812,Gala Theatre - Catering etc,Supplies and Services,324117,Provisions E324,06-Jun-2022,000008268293668 - 1,BATLEYS PERTH,5300,Catering costs - provisions,97.25,,97.25
Children and Young Peoples Services,Head of Childrens Social Care,085368,Children Looked After Team 5,Supplies and Services,338045,Services,06-Jun-2022,000008285743482,GEN REGISTER OFFICE,9399,Legal expenses 338045,-11.00,0.00,-11.00
Children and Young Peoples Services,Head of Childrens Social Care,085368,Children Looked After Team 5,Supplies and Services,338045,Services,06-Jun-2022,000008302848840,GEN REGISTER OFFICE,9399,Legal expenses 338045,-11.00,0.00,-11.00
Children and Young Peoples Services,Head of Childrens Social Care,085358,Orchard House Sacriston Solo Home,Supplies and Services,372009,Subscriptions E372,07-Jun-2022,000008263999918,NETFLIX.COM,4899,Subscriptions 372009,15.99,0.00,15.99
Regeneration Economy and Growth,Development and Housing,030554,International Relations 030554,Supplies and Services,384926,Miscellaneous Expenses,07-Jun-2022,000008264000330,EURO DISNEY ASS,7996,International visits,61.32,0.00,61.32
Neighbourhoods and Climate Change,Environmental Services,031071,E&D - Sustainability and Climate Change,Transport,235057,Public Transport,07-Jun-2022,000008264000458,DSB KASTRUP AUT,4111,Staff travelling,1.44,0.00,1.44
Children and Young Peoples Services,Head of Education and Skills,071801,Selby Cottage Childcare Centre,Supplies and Services,304403,Equipment and Materials,07-Jun-2022,000008268232560,AMZNMktplace,5999,Other consumables,47.90,8.00,39.90
Children and Young Peoples Services,Head of Education and Skills,071801,Selby Cottage Childcare Centre,Supplies and Services,304403,Equipment and Materials,07-Jun-2022,000008268232562,AMZNMktplace,5999,Other consumables,77.34,12.90,64.44
Children and Young Peoples Services,Head of Education and Skills,071801,Selby Cottage Childcare Centre,Supplies and Services,324117,Provisions E324,07-Jun-2022,000008268232564,WILKO RETAIL LIMITED,5399,Catering costs - provisions,51.15,0.00,51.15
Children and Young Peoples Services,Head of Education and Skills,071801,Selby Cottage Childcare Centre,Supplies and Services,324117,Provisions E324,07-Jun-2022,000008268232566,TESCO STORES 2278,5411,Catering costs - provisions,7.21,0.00,7.21
Resources BK0010,Legal & Democratic Services,069326,Practice Management,Employees,040149,Recruitment Instruction and Training,07-Jun-2022,000008268232600,WWW.THELAWSOCIETY.ORG.,8699,Training-all costs,54.00,0.00,54.00
Children and Young Peoples Services,Head of Childrens Social Care,085347,Solo Home The Manse,Supplies and Services,304403,Equipment and Materials,07-Jun-2022,000008268232604,AMZNMktplace,5999,Other consumables,12.29,0.00,12.29
Neighbourhoods and Climate Change,Environmental Services,010383,C&G - South Street Cleansing,Supplies and Services,304403,Equipment and Materials,07-Jun-2022,000008268232614,W E & J ROWLE,5947,Other consumables,13.72,0.00,13.72
Regeneration Economy and Growth,Culture Sport and Tourism,011264,Consett Leisure Centre,Supplies and Services,304259,Equipment and Materials,07-Jun-2022,000008268232616,HOME COUNTIES SWIM,7399,Equipment-purchase and rental,93.00,0.00,93.00
Regeneration Economy and Growth,Culture Sport and Tourism,030712,VCD - Project Delivery,Supplies and Services,384199,Miscellaneous Expenses,07-Jun-2022,000008268232618,FACEBK 4BU6DEXQH2,7311,Other hired and contracted services,27.84,0.00,27.84
Children and Young Peoples Services,Head of Childrens Social Care,085332,Middlestone Moor CU,Supplies and Services,304999,Equipment and Materials,07-Jun-2022,000008268232620,WHIRLPOOL UK APPLIAN,5722,Misc equipment tools and materials,261.75,0.00,261.75
Children and Young Peoples Services,Head of Childrens Social Care,085332,Middlestone Moor CU,Supplies and Services,324117,Provisions E324,07-Jun-2022,000008268232622,TESCO STORES 2371,5411,Catering costs - provisions,195.59,0.00,195.59
Children and Young Peoples Services,Head of Education and Skills,078100,Curric and Professional Development 078100,Supplies and Services,342033,Computers and Communications,07-Jun-2022,000008268232628,STK Shutterstock,7333,Computer hardware,11.16,1.86,9.30
Children and Young Peoples Services,Head of Education and Skills,078100,Curric and Professional Development 078100,Supplies and Services,342033,Computers and Communications,07-Jun-2022,000008268232628 - 1,STK Shutterstock,7333,Computer hardware,11.64,,11.64
Children and Young Peoples Services,Head of Childrens Social Care,085341,High Etherley Satelite Home,Supplies and Services,304403,Equipment and Materials,07-Jun-2022,000008268232632,AMZNMktplace,5999,Other consumables,8.71,1.45,7.26
Regeneration Economy and Growth,Development and Housing,031623,Rough Sleeping,Supplies and Services,338066,Services,07-Jun-2022,000008268232642,GEN REGISTER OFFICE,9399,Professional fees 338066,38.00,0.00,38.00
Children and Young Peoples Services,Head of Childrens Social Care,085341,High Etherley Satelite Home,Supplies and Services,324117,Provisions E324,07-Jun-2022,000008268232644,ASDA STORES 5889,5411,Catering costs - provisions,75.20,0.00,75.20
Neighbourhoods and Climate Change,Environmental Services,010367,C&G - South Grounds Maintenance,Supplies and Services,304221,Equipment and Materials,07-Jun-2022,000008268232648,MKM PETERLEE,5211,Direct materials,8.28,1.38,6.90
Regeneration Economy and Growth,Development and Housing,030776,LINKCD Flexible Fund,Transport,235057,Public Transport,07-Jun-2022,000008268232658,WWW.GONORTHEAST.CO.UK,4111,Staff travelling,6.00,0.00,6.00
Regeneration Economy and Growth,Development and Housing,030776,LINKCD Flexible Fund,Supplies and Services,328041,Clothing uniforms and laundry E328,07-Jun-2022,000008268232660,MATALAN.CO.UK,5691,Clothing uniforms and laundry,33.95,0.00,33.95
Regeneration Economy and Growth,Development and Housing,030776,LINKCD Flexible Fund,Supplies and Services,348037,Subsistence E348,07-Jun-2022,000008268232662,CHESTER LE STREET,5814,Subsistence,7.70,1.28,6.42
Regeneration Economy and Growth,Development and Housing,030776,LINKCD Flexible Fund,Employees,040149,Recruitment Instruction and Training,07-Jun-2022,000008268232664,HSQE LTD,8299,Training-all costs,18.00,0.00,18.00
Regeneration Economy and Growth,Development and Housing,030544,Rural Employability - Client Engagement,Transport,235057,Public Transport,07-Jun-2022,000008268232666,PRINCE BISHOP SHOPPING,7523,Staff travelling,2.10,0.00,2.10
Children and Young Peoples Services,Head of Early Help Inclusion & Vulnerable Children.,074000,National Supporting Families Programme,Transfer Payments,525033,Other,07-Jun-2022,000008268232726,AMZNMktplace,5999,Grants to individuals,236.88,39.52,197.36
Children and Young Peoples Services,Head of Early Help Inclusion & Vulnerable Children.,085962,Aycliffe Secure - Durham,Supplies and Services,304403,Equipment and Materials,07-Jun-2022,000008268232772,AMZNMKTPLACE AMAZON.CO,5999,Other consumables,17.98,3.00,14.98
Regeneration Economy and Growth,Development and Housing,030776,LINKCD Flexible Fund,Employees,040149,Recruitment Instruction and Training,07-Jun-2022,000008268232780,TWINWAY LGV DRIVER TRA,8220,Training-all costs,315.00,0.00,315.00
Resources BK0010,Procurement Sales & Business Services,065504,Business Support - Meadowfield,Supplies and Services,352001,Conference Expenses,07-Jun-2022,000008268232788,PAYPAL ADDLEISUREL,7392,Conferencesseminars fees etc,834.00,139.00,695.00
Children and Young Peoples Services,Head of Early Help Inclusion & Vulnerable Children.,085957,Secure Management,Supplies and Services,304403,Equipment and Materials,07-Jun-2022,000008268232792,AMZNMktplace,5999,Other consumables,34.99,5.83,29.16
Regeneration Economy and Growth,Development and Housing,030771,Durham Advance Flexible Fund,Supplies and Services,324117,Provisions E324,07-Jun-2022,000008268232794,PAYPAL ASDASTORESL,5411,Catering costs - provisions,16.95,0.00,16.95
Regeneration Economy and Growth,Development and Housing,030771,Durham Advance Flexible Fund,Supplies and Services,328041,Clothing uniforms and laundry E328,07-Jun-2022,000008268232796,PAYPAL DENCOWEARLI,5651,Clothing uniforms and laundry,25.13,0.00,25.13
Regeneration Economy and Growth,Development and Housing,030771,Durham Advance Flexible Fund,Supplies and Services,328041,Clothing uniforms and laundry E328,07-Jun-2022,000008268232798,PAYPAL SHOEZONERET,5661,Clothing uniforms and laundry,12.99,2.17,10.82
Children and Young Peoples Services,Head of Early Help Inclusion & Vulnerable Children.,085954,Walworth,Transfer Payments,515002,Social Services Clients,07-Jun-2022,000008268232810,FOOTASYLUM ORDER,5691,Pocket money,69.96,11.66,58.30
Children and Young Peoples Services,Head of Early Help Inclusion & Vulnerable Children.,085954,Walworth,Transfer Payments,515002,Social Services Clients,07-Jun-2022,000008268232810 - 1,FOOTASYLUM ORDER,5691,Pocket money,0.03,,0.03
Children and Young Peoples Services,Head of Early Help Inclusion & Vulnerable Children.,085956,Lumley,Transfer Payments,515002,Social Services Clients,07-Jun-2022,000008268232812,AMZNMktplace,5999,Pocket money,8.99,1.50,7.49
Children and Young Peoples Services,Head of Early Help Inclusion & Vulnerable Children.,085956,Lumley,Supplies and Services,332047,Printing Stationery and Gen Off Exps,07-Jun-2022,000008268232814,AMZNMktplace,5999,Stationery,23.97,4.00,19.97
Children and Young Peoples Services,Head of Early Help Inclusion & Vulnerable Children.,085956,Lumley,Transfer Payments,515002,Social Services Clients,07-Jun-2022,000008268232816,BEAUTY OUTLET LTD,5977,Pocket money,8.97,0.00,8.97
Children and Young Peoples Services,Head of Early Help Inclusion & Vulnerable Children.,085957,Secure Management,Supplies and Services,332047,Printing Stationery and Gen Off Exps,07-Jun-2022,000008268232818,AMZNMKTPLACE AMAZON.CO,5999,Stationery,276.00,46.00,230.00
Children and Young Peoples Services,Head of Early Help Inclusion & Vulnerable Children.,085962,Aycliffe Secure - Durham,Supplies and Services,384302,Miscellaneous Expenses,07-Jun-2022,000008268232820,SMYTHSTOYS.COM,5945,Activity expenses,449.99,0.00,449.99
Children and Young Peoples Services,Head of Early Help Inclusion & Vulnerable Children.,085962,Aycliffe Secure - Durham,Transfer Payments,515002,Social Services Clients,07-Jun-2022,000008268232822,VERY,5964,Pocket money,43.99,0.00,43.99
Resources BK0010,HR & Employee Services,010984,Training and Development,Supplies and Services,384999,Miscellaneous Expenses,07-Jun-2022,000008268232860,TRADING STANDARDS INST,5965,Other expenses,44.00,0.00,44.00
Regeneration Economy and Growth,Development and Housing,030771,Durham Advance Flexible Fund,Employees,040149,Recruitment Instruction and Training,07-Jun-2022,000008268232906,iZ THE WITHAM HAL,8398,Training-all costs,7.50,0.00,7.50
Regeneration Economy and Growth,Development and Housing,030771,Durham Advance Flexible Fund,Transport,235057,Public Transport,07-Jun-2022,000008268232908,3C_ NSL Durham WAP,7523,Staff travelling,2.50,0.00,2.50
Dedicated Schools Grant BG0015,DSG Schools Block,418516,Belmont Community School 004185 - Marketing,Supplies and Services,324117,Provisions E324,07-Jun-2022,000008268232914,TESCO STORES 2371,5411,Catering costs - provisions,3.58,0.00,3.58
Children and Young Peoples Services,Head of Childrens Social Care,085364,Children Looked After Team 1,Supplies and Services,340001,Postages E340,07-Jun-2022,000008268232916,POST OFFICE COUNTER,9402,Postages,4.16,0.00,4.16
Children and Young Peoples Services,Head of Childrens Social Care,085366,Children Looked After Team 3,Supplies and Services,338045,Services,07-Jun-2022,000008268232918,HM PASSPORT OFFICE,9399,Legal expenses 338045,75.50,0.00,75.50
Children and Young Peoples Services,Head of Childrens Social Care,085368,Children Looked After Team 5,Supplies and Services,338045,Services,07-Jun-2022,000008268232920,HM PASSPORT OFFICE,9399,Legal expenses 338045,75.50,0.00,75.50
Children and Young Peoples Services,Head of Childrens Social Care,085368,Children Looked After Team 5,Supplies and Services,338045,Services,07-Jun-2022,000008268232922,HM PASSPORT OFFICE,9399,Legal expenses 338045,49.00,0.00,49.00
Children and Young Peoples Services,Head of Childrens Social Care,085364,Children Looked After Team 1,Supplies and Services,338045,Services,07-Jun-2022,000008268232924,GEN REGISTER OFFICE,9399,Legal expenses 338045,33.00,0.00,33.00
Children and Young Peoples Services,Head of Childrens Social Care,085351,Framwellgate Moor CU,Supplies and Services,324117,Provisions E324,07-Jun-2022,000008268232954,MARKS&SPENCER PLC SF,5411,Catering costs - provisions,4.90,0.00,4.90
Children and Young Peoples Services,Head of Childrens Social Care,085351,Framwellgate Moor CU,Supplies and Services,324117,Provisions E324,07-Jun-2022,000008268232956,MARKS&SPENCER PLC SF,5411,Catering costs - provisions,8.15,0.00,8.15
Children and Young Peoples Services,Head of Childrens Social Care,085347,Solo Home The Manse,Supplies and Services,324117,Provisions E324,07-Jun-2022,000008268232960,B&M 681 - DURHAM,5399,Catering costs - provisions,17.00,0.00,17.00
Children and Young Peoples Services,Head of Education and Skills,071732,Dean Bank Childcare,Supplies and Services,324117,Provisions E324,07-Jun-2022,000008268232970,ASDA GROCERIES ONLINE,5411,Catering costs - provisions,104.44,0.00,104.44
Children and Young Peoples Services,Head of Education and Skills,071732,Dean Bank Childcare,Supplies and Services,324117,Provisions E324,07-Jun-2022,000008268232972,ASDA GROCERIES ONLINE,5411,Catering costs - provisions,-6.36,0.00,-6.36
Regeneration Economy and Growth,Culture Sport and Tourism,011286,Wolsingham School Leisure Centre,Supplies and Services,304259,Equipment and Materials,07-Jun-2022,000008268232974,AMZNMKTPLACE AMAZON.CO,5999,Equipment-purchase and rental,115.99,19.33,96.66
Neighbourhoods and Climate Change,Environmental Services,031200,North Pennines Core,Supplies and Services,348037,Subsistence E348,07-Jun-2022,000008268232986,THE BONNY MOORHEN,5813,Subsistence,38.30,0.00,38.30
Children and Young Peoples Services,Head of Early Help Inclusion & Vulnerable Children.,074000,National Supporting Families Programme,Transfer Payments,525033,Other,07-Jun-2022,000008268232998,AMZNMktplace,5999,Grants to individuals,23.80,4.00,19.80
Children and Young Peoples Services,Head of Early Help Inclusion & Vulnerable Children.,074000,National Supporting Families Programme,Supplies and Services,304403,Equipment and Materials,07-Jun-2022,000008268233000,AMZNMktplace,5999,Other consumables,59.30,9.88,49.42
Children and Young Peoples Services,Head of Early Help Inclusion & Vulnerable Children.,074000,National Supporting Families Programme,Transfer Payments,525033,Other,07-Jun-2022,000008268233002,AMZNMktplace,5999,Grants to individuals,27.99,4.67,23.32
Children and Young Peoples Services,Head of Early Help Inclusion & Vulnerable Children.,074000,National Supporting Families Programme,Transfer Payments,525033,Other,07-Jun-2022,000008268233004,AMZNMktplace,5999,Grants to individuals,27.99,4.67,23.32
Children and Young Peoples Services,Head of Early Help Inclusion & Vulnerable Children.,074000,National Supporting Families Programme,Transfer Payments,525033,Other,07-Jun-2022,000008268233006,AMZNMktplace,5999,Grants to individuals,27.99,4.67,23.32
Children and Young Peoples Services,Head of Early Help Inclusion & Vulnerable Children.,074000,National Supporting Families Programme,Transfer Payments,525033,Other,07-Jun-2022,000008268233008,AMZNMktplace,5999,Grants to individuals,118.56,19.76,98.80
Children and Young Peoples Services,Head of Early Help Inclusion & Vulnerable Children.,074000,National Supporting Families Programme,Transfer Payments,525033,Other,07-Jun-2022,000008268233008 - 1,AMZNMktplace,5999,Grants to individuals,0.04,,0.04
Children and Young Peoples Services,Head of Early Help Inclusion & Vulnerable Children.,074000,National Supporting Families Programme,Transfer Payments,525033,Other,07-Jun-2022,000008268233010,AMZNMktplace,5999,Grants to individuals,27.99,4.67,23.32
Children and Young Peoples Services,Head of Early Help Inclusion & Vulnerable Children.,074000,National Supporting Families Programme,Transfer Payments,525033,Other,07-Jun-2022,000008268233012,AMZNMktplace,5999,Grants to individuals,27.99,4.67,23.32
Children and Young Peoples Services,Head of Early Help Inclusion & Vulnerable Children.,074000,National Supporting Families Programme,Transfer Payments,525033,Other,07-Jun-2022,000008268233014,AMZNMktplace,5999,Grants to individuals,27.99,4.67,23.32
Children and Young Peoples Services,Head of Early Help Inclusion & Vulnerable Children.,074000,National Supporting Families Programme,Transfer Payments,525033,Other,07-Jun-2022,000008268233016,AMZNMktplace,5999,Grants to individuals,27.99,4.67,23.32
Children and Young Peoples Services,Head of Early Help Inclusion & Vulnerable Children.,074000,National Supporting Families Programme,Transfer Payments,525033,Other,07-Jun-2022,000008268233018,AMZNMktplace,5999,Grants to individuals,27.99,4.67,23.32
Resources BK0010,Digital Services,065335,School Services - Implementations,Supplies and Services,304259,Equipment and Materials,07-Jun-2022,000008268233028,LAPTOP-LCD-SCREEN,5732,Equipment-purchase and rental,119.28,0.00,119.28
Resources BK0010,Digital Services,065335,School Services - Implementations,Supplies and Services,304403,Equipment and Materials,07-Jun-2022,000008268233030,AMZNMktplace,5999,Other consumables,20.99,3.50,17.49
Neighbourhoods and Climate Change,Environmental Services,010301,C&G - North Grounds Maintenance,Supplies and Services,304221,Equipment and Materials,07-Jun-2022,000008268233070,ARCO LTD,5085,Direct materials,89.99,0.00,89.99
Resources BK0010,Procurement Sales & Business Services,065503,Business Support - Spectrum,Transport,235057,Public Transport,07-Jun-2022,000008268233092,WWW.GONORTHEAST.CO.UK,4111,Staff travelling,25.00,0.00,25.00
Resources BK0010,Procurement Sales & Business Services,065503,Business Support - Spectrum,Supplies and Services,304403,Equipment and Materials,07-Jun-2022,000008268233094,AMZNMktplace,5999,Other consumables,11.58,1.93,9.65
Children and Young Peoples Services,Head of Childrens Social Care,085332,Middlestone Moor CU,Supplies and Services,372009,Subscriptions E372,07-Jun-2022,000008268233096,Photobox Limited,2741,Subscriptions 372009,65.27,0.00,65.27
Children and Young Peoples Services,Head of Childrens Social Care,085332,Middlestone Moor CU,Supplies and Services,372009,Subscriptions E372,07-Jun-2022,000008268233098,Photobox Limited,2741,Subscriptions 372009,13.73,0.00,13.73
Children and Young Peoples Services,Head of Childrens Social Care,085332,Middlestone Moor CU,Supplies and Services,304403,Equipment and Materials,07-Jun-2022,000008268233100,AMZNMktplace,5999,Other consumables,35.54,0.00,35.54
Children and Young Peoples Services,Head of Childrens Social Care,085332,Middlestone Moor CU,Supplies and Services,342033,Computers and Communications,07-Jun-2022,000008268233102,WWW.ALIEXPRESS.COM,5964,Computer hardware,26.90,0.00,26.90
Regeneration Economy and Growth,Culture Sport and Tourism,054233,Bishop Auckland Town Hall Library,Supplies and Services,324117,Provisions E324,07-Jun-2022,000008268233106,HERON FOODS,5411,Catering costs - provisions,19.00,3.17,15.83
Children and Young Peoples Services,Head of Childrens Social Care,085358,Orchard House Sacriston Solo Home,Supplies and Services,304403,Equipment and Materials,07-Jun-2022,000008268233108,AMZNMktplace,5999,Other consumables,12.93,2.16,10.77
Neighbourhoods and Climate Change,Technical Services CM0300,024608,Highways Permit Scheme,Employees,040149,Recruitment Instruction and Training,07-Jun-2022,000008268233138,WWW.TEES.AC.UK,8220,Training-all costs,495.00,0.00,495.00
Children and Young Peoples Services,Head of Childrens Social Care,085341,High Etherley Satelite Home,Supplies and Services,324117,Provisions E324,07-Jun-2022,000008268233158,TESCO STORES 6329,5411,Catering costs - provisions,32.48,0.00,32.48
Children and Young Peoples Services,Head of Childrens Social Care,085551,Short Break Services-Park Hse Sher,Supplies and Services,324117,Provisions E324,07-Jun-2022,000008268233166,TESCO STORES 2371,5411,Catering costs - provisions,50.90,0.00,50.90
Children and Young Peoples Services,Head of Childrens Social Care,085551,Short Break Services-Park Hse Sher,Supplies and Services,348037,Subsistence E348,07-Jun-2022,000008268233168,Fizzy Izzy`s,5812,Subsistence,21.10,0.00,21.10
Children and Young Peoples Services,Head of Childrens Social Care,085551,Short Break Services-Park Hse Sher,Supplies and Services,384237,Miscellaneous Expenses,07-Jun-2022,000008268233170,Larry`s Lanes,7999,Recreational exps outings parties,9.00,0.00,9.00
Regeneration Economy and Growth,Development and Housing,030770,Durham Advance,Supplies and Services,372009,Subscriptions E372,07-Jun-2022,000008268233194,SQ JOJOZ REIKI MAGICK,7299,Subscriptions 372009,75.00,0.00,75.00
Adult and Health Services,Head of Adults,055310,Positive Journeys (Tudhoe),Supplies and Services,324117,Provisions E324,07-Jun-2022,000008268233196,TESCO STORES 2278,5411,Catering costs - provisions,0.69,0.00,0.69
Regeneration Economy and Growth,Development and Housing,030554,International Relations 030554,Supplies and Services,304259,Equipment and Materials,07-Jun-2022,000008268233198,TELEPHONE PAYMENT,9399,Equipment-purchase and rental,277.37,0.00,277.37
Children and Young Peoples Services,Head of Childrens Social Care,085632,Families First Seaham,Supplies and Services,304403,Equipment and Materials,07-Jun-2022,000008268233200,AMZNMktplace,5999,Other consumables,21.25,3.55,17.70
Regeneration Economy and Growth,Culture Sport and Tourism,054235,Bishop Auckland Town Hall Cafe,Supplies and Services,324117,Provisions E324,07-Jun-2022,000008268293656,JR HOLLAND FOODSERVICE,5499,Catering costs - provisions,34.40,0.00,34.40
Regeneration Economy and Growth,Corporate Property and Land,021234,Catering - Locomotion,Supplies and Services,384999,Miscellaneous Expenses,07-Jun-2022,000008268293658,ON A ROLL SANDWICH COM,5199,Other expenses,481.21,0.00,481.21
Regeneration Economy and Growth,Corporate Property and Land,021235,Catering - Wharton Park,Supplies and Services,384999,Miscellaneous Expenses,07-Jun-2022,000008268293662,ON A ROLL SANDWICH COM,5199,Other expenses,213.10,0.00,213.10
Regeneration Economy and Growth,Corporate Property and Land,021235,Catering - Wharton Park,Supplies and Services,324117,Provisions E324,07-Jun-2022,000008268293664,JR HOLLAND FOODSERVICE,5499,Catering costs - provisions,20.09,0.00,20.09
Regeneration Economy and Growth,Culture Sport and Tourism,011263,Louisa Centre 011263,Supplies and Services,324117,Provisions E324,07-Jun-2022,000008268293666,JR HOLLAND FOODSERVICE,5499,Catering costs - provisions,83.13,0.00,83.13
Regeneration Economy and Growth,Culture Sport and Tourism,054812,Gala Theatre - Catering etc,Supplies and Services,324117,Provisions E324,07-Jun-2022,000008268293670,JR HOLLAND FOODSERVICE,5499,Catering costs - provisions,87.91,0.00,87.91
Regeneration Economy and Growth,Culture Sport and Tourism,054812,Gala Theatre - Catering etc,Supplies and Services,324117,Provisions E324,07-Jun-2022,000008268293672,JR HOLLAND FOODSERVICE,5499,Catering costs - provisions,3.84,0.00,3.84
Children and Young Peoples Services,Head of Childrens Social Care,085611,Families First Stanley,Supplies and Services,364301,Grants to Voluntary Organisations,07-Jun-2022,000008273867676,ARGOS LTD,5310,Hardship,276.45,0.00,276.45
Children and Young Peoples Services,Head of Education and Skills,071801,Selby Cottage Childcare Centre,Supplies and Services,304403,Equipment and Materials,07-Jun-2022,000008273867684,AMZNMKTPLACE AMAZON.CO,5999,Other consumables,63.90,10.65,53.25
Children and Young Peoples Services,Head of Education and Skills,071801,Selby Cottage Childcare Centre,Supplies and Services,304403,Equipment and Materials,07-Jun-2022,000008273867684 - 1,AMZNMKTPLACE AMAZON.CO,5999,Other consumables,0.05,,0.05
Regeneration Economy and Growth,Development and Housing,030544,Rural Employability - Client Engagement,Supplies and Services,304259,Equipment and Materials,07-Jun-2022,000008273867858,GALA THEATRE,9399,Equipment-purchase and rental,4.70,0.00,4.70
Regeneration Economy and Growth,Development and Housing,030772,CLLD South,Supplies and Services,304259,Equipment and Materials,07-Jun-2022,000008273867922,Durham County CNCL,9399,Equipment-purchase and rental,11.00,0.00,11.00
Regeneration Economy and Growth,Development and Housing,030776,LINKCD Flexible Fund,Supplies and Services,328041,Clothing uniforms and laundry E328,07-Jun-2022,000008273868026,ARGOS LTD,5310,Clothing uniforms and laundry,52.94,0.00,52.94
Children and Young Peoples Services,Head of Early Help Inclusion & Vulnerable Children.,085957,Secure Management,Supplies and Services,304403,Equipment and Materials,07-Jun-2022,000008273868032,AMZNMKTPLACE AMAZON.CO,5999,Other consumables,59.96,10.00,49.96
Children and Young Peoples Services,Head of Early Help Inclusion & Vulnerable Children.,085957,Secure Management,Supplies and Services,304403,Equipment and Materials,07-Jun-2022,000008273868036,AMZNMKTPLACE AMAZON.CO,5999,Other consumables,29.98,5.00,24.98
Children and Young Peoples Services,Head of Childrens Social Care,085364,Children Looked After Team 1,Premises,120037,Energy Costs,07-Jun-2022,000008273868084,WWW.BRITISHGAS.CO.,4900,Other fuels,"1,832.82",0.00,1832.82
Children and Young Peoples Services,Head of Early Help Inclusion & Vulnerable Children.,085954,Walworth,Transfer Payments,515002,Social Services Clients,07-Jun-2022,000008273868092,JD SPORTS INTERNET,5941,Pocket money,75.00,0.00,75.00
Children and Young Peoples Services,Head of Early Help Inclusion & Vulnerable Children.,085962,Aycliffe Secure - Durham,Transfer Payments,515002,Social Services Clients,07-Jun-2022,000008273868096,JD SPORTS INTERNET,5941,Pocket money,63.99,0.00,63.99
Children and Young Peoples Services,Head of Early Help Inclusion & Vulnerable Children.,085956,Lumley,Transfer Payments,515002,Social Services Clients,07-Jun-2022,000008273868098,AMZNMKTPLACE AMAZON.CO,5999,Pocket money,9.99,1.67,8.32
Children and Young Peoples Services,Head of Childrens Social Care,085351,Framwellgate Moor CU,Supplies and Services,348037,Subsistence E348,07-Jun-2022,000008273868344,GREGGS,5812,Subsistence,4.45,0.00,4.45
Children and Young Peoples Services,Head of Education and Skills,071802,Louisa Cent Nursery,Supplies and Services,324117,Provisions E324,07-Jun-2022,000008273868360,ALDI STORES,5411,Catering costs - provisions,13.99,0.00,13.99
Children and Young Peoples Services,Head of Childrens Social Care,085334,West Rainton Satelite Home,Transport,215995,Running Costs of Vehicles,07-Jun-2022,000008273868778,GULF WEST RAINTON,5541,Vehicle running expenses,51.89,0.00,51.89
Neighbourhoods and Climate Change,Environmental Services,031071,E&D - Sustainability and Climate Change,Supplies and Services,348037,Subsistence E348,07-Jun-2022,000008273868838,RSTIDERNA,5812,Subsistence,251.86,0.00,251.86
Regeneration Economy and Growth,Development and Housing,031634,LOCAL LETTINGS AGENCY,Supplies and Services,324117,Provisions E324,07-Jun-2022,000008273868860,CO-OP GROUP 310015,5411,Catering costs - provisions,20.00,0.00,20.00
Children and Young Peoples Services,Head of Childrens Social Care,085341,High Etherley Satelite Home,Supplies and Services,304999,Equipment and Materials,07-Jun-2022,000008273868868,ARGOS LTD,5310,Misc equipment tools and materials,24.00,0.00,24.00
Regeneration Economy and Growth,Corporate Property and Land,010525,Catering - Green Lane,Supplies and Services,324117,Provisions E324,07-Jun-2022,000008274013314,BATLEYS PERTH,5300,Catering costs - provisions,128.58,21.43,107.15
Regeneration Economy and Growth,Corporate Property and Land,010525,Catering - Green Lane,Supplies and Services,324117,Provisions E324,07-Jun-2022,000008274013314 - 1,BATLEYS PERTH,5300,Catering costs - provisions,91.30,,91.30
Regeneration Economy and Growth,Corporate Property and Land,011296,Catering - Crimdon Dene Hub,Supplies and Services,384999,Miscellaneous Expenses,07-Jun-2022,000008274013342,G M PACKAGING UK LIMIT,5046,Other expenses,105.62,0.00,105.62
Regeneration Economy and Growth,Culture Sport and Tourism,054235,Bishop Auckland Town Hall Cafe,Supplies and Services,324117,Provisions E324,07-Jun-2022,000008274013362,BATLEYS PERTH,5300,Catering costs - provisions,194.52,32.42,162.10
Regeneration Economy and Growth,Culture Sport and Tourism,054235,Bishop Auckland Town Hall Cafe,Supplies and Services,324117,Provisions E324,07-Jun-2022,000008274013362 - 1,BATLEYS PERTH,5300,Catering costs - provisions,229.04,,229.04
Neighbourhoods and Climate Change,Environmental Services,011060,C&G - Hardwick Park Catering,Supplies and Services,324117,Provisions E324,07-Jun-2022,000008274013378,BATLEYS PERTH,5300,Catering costs - provisions,272.94,45.49,227.45
Neighbourhoods and Climate Change,Environmental Services,011060,C&G - Hardwick Park Catering,Supplies and Services,324117,Provisions E324,07-Jun-2022,000008274013378 - 1,BATLEYS PERTH,5300,Catering costs - provisions,157.77,,157.77
Regeneration Economy and Growth,Corporate Property and Land,021234,Catering - Locomotion,Supplies and Services,384999,Miscellaneous Expenses,07-Jun-2022,000008274013390,G M PACKAGING UK LIMIT,5046,Other expenses,105.53,0.00,105.53
Regeneration Economy and Growth,Corporate Property and Land,021234,Catering - Locomotion,Supplies and Services,324117,Provisions E324,07-Jun-2022,000008274013392,BATLEYS PERTH,5300,Catering costs - provisions,52.92,8.82,44.10
Regeneration Economy and Growth,Corporate Property and Land,021234,Catering - Locomotion,Supplies and Services,324117,Provisions E324,07-Jun-2022,000008274013392 - 1,BATLEYS PERTH,5300,Catering costs - provisions,42.55,,42.55
Regeneration Economy and Growth,Culture Sport and Tourism,054812,Gala Theatre - Catering etc,Supplies and Services,384999,Miscellaneous Expenses,07-Jun-2022,000008274013404,G M PACKAGING UK LIMIT,5046,Other expenses,103.68,0.00,103.68
Regeneration Economy and Growth,Culture Sport and Tourism,054812,Gala Theatre - Catering etc,Supplies and Services,324117,Provisions E324,07-Jun-2022,000008274013408,BATLEYS PERTH,5300,Catering costs - provisions,-0.77,0.00,-0.77
Regeneration Economy and Growth,Business Durham CL0850,030689,Inward Investment and Aftercare,Supplies and Services,342222,Computers and Communications,07-Jun-2022,000008285741854,FASTHOSTS,4816,Comp hardware purch-network servers,6.34,0.00,6.34
Regeneration Economy and Growth,Culture Sport and Tourism,030705,Visit County Durham 030705,Supplies and Services,342033,Computers and Communications,07-Jun-2022,000008285742182,FASTHOSTS,4816,Computer hardware,6.34,1.06,5.28
Neighbourhoods and Climate Change,Community Protection,010809,Community Protection Management,Supplies and Services,304403,Equipment and Materials,08-Jun-2022,000008268233062,AMZNMktplace,5999,Other consumables,16.99,0.00,16.99
Neighbourhoods and Climate Change,Environmental Services,031071,E&D - Sustainability and Climate Change,Supplies and Services,348037,Subsistence E348,08-Jun-2022,000008268233156,MOOSEHEAD BAR,5812,Subsistence,4.52,0.00,4.52
Children and Young Peoples Services,Head of Education and Skills,071801,Selby Cottage Childcare Centre,Supplies and Services,304999,Equipment and Materials,08-Jun-2022,000008273867686,Amazon Prime 2C8O21NX4,5968,Misc equipment tools and materials,7.99,0.00,7.99
Children and Young Peoples Services,Head of Education and Skills,071801,Selby Cottage Childcare Centre,Supplies and Services,304403,Equipment and Materials,08-Jun-2022,000008273867690,AMZNMktplace,5999,Other consumables,2.99,0.50,2.49
Children and Young Peoples Services,Head of Education and Skills,071801,Selby Cottage Childcare Centre,Supplies and Services,304403,Equipment and Materials,08-Jun-2022,000008273867692,AMZNMktplace,5999,Other consumables,24.98,4.16,20.82
Children and Young Peoples Services,Head of Education and Skills,071801,Selby Cottage Childcare Centre,Supplies and Services,304403,Equipment and Materials,08-Jun-2022,000008273867694,AMZNMktplace,5999,Other consumables,23.98,4.00,19.98
Children and Young Peoples Services,Head of Education and Skills,071801,Selby Cottage Childcare Centre,Supplies and Services,304403,Equipment and Materials,08-Jun-2022,000008273867698,AMZNMktplace,5999,Other consumables,31.92,5.36,26.56
Children and Young Peoples Services,Head of Education and Skills,071801,Selby Cottage Childcare Centre,Supplies and Services,304403,Equipment and Materials,08-Jun-2022,000008273867700,AMZNMktplace,5999,Other consumables,6.98,1.16,5.82
Children and Young Peoples Services,Head of Education and Skills,071801,Selby Cottage Childcare Centre,Supplies and Services,304403,Equipment and Materials,08-Jun-2022,000008273867702,AMZNMktplace,5999,Other consumables,42.00,7.00,35.00
Children and Young Peoples Services,Head of Education and Skills,071801,Selby Cottage Childcare Centre,Supplies and Services,324117,Provisions E324,08-Jun-2022,000008273867706,ASDA GROCERIES ONLINE,5411,Catering costs - provisions,160.18,0.00,160.18
Children and Young Peoples Services,Head of Education and Skills,071801,Selby Cottage Childcare Centre,Supplies and Services,304403,Equipment and Materials,08-Jun-2022,000008273867708,AMZNMktplace,5999,Other consumables,75.00,12.50,62.50
Children and Young Peoples Services,Head of Education and Skills,071801,Selby Cottage Childcare Centre,Supplies and Services,324117,Provisions E324,08-Jun-2022,000008273867710,ASDA GROCERIES ONLINE,5411,Catering costs - provisions,-0.70,0.00,-0.70
Children and Young Peoples Services,Head of Childrens Social Care,085341,High Etherley Satelite Home,Supplies and Services,324117,Provisions E324,08-Jun-2022,000008273867726,TESCO STORES 6329,5411,Catering costs - provisions,7.09,0.00,7.09
Regeneration Economy and Growth,Culture Sport and Tourism,054731,Killhope Lead Mining Centre,Supplies and Services,304259,Equipment and Materials,08-Jun-2022,000008273867772,AMZNMktplace,5999,Equipment-purchase and rental,59.99,10.00,49.99
Regeneration Economy and Growth,Culture Sport and Tourism,030712,VCD - Project Delivery,Supplies and Services,384199,Miscellaneous Expenses,08-Jun-2022,000008273867778,PAYPAL WEBALON,5817,Other hired and contracted services,6.29,0.00,6.29
Children and Young Peoples Services,Head of Childrens Social Care,085332,Middlestone Moor CU,Supplies and Services,324117,Provisions E324,08-Jun-2022,000008273867798,HOME BARGAINS,5251,Catering costs - provisions,44.52,0.00,44.52
Children and Young Peoples Services,Head of Childrens Social Care,085332,Middlestone Moor CU,Supplies and Services,324117,Provisions E324,08-Jun-2022,000008273867800,TESCO STORES 6329,5411,Catering costs - provisions,6.15,0.00,6.15
Neighbourhoods and Climate Change,Environmental Services,010367,C&G - South Grounds Maintenance,Supplies and Services,304403,Equipment and Materials,08-Jun-2022,000008273867838,MAXWELLS DIY,5231,Other consumables,10.00,1.67,8.33
Neighbourhoods and Climate Change,Environmental Services,010367,C&G - South Grounds Maintenance,Supplies and Services,324117,Provisions E324,08-Jun-2022,000008273867842,WILKO RETAIL LIMITED,5399,Catering costs - provisions,123.50,20.58,102.92
Neighbourhoods and Climate Change,Environmental Services,010367,C&G - South Grounds Maintenance,Supplies and Services,324117,Provisions E324,08-Jun-2022,000008273867846,WILKO RETAIL LIMITED,5399,Catering costs - provisions,58.50,9.75,48.75
Regeneration Economy and Growth,Development and Housing,030776,LINKCD Flexible Fund,Supplies and Services,328041,Clothing uniforms and laundry E328,08-Jun-2022,000008273867854,MATALAN.CO.UK,5691,Clothing uniforms and laundry,-4.95,0.00,-4.95
Children and Young Peoples Services,Head of Childrens Social Care,085511,Emergency Duty Team,Supplies and Services,352001,Conference Expenses,08-Jun-2022,000008273867912,TRAVELODGE,3615,Conferencesseminars fees etc,66.28,0.00,66.28
Neighbourhoods and Climate Change,Environmental Services,010367,C&G - South Grounds Maintenance,Supplies and Services,304403,Equipment and Materials,08-Jun-2022,000008273867968,BESCOL,5231,Other consumables,171.60,28.60,143.00
Children and Young Peoples Services,Head of Childrens Social Care,085331,New Lea Childrens Home,Transport,235057,Public Transport,08-Jun-2022,000008273867988,Trainline.COM,4112,Staff travelling,41.06,0.00,41.06
Children and Young Peoples Services,Head of Education and Skills,071732,Dean Bank Childcare,Supplies and Services,324117,Provisions E324,08-Jun-2022,000008273867994,TESCO STORES 2916,5411,Catering costs - provisions,21.24,0.00,21.24
Adult and Health Services,Head of Adults,055302,Durham Pathways,Supplies and Services,304403,Equipment and Materials,08-Jun-2022,000008273867998,AMZNMktplace,5999,Other consumables,11.48,1.91,9.57
Adult and Health Services,Head of Adults,055302,Durham Pathways,Supplies and Services,324117,Provisions E324,08-Jun-2022,000008273868002,WILKO RETAIL LIMITED,5399,Catering costs - provisions,4.50,0.00,4.50
Neighbourhoods and Climate Change,Environmental Services,026591,C&G - Hardwick Park,Supplies and Services,332047,Printing Stationery and Gen Off Exps,08-Jun-2022,000008273868010,WWW.TILLROLLKING.CO.UK,5943,Stationery,61.13,0.00,61.13
Children and Young Peoples Services,Head of Early Help Inclusion & Vulnerable Children.,085957,Secure Management,Supplies and Services,304403,Equipment and Materials,08-Jun-2022,000008273868040,AMZNMktplace,5999,Other consumables,6.92,1.15,5.77
Children and Young Peoples Services,Head of Early Help Inclusion & Vulnerable Children.,085957,Secure Management,Supplies and Services,304403,Equipment and Materials,08-Jun-2022,000008273868046,AMZNMktplace,5999,Other consumables,18.98,3.17,15.81
Children and Young Peoples Services,Head of Early Help Inclusion & Vulnerable Children.,085957,Secure Management,Supplies and Services,304403,Equipment and Materials,08-Jun-2022,000008273868050,AMZNMktplace,5999,Other consumables,4.91,0.82,4.09
Neighbourhoods and Climate Change,Environmental Services,010301,C&G - North Grounds Maintenance,Supplies and Services,304221,Equipment and Materials,08-Jun-2022,000008273868054,ARCO LTD,5085,Direct materials,42.92,0.00,42.92
Regeneration Economy and Growth,Development and Housing,030771,Durham Advance Flexible Fund,Transport,235057,Public Transport,08-Jun-2022,000008273868074,WWW.GONORTHEAST.CO.UK,4111,Staff travelling,4.50,0.00,4.50
Regeneration Economy and Growth,Development and Housing,030771,Durham Advance Flexible Fund,Transport,235057,Public Transport,08-Jun-2022,000008273868076,WWW.GONORTHEAST.CO.UK,4111,Staff travelling,4.50,0.00,4.50
Regeneration Economy and Growth,Development and Housing,030771,Durham Advance Flexible Fund,Transport,235057,Public Transport,08-Jun-2022,000008273868078,WWW.GONORTHEAST.CO.UK,4111,Staff travelling,4.50,0.00,4.50
Children and Young Peoples Services,Head of Early Help Inclusion & Vulnerable Children.,085952,Secure Education,Supplies and Services,332047,Printing Stationery and Gen Off Exps,08-Jun-2022,000008273868102,AMZNMKTPLACE AMAZON.CO,5999,Stationery,8.10,1.35,6.75
Children and Young Peoples Services,Head of Early Help Inclusion & Vulnerable Children.,085952,Secure Education,Supplies and Services,332047,Printing Stationery and Gen Off Exps,08-Jun-2022,000008273868102 - 1,AMZNMKTPLACE AMAZON.CO,5999,Stationery,0.10,,0.10
Children and Young Peoples Services,Head of Early Help Inclusion & Vulnerable Children.,085962,Aycliffe Secure - Durham,Transfer Payments,515002,Social Services Clients,08-Jun-2022,000008273868104,Amazon.co.uk 2C4LO5NO4,5969,Pocket money,27.98,4.66,23.32
Children and Young Peoples Services,Head of Early Help Inclusion & Vulnerable Children.,085956,Lumley,Transfer Payments,515002,Social Services Clients,08-Jun-2022,000008273868106,AMZNMktplace,5999,Pocket money,2.02,0.34,1.68
Children and Young Peoples Services,Head of Early Help Inclusion & Vulnerable Children.,085965,Barnard,Transfer Payments,515002,Social Services Clients,08-Jun-2022,000008273868108,AMZNMktplace,5999,Pocket money,4.81,0.80,4.01
Children and Young Peoples Services,Head of Early Help Inclusion & Vulnerable Children.,085965,Barnard,Transfer Payments,515002,Social Services Clients,08-Jun-2022,000008273868110,AMZNMktplace,5999,Pocket money,28.26,4.72,23.54
Children and Young Peoples Services,Head of Early Help Inclusion & Vulnerable Children.,085954,Walworth,Supplies and Services,384302,Miscellaneous Expenses,08-Jun-2022,000008273868114,AMZNMktplace,5999,Activity expenses,34.95,5.83,29.12
Children and Young Peoples Services,Head of Early Help Inclusion & Vulnerable Children.,085965,Barnard,Transfer Payments,515002,Social Services Clients,08-Jun-2022,000008273868118,AMZNMktplace,5999,Pocket money,3.00,0.50,2.50
Children and Young Peoples Services,Head of Early Help Inclusion & Vulnerable Children.,085954,Walworth,Supplies and Services,384302,Miscellaneous Expenses,08-Jun-2022,000008273868120,AMZNMktplace,5999,Activity expenses,24.99,4.17,20.82
Children and Young Peoples Services,Head of Early Help Inclusion & Vulnerable Children.,085954,Walworth,Supplies and Services,384302,Miscellaneous Expenses,08-Jun-2022,000008273868124,AMZNMktplace,5999,Activity expenses,9.99,0.00,9.99
Children and Young Peoples Services,Head of Early Help Inclusion & Vulnerable Children.,085965,Barnard,Supplies and Services,308011,Furniture,08-Jun-2022,000008273868128,AMZNMKTPLACE AMAZON.CO,5999,Furniture repair and replacement,20.85,3.48,17.37
Children and Young Peoples Services,Head of Early Help Inclusion & Vulnerable Children.,085962,Aycliffe Secure - Durham,Supplies and Services,324117,Provisions E324,08-Jun-2022,000008273868130,TESCO STORES 6329,5411,Catering costs - provisions,67.91,0.00,67.91
Regeneration Economy and Growth,Development and Housing,030554,International Relations 030554,Transport,235057,Public Transport,08-Jun-2022,000008273868258,3C_ NSL Durham WAP,7523,Staff travelling,4.00,0.00,4.00
Children and Young Peoples Services,Head of Early Help Inclusion & Vulnerable Children.,088109,Dean Bank and Tudhoe Family Centre,Supplies and Services,384302,Miscellaneous Expenses,08-Jun-2022,000008273868264,AMZNMktplace,5999,Activity expenses,79.95,13.35,66.60
Children and Young Peoples Services,Head of Childrens Social Care,085366,Children Looked After Team 3,Supplies and Services,338045,Services,08-Jun-2022,000008273868266,DARLINGTON BC INTERNET,9399,Legal expenses 338045,11.00,0.00,11.00
Children and Young Peoples Services,Head of Childrens Social Care,085365,Children Looked After Team 2,Supplies and Services,338045,Services,08-Jun-2022,000008273868272,GEN REGISTER OFFICE,9399,Legal expenses 338045,11.00,0.00,11.00
Children and Young Peoples Services,Head of Childrens Social Care,085366,Children Looked After Team 3,Supplies and Services,338045,Services,08-Jun-2022,000008273868274,GEN REGISTER OFFICE,9399,Legal expenses 338045,11.00,0.00,11.00
Children and Young Peoples Services,Head of Childrens Social Care,085366,Children Looked After Team 3,Supplies and Services,338045,Services,08-Jun-2022,000008273868278,GEN REGISTER OFFICE,9399,Legal expenses 338045,11.00,0.00,11.00
Children and Young Peoples Services,Head of Childrens Social Care,085351,Framwellgate Moor CU,Supplies and Services,304403,Equipment and Materials,08-Jun-2022,000008273868348,TIMPSON LTD,5999,Other consumables,32.00,0.00,32.00
Children and Young Peoples Services,Head of Childrens Social Care,085351,Framwellgate Moor CU,Transport,215995,Running Costs of Vehicles,08-Jun-2022,000008273868350,ASDA PETROL 4178,5541,Vehicle running expenses,2.60,0.00,2.60
Children and Young Peoples Services,Head of Education and Skills,071802,Louisa Cent Nursery,Supplies and Services,324117,Provisions E324,08-Jun-2022,000008273868364,ASDA SUPERSTORE,5411,Catering costs - provisions,14.88,0.00,14.88
Regeneration Economy and Growth,Corporate Property and Land,020073,Bldg Serv - R&M Div 73 - Gas Servicing,Supplies and Services,372009,Subscriptions E372,08-Jun-2022,000008273868370,CAPITA GAS,8699,Subscriptions 372009,31.80,0.00,31.80
Neighbourhoods and Climate Change,Environmental Services,010367,C&G - South Grounds Maintenance,Supplies and Services,304221,Equipment and Materials,08-Jun-2022,000008273868394,MACHINE MART WEB,7394,Direct materials,125.69,0.00,125.69
Neighbourhoods and Climate Change,Environmental Services,031200,North Pennines Core,Supplies and Services,348037,Subsistence E348,08-Jun-2022,000008273868442,MANAO THAI,5814,Subsistence,22.90,0.00,22.90
Neighbourhoods and Climate Change,Environmental Services,031200,North Pennines Core,Supplies and Services,324117,Provisions E324,08-Jun-2022,000008273868446,THE GREEK KITCHEN,5811,Catering costs - provisions,54.25,0.00,54.25
Neighbourhoods and Climate Change,Environmental Services,031200,North Pennines Core,Transport,235057,Public Transport,08-Jun-2022,000008273868450,PRINCE BISHOP SHOPPING,7523,Staff travelling,3.30,0.00,3.30
Neighbourhoods and Climate Change,Environmental Services,031200,North Pennines Core,Supplies and Services,324117,Provisions E324,08-Jun-2022,000008273868452,The Coffee House,5462,Catering costs - provisions,5.00,0.00,5.00
Children and Young Peoples Services,Head of Childrens Social Care,085334,West Rainton Satelite Home,Supplies and Services,304259,Equipment and Materials,08-Jun-2022,000008273868480,DOLPHIN CENTRE,9399,Equipment-purchase and rental,3.95,0.00,3.95
Resources BK0010,Digital Services,065335,School Services - Implementations,Supplies and Services,344033,Telephones,08-Jun-2022,000008273868496,NETS Zandgroup AB,4812,Telephones general-all costs,46.13,0.00,46.13
Children and Young Peoples Services,Head of Early Help Inclusion & Vulnerable Children.,085955,Auckland,Supplies and Services,304259,Equipment and Materials,08-Jun-2022,000008273868534,AMZNMKTPLACE AMAZON.CO,5999,Equipment-purchase and rental,16.99,2.83,14.16
Children and Young Peoples Services,Head of Early Help Inclusion & Vulnerable Children.,085957,Secure Management,Supplies and Services,304405,Equipment and Materials,08-Jun-2022,000008273868538,AMZNMKTPLACE AMAZON.CO,5999,Medical supplies,16.99,2.83,14.16
Children and Young Peoples Services,Head of Early Help Inclusion & Vulnerable Children.,085962,Aycliffe Secure - Durham,Supplies and Services,304259,Equipment and Materials,08-Jun-2022,000008273868544,Amazon.co.uk 2C5VK4354,5969,Equipment-purchase and rental,21.78,3.63,18.15
Children and Young Peoples Services,Head of Early Help Inclusion & Vulnerable Children.,085962,Aycliffe Secure - Durham,Supplies and Services,304259,Equipment and Materials,08-Jun-2022,000008273868544 - 1,Amazon.co.uk 2C5VK4354,5969,Equipment-purchase and rental,0.06,,0.06
Children and Young Peoples Services,Head of Early Help Inclusion & Vulnerable Children.,085965,Barnard,Supplies and Services,384302,Miscellaneous Expenses,08-Jun-2022,000008273868546,SHOWCASE TEESSIDE W,7832,Activity expenses,19.00,0.00,19.00
Children and Young Peoples Services,Head of Childrens Social Care,085347,Solo Home The Manse,Supplies and Services,328041,Clothing uniforms and laundry E328,08-Jun-2022,000008273868582,Planet Leisure Ltd,7996,Clothing uniforms and laundry,11.80,0.00,11.80
Neighbourhoods and Climate Change,Community Protection,010809,Community Protection Management,Supplies and Services,352001,Conference Expenses,08-Jun-2022,000008273868596,RICARDO-AEA LIMITE,7392,Conferencesseminars fees etc,78.00,0.00,78.00
Neighbourhoods and Climate Change,Environmental Services,010301,C&G - North Grounds Maintenance,Supplies and Services,304999,Equipment and Materials,08-Jun-2022,000008273868600,GUSTHARTS,5072,Misc equipment tools and materials,396.40,0.00,396.40
Neighbourhoods and Climate Change,Environmental Services,010301,C&G - North Grounds Maintenance,Supplies and Services,304999,Equipment and Materials,08-Jun-2022,000008273868606,GUSTHARTS,5072,Misc equipment tools and materials,-18.88,0.00,-18.88
Children and Young Peoples Services,Head of Childrens Social Care,085351,Framwellgate Moor CU,Employees,040149,Recruitment Instruction and Training,08-Jun-2022,000008273868640,ALISON,8299,Training-all costs,61.82,0.00,61.82
Children and Young Peoples Services,Head of Childrens Social Care,085351,Framwellgate Moor CU,Supplies and Services,304403,Equipment and Materials,08-Jun-2022,000008273868644,FIRSTAID4LESS.CO.UK,5999,Other consumables,53.04,0.00,53.04
Regeneration Economy and Growth,Development and Housing,030554,International Relations 030554,Transport,235057,Public Transport,08-Jun-2022,000008273868688,PRINCE BISHOP SHOPPING,7523,Staff travelling,6.20,0.00,6.20
Regeneration Economy and Growth,Development and Housing,030554,International Relations 030554,Supplies and Services,352001,Conference Expenses,08-Jun-2022,000008273868690,MARRIOTT,3509,Conferencesseminars fees etc,74.80,0.00,74.80
Children and Young Peoples Services,Head of Early Help Inclusion & Vulnerable Children.,085962,Aycliffe Secure - Durham,Supplies and Services,304403,Equipment and Materials,08-Jun-2022,000008273868694,AMZNMktplace,5999,Other consumables,12.98,2.16,10.82
Regeneration Economy and Growth,Culture Sport and Tourism,054233,Bishop Auckland Town Hall Library,Supplies and Services,324117,Provisions E324,08-Jun-2022,000008273868718,HERON FOODS,5411,Catering costs - provisions,12.00,0.00,12.00
Resources BK0010,Resources Management CK0450,069000,Resources Management 069000,Supplies and Services,344033,Telephones,08-Jun-2022,000008273868802,APPLE.COM/BILL,5735,Telephones general-all costs,0.79,0.00,0.79
Regeneration Economy and Growth,Communications Management,060270,Communications and Marketing,Supplies and Services,336005,Advertising E336,08-Jun-2022,000008273868804,LINKEDIN-793 6531834,7311,Advertising other than for staff,110.11,0.00,110.11
Neighbourhoods and Climate Change,Environmental Services,031071,E&D - Sustainability and Climate Change,Supplies and Services,348037,Subsistence E348,08-Jun-2022,000008273868830,MOLLANS FALAFEL,5814,Subsistence,32.67,0.00,32.67
Neighbourhoods and Climate Change,Environmental Services,031071,E&D - Sustainability and Climate Change,Supplies and Services,348037,Subsistence E348,08-Jun-2022,000008273868832,iZ KASTANJE KIOSK,5812,Subsistence,10.64,0.00,10.64
Neighbourhoods and Climate Change,Environmental Services,031071,E&D - Sustainability and Climate Change,Supplies and Services,304259,Equipment and Materials,08-Jun-2022,000008273868836,FOLK ROCK,5735,Equipment-purchase and rental,5.24,0.00,5.24
Neighbourhoods and Climate Change,Environmental Services,031071,E&D - Sustainability and Climate Change,Supplies and Services,348037,Subsistence E348,08-Jun-2022,000008273868840,WAYNES COFFEE,5814,Subsistence,18.42,0.00,18.42
Regeneration Economy and Growth,Development and Housing,031634,LOCAL LETTINGS AGENCY,Supplies and Services,324117,Provisions E324,08-Jun-2022,000008273868864,ASDA SUPERSTORE 4987,5411,Catering costs - provisions,1.80,0.00,1.80
Regeneration Economy and Growth,Development and Housing,030771,Durham Advance Flexible Fund,Transport,235057,Public Transport,08-Jun-2022,000008273868906,WWW.GONORTHEAST.CO.UK,4111,Staff travelling,80.00,0.00,80.00
Regeneration Economy and Growth,Corporate Property and Land,030691,Catering - Durham Dales Centre,Supplies and Services,324117,Provisions E324,08-Jun-2022,000008273868936,TESCO STORES 6329,5411,Catering costs - provisions,15.78,0.00,15.78
Children and Young Peoples Services,Head of Early Help Inclusion & Vulnerable Children.,088112,Seaham & Central Durham Intensive Family Support Team,Supplies and Services,304403,Equipment and Materials,08-Jun-2022,000008273868946,AMZNMktplace,5999,Other consumables,20.70,3.45,17.25
Resources BK0010,Procurement Sales & Business Services,065503,Business Support - Spectrum,Supplies and Services,304403,Equipment and Materials,08-Jun-2022,000008273868946 - 1,AMZNMktplace,5999,Other consumables,0.05,,0.05
Regeneration Economy and Growth,Corporate Property and Land,010525,Catering - Green Lane,Supplies and Services,324117,Provisions E324,08-Jun-2022,000008274013326,JR HOLLAND FOODSERVICE,5499,Catering costs - provisions,29.68,0.00,29.68
Regeneration Economy and Growth,Corporate Property and Land,010525,Catering - Green Lane,Supplies and Services,324117,Provisions E324,08-Jun-2022,000008274013330,JR HOLLAND FOODSERVICE,5499,Catering costs - provisions,-3.98,0.00,-3.98
Regeneration Economy and Growth,Corporate Property and Land,011275,Catering -Durham Leadership Centre,Supplies and Services,324117,Provisions E324,08-Jun-2022,000008274013334,JR HOLLAND FOODSERVICE,5499,Catering costs - provisions,20.37,0.00,20.37
Regeneration Economy and Growth,Culture Sport and Tourism,011265,Empire Theatre (Operations),Supplies and Services,324117,Provisions E324,08-Jun-2022,000008274013340,JR HOLLAND FOODSERVICE,5499,Catering costs - provisions,22.18,0.00,22.18
Regeneration Economy and Growth,Corporate Property and Land,011296,Catering - Crimdon Dene Hub,Supplies and Services,324117,Provisions E324,08-Jun-2022,000008274013346,JR HOLLAND FOODSERVICE,5499,Catering costs - provisions,82.96,0.00,82.96
Regeneration Economy and Growth,Corporate Property and Land,030691,Catering - Durham Dales Centre,Supplies and Services,324117,Provisions E324,08-Jun-2022,000008274013348,JR HOLLAND FOODSERVICE,5499,Catering costs - provisions,108.27,0.00,108.27
Regeneration Economy and Growth,Corporate Property and Land,030691,Catering - Durham Dales Centre,Supplies and Services,324117,Provisions E324,08-Jun-2022,000008274013356,JR HOLLAND FOODSERVICE,5499,Catering costs - provisions,19.98,0.00,19.98
Adult and Health Services,Head of Adults,055643,Hawthorn House LD Respite Unit,Supplies and Services,324117,Provisions E324,08-Jun-2022,000008274013374,JR HOLLAND FOODSERVICE,5499,Catering costs - provisions,13.29,0.00,13.29
Adult and Health Services,Head of Adults,055643,Hawthorn House LD Respite Unit,Supplies and Services,324117,Provisions E324,08-Jun-2022,000008274013376,JR HOLLAND FOODSERVICE,5499,Catering costs - provisions,34.67,0.00,34.67
Regeneration Economy and Growth,Culture Sport and Tourism,011263,Louisa Centre 011263,Supplies and Services,324117,Provisions E324,08-Jun-2022,000008274013400,JR HOLLAND FOODSERVICE,5499,Catering costs - provisions,16.40,0.00,16.40
Regeneration Economy and Growth,Corporate Property and Land,021242,Catering - County Hall,Supplies and Services,324117,Provisions E324,08-Jun-2022,000008274013414,JR HOLLAND FOODSERVICE,5499,Catering costs - provisions,15.84,0.00,15.84
Regeneration Economy and Growth,Corporate Property and Land,021242,Catering - County Hall,Supplies and Services,324117,Provisions E324,08-Jun-2022,000008274013416,JR HOLLAND FOODSERVICE,5499,Catering costs - provisions,283.45,0.00,283.45
Regeneration Economy and Growth,Corporate Property and Land,021242,Catering - County Hall,Supplies and Services,324117,Provisions E324,08-Jun-2022,000008274013420,JR HOLLAND FOODSERVICE,5499,Catering costs - provisions,8.37,0.00,8.37
Regeneration Economy and Growth,Corporate Property and Land,021242,Catering - County Hall,Supplies and Services,324117,Provisions E324,08-Jun-2022,000008274013424,JR HOLLAND FOODSERVICE,5499,Catering costs - provisions,63.40,0.00,63.40
Regeneration Economy and Growth,Corporate Property and Land,021324,Catering - Meadowfield,Supplies and Services,324117,Provisions E324,08-Jun-2022,000008274013430,JR HOLLAND FOODSERVICE,5499,Catering costs - provisions,76.09,0.00,76.09
Children and Young Peoples Services,Head of Childrens Social Care,085341,High Etherley Satelite Home,Supplies and Services,348037,Subsistence E348,08-Jun-2022,000008278791398,MCDONALD`S,5812,Subsistence,4.77,0.00,4.77
Children and Young Peoples Services,Head of Childrens Social Care,085334,West Rainton Satelite Home,Supplies and Services,372009,Subscriptions E372,08-Jun-2022,000008278791476,SKY DIGITAL INTERN,4899,Subscriptions 372009,152.03,0.00,152.03
Regeneration Economy and Growth,Development and Housing,030776,LINKCD Flexible Fund,Supplies and Services,328041,Clothing uniforms and laundry E328,08-Jun-2022,000008278791506,MATALAN.CO.UK,5691,Clothing uniforms and laundry,17.95,0.00,17.95
Children and Young Peoples Services,Head of Childrens Social Care,085380,Operations Manager LAC Resources,Supplies and Services,328041,Clothing uniforms and laundry E328,08-Jun-2022,000008278791510,ARGOS LTD,5310,Clothing uniforms and laundry,-140.00,0.00,-140.00
Children and Young Peoples Services,Head of Childrens Social Care,085511,Emergency Duty Team,Employees,040149,Recruitment Instruction and Training,08-Jun-2022,000008278791556,PREMIER INN,3811,Training-all costs,103.00,0.00,103.00
Neighbourhoods and Climate Change,Environmental Services,010367,C&G - South Grounds Maintenance,Supplies and Services,304221,Equipment and Materials,08-Jun-2022,000008278791608,B & Q 1332,5200,Direct materials,16.00,2.67,13.33
Neighbourhoods and Climate Change,Environmental Services,010367,C&G - South Grounds Maintenance,Supplies and Services,328041,Clothing uniforms and laundry E328,08-Jun-2022,000008278791612,ARGOS LTD,5310,Clothing uniforms and laundry,75.00,12.50,62.50
Neighbourhoods and Climate Change,Environmental Services,011060,C&G - Hardwick Park Catering,Supplies and Services,304083,Equipment and Materials,08-Jun-2022,000008278791724,WWW.OFFICEFURNITUREONL,5021,Catering equipment,349.20,0.00,349.20
Regeneration Economy and Growth,Development and Housing,030770,Durham Advance,Employees,040149,Recruitment Instruction and Training,08-Jun-2022,000008278791750,WWW.THEBEAUTYACADE,8220,Training-all costs,449.00,74.83,374.17
Regeneration Economy and Growth,Development and Housing,030771,Durham Advance Flexible Fund,Supplies and Services,324117,Provisions E324,08-Jun-2022,000008278791774,WM MORRISONS STORE,5411,Catering costs - provisions,20.00,0.00,20.00
Neighbourhoods and Climate Change,Environmental Services,010301,C&G - North Grounds Maintenance,Supplies and Services,304221,Equipment and Materials,08-Jun-2022,000008278791780,TOOLSTATION LIMITED,5211,Direct materials,49.64,0.00,49.64
Children and Young Peoples Services,Head of Early Help Inclusion & Vulnerable Children.,085954,Walworth,Supplies and Services,308011,Furniture,08-Jun-2022,000008278791826,B&Q LTD,5211,Furniture repair and replacement,51.00,8.50,42.50
Adult and Health Services,Head of Adults,055643,Hawthorn House LD Respite Unit,Supplies and Services,324117,Provisions E324,08-Jun-2022,000008278791974,CO-OP GROUP 010465,5411,Catering costs - provisions,5.55,0.00,5.55
Children and Young Peoples Services,Head of Childrens Social Care,085351,Framwellgate Moor CU,Supplies and Services,324117,Provisions E324,08-Jun-2022,000008278791994,CO-OP GROUP FOOD,5411,Catering costs - provisions,7.45,0.00,7.45
Children and Young Peoples Services,Head of Childrens Social Care,085351,Framwellgate Moor CU,Supplies and Services,324117,Provisions E324,08-Jun-2022,000008278791998,SAINSBURYS S/MKTS,5411,Catering costs - provisions,57.83,0.00,57.83
Children and Young Peoples Services,Head of Childrens Social Care,085351,Framwellgate Moor CU,Supplies and Services,348037,Subsistence E348,08-Jun-2022,000008278792004,MCDONALDS,5812,Subsistence,3.98,0.00,3.98
Children and Young Peoples Services,Head of Childrens Social Care,085342,16 Hickstead Rise (previously 9 Cedar Ave),Supplies and Services,324117,Provisions E324,08-Jun-2022,000008278792020,ICELAND FOODS,5411,Catering costs - provisions,185.76,0.00,185.76
Children and Young Peoples Services,Head of Early Help Inclusion & Vulnerable Children.,085801,CDYJS - Support,Supplies and Services,304259,Equipment and Materials,08-Jun-2022,000008278792090,JD SPORTS INTERNET,5941,Equipment-purchase and rental,20.00,0.00,20.00
Children and Young Peoples Services,Head of Childrens Social Care,085334,West Rainton Satelite Home,Transport,215995,Running Costs of Vehicles,08-Jun-2022,000008278792110,GULF WEST RAINTON,5541,Vehicle running expenses,3.79,0.00,3.79
Children and Young Peoples Services,Head of Early Help Inclusion & Vulnerable Children.,085957,Secure Management,Supplies and Services,304405,Equipment and Materials,08-Jun-2022,000008278792216,AMZNMKTPLACE AMAZON.CO,5999,Medical supplies,16.92,2.82,14.10
Children and Young Peoples Services,Head of Early Help Inclusion & Vulnerable Children.,085957,Secure Management,Supplies and Services,304405,Equipment and Materials,08-Jun-2022,000008278792216 - 1,AMZNMKTPLACE AMAZON.CO,5999,Medical supplies,0.04,,0.04
Children and Young Peoples Services,Head of Early Help Inclusion & Vulnerable Children.,085962,Aycliffe Secure - Durham,Supplies and Services,304403,Equipment and Materials,08-Jun-2022,000008278792390,AMZNMKTPLACE AMAZON.CO,5999,Other consumables,11.98,2.00,9.98
Children and Young Peoples Services,Head of Early Help Inclusion & Vulnerable Children.,088101,Bullion Lane & Brandon Family Centre,Supplies and Services,304259,Equipment and Materials,08-Jun-2022,000008278792532,DCC Theatres,9399,Equipment-purchase and rental,50.00,0.00,50.00
Regeneration Economy and Growth,Corporate Property and Land,030691,Catering - Durham Dales Centre,Supplies and Services,324117,Provisions E324,08-Jun-2022,000008278792546,CO OP GROUP FOOD,5411,Catering costs - provisions,11.90,0.00,11.90
Neighbourhoods and Climate Change,Environmental Services,011060,C&G - Hardwick Park Catering,Supplies and Services,324117,Provisions E324,08-Jun-2022,000008278863902,BATLEYS PERTH,5300,Catering costs - provisions,-6.89,0.00,-6.89
Children and Young Peoples Services,Head of Childrens Social Care,085331,New Lea Childrens Home,Supplies and Services,304999,Equipment and Materials,08-Jun-2022,000008285743576,SNAPFISH UK,7395,Misc equipment tools and materials,35.38,0.00,35.38
Resources BK0010,Procurement Sales & Business Services,065503,Business Support - Spectrum,Supplies and Services,328041,Clothing uniforms and laundry E328,08-Jun-2022,000008285744222,ARGOS LTD,5310,Clothing uniforms and laundry,93.00,0.00,93.00
Resources BK0010,Procurement Sales & Business Services,065503,Business Support - Spectrum,Supplies and Services,328041,Clothing uniforms and laundry E328,08-Jun-2022,000008285744230,ARGOS LTD,5310,Clothing uniforms and laundry,-6.00,0.00,-6.00
Children and Young Peoples Services,Head of Childrens Social Care,085365,Children Looked After Team 2,Supplies and Services,338045,Services,08-Jun-2022,000008308361830,GEN REGISTER OFFICE,9399,Legal expenses 338045,-11.00,0.00,-11.00
Children and Young Peoples Services,Head of Childrens Social Care,085342,16 Hickstead Rise (previously 9 Cedar Ave),Supplies and Services,372009,Subscriptions E372,09-Jun-2022,000008273868374,NETFLIX.COM,4899,Subscriptions 372009,15.99,0.00,15.99
Children and Young Peoples Services,Head of Childrens Social Care,085351,Framwellgate Moor CU,Employees,040149,Recruitment Instruction and Training,09-Jun-2022,000008273868648,ALISON,8299,Training-all costs,1.70,0.00,1.70
Neighbourhoods and Climate Change,Environmental Services,031071,E&D - Sustainability and Climate Change,Supplies and Services,348037,Subsistence E348,09-Jun-2022,000008273868842,MOLLANS FALAFEL,5814,Subsistence,0.90,0.00,0.90
Neighbourhoods and Climate Change,Environmental Services,031071,E&D - Sustainability and Climate Change,Supplies and Services,348037,Subsistence E348,09-Jun-2022,000008273868844,iZ KASTANJE KIOSK,5812,Subsistence,0.29,0.00,0.29
Neighbourhoods and Climate Change,Environmental Services,031071,E&D - Sustainability and Climate Change,Supplies and Services,304259,Equipment and Materials,09-Jun-2022,000008273868846,FOLK ROCK,5735,Equipment-purchase and rental,0.14,0.00,0.14
Neighbourhoods and Climate Change,Environmental Services,031071,E&D - Sustainability and Climate Change,Supplies and Services,348037,Subsistence E348,09-Jun-2022,000008273868848,RSTIDERNA,5812,Subsistence,6.93,0.00,6.93
Neighbourhoods and Climate Change,Environmental Services,031071,E&D - Sustainability and Climate Change,Supplies and Services,348037,Subsistence E348,09-Jun-2022,000008273868850,WAYNES COFFEE,5814,Subsistence,0.51,0.00,0.51
Regeneration Economy and Growth,Business Durham CL0850,030689,Inward Investment and Aftercare,Supplies and Services,304999,Equipment and Materials,09-Jun-2022,000008278791338,MAILCHIMP MISC,5968,Misc equipment tools and materials,93.99,0.00,93.99
Children and Young Peoples Services,Head of Early Help Inclusion & Vulnerable Children.,071447,Peterlee One Point Hub,Supplies and Services,304259,Equipment and Materials,09-Jun-2022,000008278791350,AMZNMKTPLACE AMAZON.CO,5999,Equipment-purchase and rental,167.76,27.96,139.80
Children and Young Peoples Services,Head of Education and Skills,071801,Selby Cottage Childcare Centre,Supplies and Services,324117,Provisions E324,09-Jun-2022,000008278791354,JR HOLLAND FOODSERVICE,5499,Catering costs - provisions,186.77,0.00,186.77
Children and Young Peoples Services,Head of Education and Skills,071801,Selby Cottage Childcare Centre,Supplies and Services,304403,Equipment and Materials,09-Jun-2022,000008278791356,AMZNMktplace,5999,Other consumables,12.38,2.06,10.32
Children and Young Peoples Services,Head of Education and Skills,071801,Selby Cottage Childcare Centre,Supplies and Services,304403,Equipment and Materials,09-Jun-2022,000008278791360,AMZNMktplace,5999,Other consumables,43.92,7.32,36.60
Children and Young Peoples Services,Head of Education and Skills,071801,Selby Cottage Childcare Centre,Supplies and Services,304403,Equipment and Materials,09-Jun-2022,000008278791360 - 1,AMZNMktplace,5999,Other consumables,0.04,,0.04
Children and Young Peoples Services,Head of Education and Skills,071801,Selby Cottage Childcare Centre,Supplies and Services,304403,Equipment and Materials,09-Jun-2022,000008278791362,AMZNMktplace,5999,Other consumables,30.98,5.16,25.82
Children and Young Peoples Services,Head of Childrens Social Care,085501,Child Care Cases Legal Expenses,Supplies and Services,304403,Equipment and Materials,09-Jun-2022,000008278791402,TUNBRIDGE WELLS REG OF,9399,Other consumables,11.00,0.00,11.00
Children and Young Peoples Services,Head of Childrens Social Care,085347,Solo Home The Manse,Supplies and Services,348037,Subsistence E348,09-Jun-2022,000008278791416,The Italian Farmhouse,5812,Subsistence,71.00,0.00,71.00
Children and Young Peoples Services,Head of Childrens Social Care,085347,Solo Home The Manse,Supplies and Services,348037,Subsistence E348,09-Jun-2022,000008278791422,The Italian Farmhouse,5812,Subsistence,71.00,0.00,71.00
Children and Young Peoples Services,Head of Childrens Social Care,085332,Middlestone Moor CU,Supplies and Services,324117,Provisions E324,09-Jun-2022,000008278791468,TESCO STORES 2371,5411,Catering costs - provisions,145.62,0.00,145.62
Children and Young Peoples Services,Head of Childrens Social Care,085341,High Etherley Satelite Home,Supplies and Services,324117,Provisions E324,09-Jun-2022,000008278791474,ASDA SUPERSTORE 4987,5411,Catering costs - provisions,5.12,0.00,5.12
Neighbourhoods and Climate Change,Environmental Services,010367,C&G - South Grounds Maintenance,Supplies and Services,304403,Equipment and Materials,09-Jun-2022,000008278791496,MAXWELLS DIY,5231,Other consumables,49.50,8.25,41.25
Regeneration Economy and Growth,Development and Housing,030776,LINKCD Flexible Fund,Transport,235057,Public Transport,09-Jun-2022,000008278791502,WWW.GONORTHEAST.CO.UK,4111,Staff travelling,6.00,0.00,6.00
Children and Young Peoples Services,Head of Childrens Social Care,085332,Middlestone Moor CU,Supplies and Services,304403,Equipment and Materials,09-Jun-2022,000008278791512,AMZNMktplace,5999,Other consumables,20.68,3.45,17.23
Children and Young Peoples Services,Head of Childrens Social Care,085511,Emergency Duty Team,Supplies and Services,352001,Conference Expenses,09-Jun-2022,000008278791560,TRAVELODGE,3615,Conferencesseminars fees etc,57.61,0.00,57.61
Regeneration Economy and Growth,Development and Housing,030772,CLLD South,Supplies and Services,304403,Equipment and Materials,09-Jun-2022,000008278791568,AMZNMktplace,5999,Other consumables,33.88,5.65,28.23
Regeneration Economy and Growth,Development and Housing,030772,CLLD South,Transport,215995,Running Costs of Vehicles,09-Jun-2022,000008278791574,APPLEGREEN COCKTON HIL,5541,Vehicle running expenses,40.01,0.00,40.01
Children and Young Peoples Services,Head of Early Help Inclusion & Vulnerable Children.,074000,National Supporting Families Programme,Transfer Payments,525033,Other,09-Jun-2022,000008278791590,ASDA GEORGE COM LEEDS,5411,Grants to individuals,-2.95,0.00,-2.95
Resources BK0010,Digital Services,065432,Web Development Group,Supplies and Services,372009,Subscriptions E372,09-Jun-2022,000008278791660,NOMINET UK,7392,Subscriptions 372009,46.80,7.80,39.00
Resources BK0010,Digital Services,065432,Web Development Group,Supplies and Services,372009,Subscriptions E372,09-Jun-2022,000008278791666,NOMINET UK,7392,Subscriptions 372009,37.44,6.24,31.20
Children and Young Peoples Services,Head of Childrens Social Care,085331,New Lea Childrens Home,Supplies and Services,324117,Provisions E324,09-Jun-2022,000008278791676,ASDA GROCERIES ONLINE,5411,Catering costs - provisions,188.08,0.00,188.08
Children and Young Peoples Services,Head of Childrens Social Care,085331,New Lea Childrens Home,Supplies and Services,324117,Provisions E324,09-Jun-2022,000008278791678,ASDA GROCERIES ONLINE,5411,Catering costs - provisions,-4.40,0.00,-4.40
Children and Young Peoples Services,Head of Education and Skills,071732,Dean Bank Childcare,Supplies and Services,304259,Equipment and Materials,09-Jun-2022,000008278791694,Amazon Music 2C68O7TR4,5735,Equipment-purchase and rental,14.99,0.00,14.99
Adult and Health Services,Head of Adults,055302,Durham Pathways,Supplies and Services,304403,Equipment and Materials,09-Jun-2022,000008278791702,AMZNMktplace,5999,Other consumables,10.84,0.00,10.84
Children and Young Peoples Services,Head of Early Help Inclusion & Vulnerable Children.,085957,Secure Management,Supplies and Services,304403,Equipment and Materials,09-Jun-2022,000008278791768,AMZNMktplace,5999,Other consumables,4.99,0.00,4.99
Children and Young Peoples Services,Head of Early Help Inclusion & Vulnerable Children.,085957,Secure Management,Supplies and Services,304403,Equipment and Materials,09-Jun-2022,000008278791770,AMZNMKTPLACE AMAZON.CO,5999,Other consumables,24.99,0.00,24.99
Children and Young Peoples Services,Head of Early Help Inclusion & Vulnerable Children.,085957,Secure Management,Supplies and Services,384999,Miscellaneous Expenses,09-Jun-2022,000008278791772,Amazon.co.uk 2C2U08ES4,5969,Other expenses,142.56,0.00,142.56
Regeneration Economy and Growth,Development and Housing,030771,Durham Advance Flexible Fund,Employees,040149,Recruitment Instruction and Training,09-Jun-2022,000008278791776,SumUp The Work Place,8999,Training-all costs,126.00,21.00,105.00
Regeneration Economy and Growth,Development and Housing,030771,Durham Advance Flexible Fund,Supplies and Services,348037,Subsistence E348,09-Jun-2022,000008278791778,The Grind Cafe Bar,5813,Subsistence,5.80,0.00,5.80
Neighbourhoods and Climate Change,Environmental Services,010301,C&G - North Grounds Maintenance,Supplies and Services,304999,Equipment and Materials,09-Jun-2022,000008278791784,GRALANDS WOODWORK SUPP,5251,Misc equipment tools and materials,22.43,0.00,22.43
Children and Young Peoples Services,Head of Childrens Social Care,085364,Children Looked After Team 1,Transport,235057,Public Transport,09-Jun-2022,000008278791808,CURB,4121,Staff travelling,10.00,0.00,10.00
Children and Young Peoples Services,Head of Childrens Social Care,085364,Children Looked After Team 1,Transport,235057,Public Transport,09-Jun-2022,000008278791814,CURB,4121,Staff travelling,500.00,0.00,500.00
Children and Young Peoples Services,Head of Childrens Social Care,085364,Children Looked After Team 1,Supplies and Services,304221,Equipment and Materials,09-Jun-2022,000008278791818,WEAR VALLEY DECORATING,5198,Direct materials,119.93,0.00,119.93
Children and Young Peoples Services,Head of Early Help Inclusion & Vulnerable Children.,085965,Barnard,Transfer Payments,515002,Social Services Clients,09-Jun-2022,000008278791830,AMZNMktplace,5999,Pocket money,2.57,0.00,2.57
Children and Young Peoples Services,Head of Early Help Inclusion & Vulnerable Children.,085965,Barnard,Transfer Payments,515002,Social Services Clients,09-Jun-2022,000008278791832,AMZNMktplace,5999,Pocket money,5.24,0.00,5.24
Children and Young Peoples Services,Head of Early Help Inclusion & Vulnerable Children.,085965,Barnard,Transfer Payments,515002,Social Services Clients,09-Jun-2022,000008278791836,AMZNMktplace,5999,Pocket money,4.99,0.83,4.16
Children and Young Peoples Services,Head of Education and Skills,070169,Durham SSP,Third Party Payments,430100,Rendered by Private Contractors,09-Jun-2022,000008278791844,SITEGROUND HOSTING,7399,Payments to sub-contractors,43.20,7.20,36.00
Children and Young Peoples Services,Head of Childrens Social Care,085552,Services for Disabled Children,Supplies and Services,364301,Grants to Voluntary Organisations,09-Jun-2022,000008278791854,AMZNMktplace,5999,Hardship,42.49,7.08,35.41
Dedicated Schools Grant BG0015,DSG Schools Block,418517,Belmont Community School 004185 - Pupil Premium,Supplies and Services,364301,Grants to Voluntary Organisations,09-Jun-2022,000008278791932,SHOE ZONE (INTERNET),5661,Hardship,16.99,2.83,14.16
Regeneration Economy and Growth,Development and Housing,030554,International Relations 030554,Supplies and Services,384926,Miscellaneous Expenses,09-Jun-2022,000008278791934,Costco Wholesale #109,7278,International visits,35.40,0.00,35.40
Children and Young Peoples Services,Head of Early Help Inclusion & Vulnerable Children.,088109,Dean Bank and Tudhoe Family Centre,Supplies and Services,384302,Miscellaneous Expenses,09-Jun-2022,000008278791936,AMZNMktplace,5999,Activity expenses,7.99,0.00,7.99
Children and Young Peoples Services,Head of Early Help Inclusion & Vulnerable Children.,088109,Dean Bank and Tudhoe Family Centre,Supplies and Services,384302,Miscellaneous Expenses,09-Jun-2022,000008278791940,AMZNMktplace,5999,Activity expenses,71.28,11.88,59.40
Children and Young Peoples Services,Head of Early Help Inclusion & Vulnerable Children.,088109,Dean Bank and Tudhoe Family Centre,Supplies and Services,384302,Miscellaneous Expenses,09-Jun-2022,000008278791940 - 1,AMZNMktplace,5999,Activity expenses,0.06,,0.06
Children and Young Peoples Services,Head of Early Help Inclusion & Vulnerable Children.,071441,Bishop Auckland One Point Hub,Supplies and Services,304259,Equipment and Materials,09-Jun-2022,000008278791944,TIMPSON LTD,5999,Equipment-purchase and rental,20.00,0.00,20.00
Children and Young Peoples Services,Head of Childrens Social Care,085368,Children Looked After Team 5,Supplies and Services,384302,Miscellaneous Expenses,09-Jun-2022,000008278791946,HM PASSPORT OFFICE,9399,Activity expenses,49.00,0.00,49.00
Children and Young Peoples Services,Head of Childrens Social Care,085365,Children Looked After Team 2,Supplies and Services,338045,Services,09-Jun-2022,000008278791948,GEN REGISTER OFFICE,9399,Legal expenses 338045,11.00,0.00,11.00
Children and Young Peoples Services,Head of Early Help Inclusion & Vulnerable Children.,071441,Bishop Auckland One Point Hub,Supplies and Services,304259,Equipment and Materials,09-Jun-2022,000008278791952,LIDL GB BSHP AUCKLAND,5411,Equipment-purchase and rental,7.14,0.00,7.14
Neighbourhoods and Climate Change,Environmental Services,010367,C&G - South Grounds Maintenance,Supplies and Services,304999,Equipment and Materials,09-Jun-2022,000008278791962,NEW ROW FARM NURSERIES,780,Misc equipment tools and materials,410.12,0.00,410.12
Neighbourhoods and Climate Change,Environmental Services,010367,C&G - South Grounds Maintenance,Supplies and Services,304999,Equipment and Materials,09-Jun-2022,000008278791964,Snowballs,5251,Misc equipment tools and materials,202.63,0.00,202.63
Children and Young Peoples Services,Head of Childrens Social Care,085342,16 Hickstead Rise (previously 9 Cedar Ave),Supplies and Services,324117,Provisions E324,09-Jun-2022,000008278792024,ICELAND FOODS,5411,Catering costs - provisions,-9.68,0.00,-9.68
Children and Young Peoples Services,Head of Childrens Social Care,085331,New Lea Childrens Home,Supplies and Services,348037,Subsistence E348,09-Jun-2022,000008278792040,EposNow,5812,Subsistence,5.00,0.00,5.00
Regeneration Economy and Growth,Culture Sport and Tourism,010599,Newton Aycliffe Leisure Ctr-General,Employees,040149,Recruitment Instruction and Training,09-Jun-2022,000008278792046,TAHDAH VERIFIED,5734,Training-all costs,456.00,0.00,456.00
Regeneration Economy and Growth,Culture Sport and Tourism,010599,Newton Aycliffe Leisure Ctr-General,Employees,040149,Recruitment Instruction and Training,09-Jun-2022,000008278792050,TAHDAH VERIFIED,5734,Training-all costs,114.00,0.00,114.00
Regeneration Economy and Growth,Culture Sport and Tourism,011291,Peterlee Leisure Centre,Employees,040149,Recruitment Instruction and Training,09-Jun-2022,000008278792054,TAHDAH VERIFIED,5734,Training-all costs,186.00,0.00,186.00
Regeneration Economy and Growth,Culture Sport and Tourism,010870,Chester-le-street Leisure Centre,Employees,040149,Recruitment Instruction and Training,09-Jun-2022,000008278792056,TAHDAH VERIFIED,5734,Training-all costs,342.00,0.00,342.00
Regeneration Economy and Growth,Culture Sport and Tourism,010870,Chester-le-street Leisure Centre,Employees,040149,Recruitment Instruction and Training,09-Jun-2022,000008278792058,TAHDAH VERIFIED,5734,Training-all costs,342.00,0.00,342.00
Children and Young Peoples Services,Head of Education and Skills,078550,Discretionary Learning Support,Supplies and Services,304259,Equipment and Materials,09-Jun-2022,000008278792126,SMARTY CO UK,4814,Equipment-purchase and rental,6.00,0.00,6.00
Children and Young Peoples Services,Head of Childrens Social Care,085363,Childrens Permanence Team,Supplies and Services,338045,Services,09-Jun-2022,000008278792130,GENERAL REGISTER OFFIC,7399,Legal expenses 338045,15.00,0.00,15.00
Children and Young Peoples Services,Head of Childrens Social Care,085363,Childrens Permanence Team,Supplies and Services,338045,Services,09-Jun-2022,000008278792136,GENERAL REGISTER OFFIC,7399,Legal expenses 338045,15.00,0.00,15.00
Children and Young Peoples Services,Head of Early Help Inclusion & Vulnerable Children.,085957,Secure Management,Supplies and Services,384302,Miscellaneous Expenses,09-Jun-2022,000008278792214,Microsoft Ultimate 1 M,5816,Activity expenses,10.99,0.00,10.99
Children and Young Peoples Services,Head of Childrens Social Care,085357,LAC Bespoke Placements,Transport,235057,Public Transport,09-Jun-2022,000008278792220,HOLIDAY PAYMENT AVR,4722,Staff travelling,"4,524.00",0.00,4524.00
Children and Young Peoples Services,Head of Childrens Social Care,085357,LAC Bespoke Placements,Transport,235057,Public Transport,09-Jun-2022,000008278792224,HOLIDAY PAYMENT AVR,4722,Staff travelling,"1,105.00",0.00,1105.00
Children and Young Peoples Services,Head of Childrens Social Care,085379,Care Leavers Team 2,Transport,235073,Public Transport,09-Jun-2022,000008278792232,RAILCARD.CO.UK,4112,Travel-clients/students/children,30.00,0.00,30.00
Neighbourhoods and Climate Change,Environmental Services,031228,North Pennines - Fellfoot Forward,Supplies and Services,304403,Equipment and Materials,09-Jun-2022,000008278792380,SP FLAGS AND FLAGPOL,5734,Other consumables,158.40,0.00,158.40
Children and Young Peoples Services,Head of Childrens Social Care,085332,Middlestone Moor CU,Supplies and Services,324117,Provisions E324,09-Jun-2022,000008278792388,ASDA SUPERSTORE 4987,5411,Catering costs - provisions,11.20,0.00,11.20
Children and Young Peoples Services,Head of Early Help Inclusion & Vulnerable Children.,085962,Aycliffe Secure - Durham,Supplies and Services,304403,Equipment and Materials,09-Jun-2022,000008278792394,AMZNMKTPLACE AMAZON.CO,5999,Other consumables,19.56,3.26,16.30
Children and Young Peoples Services,Head of Early Help Inclusion & Vulnerable Children.,085962,Aycliffe Secure - Durham,Supplies and Services,304403,Equipment and Materials,09-Jun-2022,000008278792394 - 1,AMZNMKTPLACE AMAZON.CO,5999,Other consumables,0.04,,0.04
Children and Young Peoples Services,Head of Early Help Inclusion & Vulnerable Children.,085962,Aycliffe Secure - Durham,Supplies and Services,304403,Equipment and Materials,09-Jun-2022,000008278792398,AMZNMktplace,5999,Other consumables,17.98,3.00,14.98
Children and Young Peoples Services,Head of Early Help Inclusion & Vulnerable Children.,085962,Aycliffe Secure - Durham,Supplies and Services,304403,Equipment and Materials,09-Jun-2022,000008278792402,AMZNMktplace,5999,Other consumables,26.98,4.50,22.48
Children and Young Peoples Services,Head of Childrens Social Care,085332,Middlestone Moor CU,Supplies and Services,304403,Equipment and Materials,09-Jun-2022,000008278792460,AMZNMKTPLACE AMAZON.CO,5999,Other consumables,12.17,0.00,12.17
Resources BK0010,Legal & Democratic Services,067910,Democratic Representation 067910,Supplies and Services,312009,Newspapers books and periodicals E312,09-Jun-2022,000008278792484,DURHAM CITY NEWS,5994,Newspapers books and periodicals,69.90,0.00,69.90
Children and Young Peoples Services,Head of Childrens Social Care,085501,Child Care Cases Legal Expenses,Supplies and Services,304405,Equipment and Materials,09-Jun-2022,000008278792486,SQ TALK DURHAM,8011,Medical supplies,"1,200.00",0.00,1200.00
Neighbourhoods and Climate Change,Environmental Services,031071,E&D - Sustainability and Climate Change,Supplies and Services,324117,Provisions E324,09-Jun-2022,000008278792496,273 Lagkagehuset,5462,Catering costs - provisions,42.23,0.00,42.23
Neighbourhoods and Climate Change,Environmental Services,031071,E&D - Sustainability and Climate Change,Supplies and Services,348037,Subsistence E348,09-Jun-2022,000008278792498,BAGEL NASH,5812,Subsistence,29.94,0.00,29.94
Neighbourhoods and Climate Change,Environmental Services,031071,E&D - Sustainability and Climate Change,Transport,235057,Public Transport,09-Jun-2022,000008278792500,SKA STN MALMO C,4131,Staff travelling,32.13,0.00,32.13
Regeneration Economy and Growth,Development and Housing,031634,LOCAL LETTINGS AGENCY,Premises,120037,Energy Costs,09-Jun-2022,000008278792508,EDF ENERGY-IVR,4900,Other fuels,45.21,0.00,45.21
Neighbourhoods and Climate Change,Environmental Services,010367,C&G - South Grounds Maintenance,Supplies and Services,304999,Equipment and Materials,09-Jun-2022,000008278792530,Snowballs,5251,Misc equipment tools and materials,52.80,0.00,52.80
Adult and Health Services,Head of Adults,055309,Peterlee Pathways,Supplies and Services,304999,Equipment and Materials,09-Jun-2022,000008278792542,HOME BARGAINS PETERLEE,5251,Misc equipment tools and materials,11.39,0.00,11.39
Children and Young Peoples Services,Head of Early Help Inclusion & Vulnerable Children.,088107,Wheatley Hill & N. Aycliffe Family Centre,Supplies and Services,312009,Newspapers books and periodicals E312,09-Jun-2022,000008278792562,ADVONET,8398,Newspapers books and periodicals,276.40,0.00,276.40
Regeneration Economy and Growth,Corporate Property and Land,010525,Catering - Green Lane,Supplies and Services,324117,Provisions E324,09-Jun-2022,000008278863858,HOPWELLS LTD,5811,Catering costs - provisions,73.64,0.00,73.64
Regeneration Economy and Growth,Corporate Property and Land,011275,Catering -Durham Leadership Centre,Supplies and Services,324117,Provisions E324,09-Jun-2022,000008278863860,HOPWELLS LTD,5811,Catering costs - provisions,159.93,0.00,159.93
Regeneration Economy and Growth,Corporate Property and Land,011296,Catering - Crimdon Dene Hub,Supplies and Services,324117,Provisions E324,09-Jun-2022,000008278863862,HOPWELLS LTD,5811,Catering costs - provisions,136.81,0.00,136.81
Regeneration Economy and Growth,Corporate Property and Land,011296,Catering - Crimdon Dene Hub,Supplies and Services,324117,Provisions E324,09-Jun-2022,000008278863864,HOPWELLS LTD,5811,Catering costs - provisions,163.20,27.20,136.00
Regeneration Economy and Growth,Corporate Property and Land,011296,Catering - Crimdon Dene Hub,Supplies and Services,324117,Provisions E324,09-Jun-2022,000008278863864 - 1,HOPWELLS LTD,5811,Catering costs - provisions,291.85,,291.85
Regeneration Economy and Growth,Corporate Property and Land,011296,Catering - Crimdon Dene Hub,Supplies and Services,324117,Provisions E324,09-Jun-2022,000008278863866,HOPWELLS LTD,5811,Catering costs - provisions,66.06,11.01,55.05
Regeneration Economy and Growth,Corporate Property and Land,011296,Catering - Crimdon Dene Hub,Supplies and Services,324117,Provisions E324,09-Jun-2022,000008278863866 - 1,HOPWELLS LTD,5811,Catering costs - provisions,70.13,,70.13
Regeneration Economy and Growth,Corporate Property and Land,011296,Catering - Crimdon Dene Hub,Supplies and Services,324117,Provisions E324,09-Jun-2022,000008278863868,HOPWELLS LTD,5811,Catering costs - provisions,115.74,19.29,96.45
Regeneration Economy and Growth,Corporate Property and Land,011296,Catering - Crimdon Dene Hub,Supplies and Services,324117,Provisions E324,09-Jun-2022,000008278863868 - 1,HOPWELLS LTD,5811,Catering costs - provisions,97.58,,97.58
Regeneration Economy and Growth,Corporate Property and Land,011296,Catering - Crimdon Dene Hub,Supplies and Services,324117,Provisions E324,09-Jun-2022,000008278863870,HOPWELLS LTD,5811,Catering costs - provisions,122.04,20.34,101.70
Regeneration Economy and Growth,Corporate Property and Land,011296,Catering - Crimdon Dene Hub,Supplies and Services,324117,Provisions E324,09-Jun-2022,000008278863870 - 1,HOPWELLS LTD,5811,Catering costs - provisions,14.80,,14.80
Regeneration Economy and Growth,Corporate Property and Land,011296,Catering - Crimdon Dene Hub,Supplies and Services,324117,Provisions E324,09-Jun-2022,000008278863872,HOPWELLS LTD,5811,Catering costs - provisions,66.06,11.01,55.05
Regeneration Economy and Growth,Corporate Property and Land,011296,Catering - Crimdon Dene Hub,Supplies and Services,324117,Provisions E324,09-Jun-2022,000008278863872 - 1,HOPWELLS LTD,5811,Catering costs - provisions,358.83,,358.83
Regeneration Economy and Growth,Corporate Property and Land,011296,Catering - Crimdon Dene Hub,Supplies and Services,324117,Provisions E324,09-Jun-2022,000008278863874,HOPWELLS LTD,5811,Catering costs - provisions,96.24,16.04,80.20
Regeneration Economy and Growth,Corporate Property and Land,011296,Catering - Crimdon Dene Hub,Supplies and Services,324117,Provisions E324,09-Jun-2022,000008278863874 - 1,HOPWELLS LTD,5811,Catering costs - provisions,185.51,,185.51
Regeneration Economy and Growth,Corporate Property and Land,011296,Catering - Crimdon Dene Hub,Supplies and Services,324117,Provisions E324,09-Jun-2022,000008278863876,JR HOLLAND FOODSERVICE,5499,Catering costs - provisions,-9.99,0.00,-9.99
Regeneration Economy and Growth,Corporate Property and Land,030691,Catering - Durham Dales Centre,Supplies and Services,324117,Provisions E324,09-Jun-2022,000008278863878,HOPWELLS LTD,5811,Catering costs - provisions,322.08,0.00,322.08
Regeneration Economy and Growth,Corporate Property and Land,030691,Catering - Durham Dales Centre,Supplies and Services,324117,Provisions E324,09-Jun-2022,000008278863880,HOPWELLS LTD,5811,Catering costs - provisions,68.88,11.48,57.40
Regeneration Economy and Growth,Corporate Property and Land,030691,Catering - Durham Dales Centre,Supplies and Services,324117,Provisions E324,09-Jun-2022,000008278863880 - 1,HOPWELLS LTD,5811,Catering costs - provisions,381.76,,381.76
Regeneration Economy and Growth,Corporate Property and Land,030691,Catering - Durham Dales Centre,Supplies and Services,324117,Provisions E324,09-Jun-2022,000008278863882,HOPWELLS LTD,5811,Catering costs - provisions,-10.36,0.00,-10.36
Regeneration Economy and Growth,Culture Sport and Tourism,054235,Bishop Auckland Town Hall Cafe,Supplies and Services,324117,Provisions E324,09-Jun-2022,000008278863884,HOPWELLS LTD,5811,Catering costs - provisions,159.62,0.00,159.62
Regeneration Economy and Growth,Culture Sport and Tourism,054235,Bishop Auckland Town Hall Cafe,Supplies and Services,324117,Provisions E324,09-Jun-2022,000008278863886,JR HOLLAND FOODSERVICE,5499,Catering costs - provisions,248.82,0.00,248.82
Regeneration Economy and Growth,Culture Sport and Tourism,054235,Bishop Auckland Town Hall Cafe,Supplies and Services,324117,Provisions E324,09-Jun-2022,000008278863888,JR HOLLAND FOODSERVICE,5499,Catering costs - provisions,4.12,0.00,4.12
Neighbourhoods and Climate Change,Environmental Services,011060,C&G - Hardwick Park Catering,Supplies and Services,324117,Provisions E324,09-Jun-2022,000008278863890,HOPWELLS LTD,5811,Catering costs - provisions,116.46,19.41,97.05
Neighbourhoods and Climate Change,Environmental Services,011060,C&G - Hardwick Park Catering,Supplies and Services,324117,Provisions E324,09-Jun-2022,000008278863890 - 1,HOPWELLS LTD,5811,Catering costs - provisions,251.89,,251.89
Neighbourhoods and Climate Change,Environmental Services,011060,C&G - Hardwick Park Catering,Supplies and Services,324117,Provisions E324,09-Jun-2022,000008278863892,HOPWELLS LTD,5811,Catering costs - provisions,593.16,98.86,494.30
Neighbourhoods and Climate Change,Environmental Services,011060,C&G - Hardwick Park Catering,Supplies and Services,324117,Provisions E324,09-Jun-2022,000008278863892 - 1,HOPWELLS LTD,5811,Catering costs - provisions,221.97,,221.97
Neighbourhoods and Climate Change,Environmental Services,011060,C&G - Hardwick Park Catering,Supplies and Services,324117,Provisions E324,09-Jun-2022,000008278863894,HOPWELLS LTD,5811,Catering costs - provisions,665.89,110.99,554.90
Neighbourhoods and Climate Change,Environmental Services,011060,C&G - Hardwick Park Catering,Supplies and Services,324117,Provisions E324,09-Jun-2022,000008278863896,HOPWELLS LTD,5811,Catering costs - provisions,392.58,65.43,327.15
Neighbourhoods and Climate Change,Environmental Services,011060,C&G - Hardwick Park Catering,Supplies and Services,324117,Provisions E324,09-Jun-2022,000008278863896 - 1,HOPWELLS LTD,5811,Catering costs - provisions,243.75,,243.75
Neighbourhoods and Climate Change,Environmental Services,011060,C&G - Hardwick Park Catering,Supplies and Services,324117,Provisions E324,09-Jun-2022,000008278863898,HOPWELLS LTD,5811,Catering costs - provisions,778.62,129.77,648.85
Neighbourhoods and Climate Change,Environmental Services,011060,C&G - Hardwick Park Catering,Supplies and Services,324117,Provisions E324,09-Jun-2022,000008278863898 - 1,HOPWELLS LTD,5811,Catering costs - provisions,220.88,,220.88
Neighbourhoods and Climate Change,Environmental Services,011060,C&G - Hardwick Park Catering,Supplies and Services,324117,Provisions E324,09-Jun-2022,000008278863900,HOPWELLS LTD,5811,Catering costs - provisions,452.04,75.34,376.70
Neighbourhoods and Climate Change,Environmental Services,011060,C&G - Hardwick Park Catering,Supplies and Services,324117,Provisions E324,09-Jun-2022,000008278863900 - 1,HOPWELLS LTD,5811,Catering costs - provisions,23.11,,23.11
Regeneration Economy and Growth,Corporate Property and Land,021234,Catering - Locomotion,Supplies and Services,324117,Provisions E324,09-Jun-2022,000008278863904,HOPWELLS LTD,5811,Catering costs - provisions,112.62,18.77,93.85
Regeneration Economy and Growth,Corporate Property and Land,021234,Catering - Locomotion,Supplies and Services,324117,Provisions E324,09-Jun-2022,000008278863904 - 1,HOPWELLS LTD,5811,Catering costs - provisions,259.78,,259.78
Regeneration Economy and Growth,Corporate Property and Land,021234,Catering - Locomotion,Supplies and Services,324117,Provisions E324,09-Jun-2022,000008278863906,HOPWELLS LTD,5811,Catering costs - provisions,62.52,10.42,52.10
Regeneration Economy and Growth,Corporate Property and Land,021234,Catering - Locomotion,Supplies and Services,324117,Provisions E324,09-Jun-2022,000008278863906 - 1,HOPWELLS LTD,5811,Catering costs - provisions,85.11,,85.11
Regeneration Economy and Growth,Corporate Property and Land,021234,Catering - Locomotion,Supplies and Services,324117,Provisions E324,09-Jun-2022,000008278863908,JR HOLLAND FOODSERVICE,5499,Catering costs - provisions,48.17,0.00,48.17
Regeneration Economy and Growth,Corporate Property and Land,021235,Catering - Wharton Park,Supplies and Services,324117,Provisions E324,09-Jun-2022,000008278863910,HOPWELLS LTD,5811,Catering costs - provisions,152.76,25.46,127.30
Regeneration Economy and Growth,Corporate Property and Land,021235,Catering - Wharton Park,Supplies and Services,324117,Provisions E324,09-Jun-2022,000008278863910 - 1,HOPWELLS LTD,5811,Catering costs - provisions,61.49,,61.49
Regeneration Economy and Growth,Corporate Property and Land,021235,Catering - Wharton Park,Supplies and Services,324117,Provisions E324,09-Jun-2022,000008278863912,HOPWELLS LTD,5811,Catering costs - provisions,192.54,32.09,160.45
Regeneration Economy and Growth,Corporate Property and Land,021235,Catering - Wharton Park,Supplies and Services,324117,Provisions E324,09-Jun-2022,000008278863912 - 1,HOPWELLS LTD,5811,Catering costs - provisions,42.77,,42.77
Regeneration Economy and Growth,Corporate Property and Land,021235,Catering - Wharton Park,Supplies and Services,324117,Provisions E324,09-Jun-2022,000008278863914,HOPWELLS LTD,5811,Catering costs - provisions,206.70,34.45,172.25
Regeneration Economy and Growth,Corporate Property and Land,021235,Catering - Wharton Park,Supplies and Services,324117,Provisions E324,09-Jun-2022,000008278863914 - 1,HOPWELLS LTD,5811,Catering costs - provisions,66.57,,66.57
Regeneration Economy and Growth,Corporate Property and Land,021235,Catering - Wharton Park,Supplies and Services,324117,Provisions E324,09-Jun-2022,000008278863916,HOPWELLS LTD,5811,Catering costs - provisions,-20.72,0.00,-20.72
Regeneration Economy and Growth,Corporate Property and Land,021242,Catering - County Hall,Supplies and Services,324117,Provisions E324,09-Jun-2022,000008278863918,HOPWELLS LTD,5811,Catering costs - provisions,213.89,0.00,213.89
Regeneration Economy and Growth,Corporate Property and Land,021242,Catering - County Hall,Supplies and Services,324117,Provisions E324,09-Jun-2022,000008278863920,HOPWELLS LTD,5811,Catering costs - provisions,428.25,0.00,428.25
Regeneration Economy and Growth,Development and Housing,030772,CLLD South,Supplies and Services,304403,Equipment and Materials,09-Jun-2022,000008285742568,AMZNMKTPLACE AMAZON.CO,5999,Other consumables,16.17,0.00,16.17
Children and Young Peoples Services,Head of Childrens Social Care,085331,New Lea Childrens Home,Supplies and Services,324117,Provisions E324,09-Jun-2022,000008285742844,WWW.ALDI.CO.UK,5411,Catering costs - provisions,459.92,0.00,459.92
Adult and Health Services,Head of Adults,055302,Durham Pathways,Supplies and Services,324117,Provisions E324,09-Jun-2022,000008285742926,SAINSBURYS S/MKTS,5411,Catering costs - provisions,3.00,0.00,3.00
Resources BK0010,Legal & Democratic Services,069540,Charter Trust,Supplies and Services,384071,Miscellaneous Expenses,09-Jun-2022,000008285742928,SHORT-CUTS,5251,Departmental hospitality,14.00,0.00,14.00
Children and Young Peoples Services,Head of Early Help Inclusion & Vulnerable Children.,088106,Ferryhill & N. Aycliffe Intensive Family Support Team,Supplies and Services,338045,Services,09-Jun-2022,000008285743276,WWW.DURHAM.GOV.UK,9399,Legal expenses 338045,11.00,0.00,11.00
Children and Young Peoples Services,Head of Early Help Inclusion & Vulnerable Children.,071441,Bishop Auckland One Point Hub,Supplies and Services,304259,Equipment and Materials,09-Jun-2022,000008285743462,WWW.SCREWFIX.COM,5211,Equipment-purchase and rental,35.96,0.00,35.96
Children and Young Peoples Services,Head of Childrens Social Care,085331,New Lea Childrens Home,Supplies and Services,348037,Subsistence E348,09-Jun-2022,000008285743568,GREGGS,5812,Subsistence,7.05,0.00,7.05
Children and Young Peoples Services,Head of Childrens Social Care,085331,New Lea Childrens Home,Employees,040149,Recruitment Instruction and Training,09-Jun-2022,000008285743572,THE SALVATION ARMY,8398,Training-all costs,1.00,0.00,1.00
Children and Young Peoples Services,Head of Childrens Social Care,085369,Care Leavers Team 1,Supplies and Services,338045,Services,09-Jun-2022,000008285743894,WWW.DURHAM.GOV.UK,9399,Legal expenses 338045,11.00,0.00,11.00
Children and Young Peoples Services,Head of Childrens Social Care,085379,Care Leavers Team 2,Supplies and Services,364354,Grants to Voluntary Organisations,09-Jun-2022,000008285743898,TVLICENSING.CO.UK,7392,Supervised Spend - Setting Up Home Allowance,159.00,0.00,159.00
Children and Young Peoples Services,Head of Childrens Social Care,085369,Care Leavers Team 1,Supplies and Services,364353,Grants to Voluntary Organisations,09-Jun-2022,000008285743900,AMZNMKTPLACE AMAZON.CO,5999,Leaving care-other,9.98,1.66,8.32
Neighbourhoods and Climate Change,Environmental Services,010301,C&G - North Grounds Maintenance,Supplies and Services,304221,Equipment and Materials,09-Jun-2022,000008285744050,BREWERS,5211,Direct materials,104.83,0.00,104.83
Children and Young Peoples Services,Head of Childrens Social Care,085332,Middlestone Moor CU,Supplies and Services,304259,Equipment and Materials,09-Jun-2022,000008285744312,DVLA DRIVING LICENSE,9399,Equipment-purchase and rental,34.00,0.00,34.00
Children and Young Peoples Services,Head of Childrens Social Care,085332,Middlestone Moor CU,Supplies and Services,304259,Equipment and Materials,09-Jun-2022,000008285744314,DVLA DRIVING LICENSE,9399,Equipment-purchase and rental,34.00,0.00,34.00
Children and Young Peoples Services,Head of Early Help Inclusion & Vulnerable Children.,088107,Wheatley Hill & N. Aycliffe Family Centre,Supplies and Services,328041,Clothing uniforms and laundry E328,09-Jun-2022,000008285744328,ARGOS LTD,5310,Clothing uniforms and laundry,241.95,0.00,241.95
Neighbourhoods and Climate Change,Environmental Services,031071,E&D - Sustainability and Climate Change,Supplies and Services,352001,Conference Expenses,09-Jun-2022,000008285744644,RADISSON BLU,3583,Conferencesseminars fees etc,5.75,0.00,5.75
Regeneration Economy and Growth,Corporate Property and Land,010525,Catering - Green Lane,Supplies and Services,384999,Miscellaneous Expenses,09-Jun-2022,000008285846850,G M PACKAGING UK LIMIT,5046,Other expenses,164.53,0.00,164.53
Neighbourhoods and Climate Change,Environmental Services,011060,C&G - Hardwick Park Catering,Supplies and Services,324117,Provisions E324,09-Jun-2022,000008285846878,BATLEYS PERTH,5300,Catering costs - provisions,56.64,9.44,47.20
Neighbourhoods and Climate Change,Environmental Services,011060,C&G - Hardwick Park Catering,Supplies and Services,324117,Provisions E324,09-Jun-2022,000008285846878 - 1,BATLEYS PERTH,5300,Catering costs - provisions,167.84,,167.84
Neighbourhoods and Climate Change,Environmental Services,011060,C&G - Hardwick Park Catering,Supplies and Services,324117,Provisions E324,09-Jun-2022,000008285846880,BATLEYS PERTH,5300,Catering costs - provisions,173.61,28.94,144.67
Neighbourhoods and Climate Change,Environmental Services,011060,C&G - Hardwick Park Catering,Supplies and Services,324117,Provisions E324,09-Jun-2022,000008285846882,BATLEYS PERTH,5300,Catering costs - provisions,22.80,0.00,22.80
Regeneration Economy and Growth,Corporate Property and Land,021235,Catering - Wharton Park,Supplies and Services,324117,Provisions E324,09-Jun-2022,000008285846898,BATLEYS PERTH,5300,Catering costs - provisions,146.29,24.38,121.91
Neighbourhoods and Climate Change,Environmental Services,010301,C&G - North Grounds Maintenance,Supplies and Services,304221,Equipment and Materials,09-Jun-2022,000008302848722,WWW.ARCO.CO.UK,5085,Direct materials,74.98,0.00,74.98
Regeneration Economy and Growth,Business Durham CL0850,030689,Inward Investment and Aftercare,Supplies and Services,304999,Equipment and Materials,10-Jun-2022,000008278791340,VMO Vimeo Plus,5968,Misc equipment tools and materials,82.80,13.80,69.00
Regeneration Economy and Growth,Business Durham CL0850,030689,Inward Investment and Aftercare,Supplies and Services,304999,Equipment and Materials,10-Jun-2022,000008278791342,MAILCHIMP MISC,5968,Misc equipment tools and materials,2.58,0.00,2.58
Children and Young Peoples Services,Head of Childrens Social Care,085347,Solo Home The Manse,Supplies and Services,304403,Equipment and Materials,10-Jun-2022,000008278791428,AMZNMktplace,5999,Other consumables,40.18,0.00,40.18
Neighbourhoods and Climate Change,Environmental Services,031071,E&D - Sustainability and Climate Change,Supplies and Services,324117,Provisions E324,10-Jun-2022,000008278792502,273 Lagkagehuset,5462,Catering costs - provisions,1.16,0.00,1.16
Neighbourhoods and Climate Change,Environmental Services,031071,E&D - Sustainability and Climate Change,Transport,235057,Public Transport,10-Jun-2022,000008278792506,SKA STN MALMO C,4131,Staff travelling,0.88,0.00,0.88
Regeneration Economy and Growth,Business Durham CL0850,030689,Inward Investment and Aftercare,Supplies and Services,342033,Computers and Communications,10-Jun-2022,000008285741862,BLS MONDAY.COM12017784,7372,Computer hardware,148.80,0.00,148.80
Children and Young Peoples Services,Head of Childrens Social Care,085611,Families First Stanley,Supplies and Services,364340,Grants to Voluntary Organisations,10-Jun-2022,000008285741866,WWW.GONORTHEAST.CO.UK,4111,Contact expenses,34.00,0.00,34.00
Children and Young Peoples Services,Head of Childrens Social Care,085612,Families First Consett,Supplies and Services,338045,Services,10-Jun-2022,000008285741870,SUNDERLAND CC,7523,Legal expenses 338045,11.00,0.00,11.00
Children and Young Peoples Services,Head of Childrens Social Care,085612,Families First Consett,Supplies and Services,364301,Grants to Voluntary Organisations,10-Jun-2022,000008285741872,AMZNMKTPLACE AMAZON.CO,5999,Hardship,5.89,0.98,4.91
Children and Young Peoples Services,Head of Childrens Social Care,085612,Families First Consett,Supplies and Services,338045,Services,10-Jun-2022,000008285741880,WWW.DURHAM.GOV.UK,9399,Legal expenses 338045,11.00,0.00,11.00
Children and Young Peoples Services,Head of Education and Skills,071801,Selby Cottage Childcare Centre,Supplies and Services,324117,Provisions E324,10-Jun-2022,000008285741884,WILKO RETAIL LIMITED,5399,Catering costs - provisions,40.70,0.00,40.70
Children and Young Peoples Services,Head of Education and Skills,071801,Selby Cottage Childcare Centre,Supplies and Services,324117,Provisions E324,10-Jun-2022,000008285741894,TESCO STORES 2278,5411,Catering costs - provisions,3.18,0.00,3.18
Children and Young Peoples Services,Head of Education and Skills,071801,Selby Cottage Childcare Centre,Supplies and Services,324117,Provisions E324,10-Jun-2022,000008285741900,WM MORRISONS STORE,5411,Catering costs - provisions,18.72,0.00,18.72
Children and Young Peoples Services,Head of Education and Skills,075035,DurhamDirections Re-engagement,Supplies and Services,364301,Grants to Voluntary Organisations,10-Jun-2022,000008285742034,WWW.GONORTHEAST.CO.UK,4111,Hardship,15.00,0.00,15.00
Children and Young Peoples Services,Head of Education and Skills,075035,DurhamDirections Re-engagement,Supplies and Services,364301,Grants to Voluntary Organisations,10-Jun-2022,000008285742042,WWW.GONORTHEAST.CO.UK,4111,Hardship,20.00,0.00,20.00
Children and Young Peoples Services,Head of Education and Skills,075035,DurhamDirections Re-engagement,Supplies and Services,364200,Grants to Voluntary Organisations,10-Jun-2022,000008285742046,WWW.GONORTHEAST.CO.UK,4111,No Recourse to Public Funds,20.00,0.00,20.00
Regeneration Economy and Growth,Culture Sport and Tourism,054235,Bishop Auckland Town Hall Cafe,Supplies and Services,324117,Provisions E324,10-Jun-2022,000008285742170,AMZNMktplace,5999,Catering costs - provisions,118.62,19.77,98.85
Regeneration Economy and Growth,Culture Sport and Tourism,054735,Killhope Cafe,Supplies and Services,324117,Provisions E324,10-Jun-2022,000008285742170 - 1,AMZNMktplace,5999,Catering costs - provisions,0.03,,0.03
Regeneration Economy and Growth,Culture Sport and Tourism,054735,Killhope Cafe,Supplies and Services,324117,Provisions E324,10-Jun-2022,000008285742176,AMZNMktplace,5999,Catering costs - provisions,59.94,10.02,49.92
Children and Young Peoples Services,Head of Childrens Social Care,085342,16 Hickstead Rise (previously 9 Cedar Ave),Supplies and Services,324117,Provisions E324,10-Jun-2022,000008285742192,TESCO STORES 2916,5411,Catering costs - provisions,74.73,0.00,74.73
Children and Young Peoples Services,Head of Education and Skills,078100,Curric and Professional Development 078100,Supplies and Services,304403,Equipment and Materials,10-Jun-2022,000008285742280,ADOBE PRODUCTS,5734,Other consumables,25.28,4.21,21.07
Adult and Health Services,Head of Adults,055302,Durham Pathways,Supplies and Services,304259,Equipment and Materials,10-Jun-2022,000008285742324,Amazon Music 2C5S511Z4,5735,Equipment-purchase and rental,14.99,0.00,14.99
Neighbourhoods and Climate Change,Environmental Services,010367,C&G - South Grounds Maintenance,Supplies and Services,304221,Equipment and Materials,10-Jun-2022,000008285742388,BREWERS,5211,Direct materials,415.57,69.26,346.31
Regeneration Economy and Growth,Culture Sport and Tourism,054233,Bishop Auckland Town Hall Library,Supplies and Services,304403,Equipment and Materials,10-Jun-2022,000008285742422,AMZNMktplace,5999,Other consumables,42.46,7.08,35.38
Regeneration Economy and Growth,Development and Housing,030771,Durham Advance Flexible Fund,Transport,235057,Public Transport,10-Jun-2022,000008285742428,ACT TRADING LTD,7523,Staff travelling,0.60,0.00,0.60
Regeneration Economy and Growth,Development and Housing,030771,Durham Advance Flexible Fund,Supplies and Services,304259,Equipment and Materials,10-Jun-2022,000008285742434,TOWN HALL,9399,Equipment-purchase and rental,4.10,0.00,4.10
Children and Young Peoples Services,Head of Childrens Social Care,085332,Middlestone Moor CU,Supplies and Services,324117,Provisions E324,10-Jun-2022,000008285742440,ALDI 774-018,5411,Catering costs - provisions,38.01,0.00,38.01
Regeneration Economy and Growth,Development and Housing,030772,CLLD South,Supplies and Services,304403,Equipment and Materials,10-Jun-2022,000008285742558,AMZNMKTPLACE AMAZON.CO,5999,Other consumables,12.95,2.16,10.79
Regeneration Economy and Growth,Development and Housing,030772,CLLD South,Supplies and Services,304259,Equipment and Materials,10-Jun-2022,000008285742570,SECURITY INDUSTRY AUTH,9399,Equipment-purchase and rental,190.00,0.00,190.00
Regeneration Economy and Growth,Development and Housing,030772,CLLD South,Supplies and Services,304403,Equipment and Materials,10-Jun-2022,000008285742574,AMZNMktplace,5999,Other consumables,9.89,1.65,8.24
Children and Young Peoples Services,Head of Childrens Social Care,085331,New Lea Childrens Home,Supplies and Services,312009,Newspapers books and periodicals E312,10-Jun-2022,000008285742848,WH SMITH,5994,Newspapers books and periodicals,11.37,0.00,11.37
Children and Young Peoples Services,Head of Childrens Social Care,085331,New Lea Childrens Home,Supplies and Services,324117,Provisions E324,10-Jun-2022,000008285742854,Selecta U.K. Limited,5499,Catering costs - provisions,1.90,0.00,1.90
Children and Young Peoples Services,Head of Childrens Social Care,085331,New Lea Childrens Home,Supplies and Services,324117,Provisions E324,10-Jun-2022,000008285742858,Selecta U.K. Limited,5499,Catering costs - provisions,1.10,0.00,1.10
Children and Young Peoples Services,Head of Childrens Social Care,085331,New Lea Childrens Home,Supplies and Services,324117,Provisions E324,10-Jun-2022,000008285742860,Selecta U.K. Limited,5499,Catering costs - provisions,1.10,0.00,1.10
Children and Young Peoples Services,Head of Childrens Social Care,085331,New Lea Childrens Home,Supplies and Services,324117,Provisions E324,10-Jun-2022,000008285742864,Selecta U.K. Limited,5499,Catering costs - provisions,1.70,0.00,1.70
Children and Young Peoples Services,Head of Childrens Social Care,085331,New Lea Childrens Home,Transport,235057,Public Transport,10-Jun-2022,000008285742866,LNE RAIL CATERING,4112,Staff travelling,11.45,0.00,11.45
Neighbourhoods and Climate Change,Environmental Services,011060,C&G - Hardwick Park Catering,Supplies and Services,304083,Equipment and Materials,10-Jun-2022,000008285742932,WWW.PATTERSONS.CO.UK,5251,Catering equipment,88.70,0.00,88.70
Children and Young Peoples Services,Head of Early Help Inclusion & Vulnerable Children.,085957,Secure Management,Supplies and Services,304403,Equipment and Materials,10-Jun-2022,000008285743072,AMZNMktplace,5999,Other consumables,45.97,7.66,38.31
Children and Young Peoples Services,Head of Early Help Inclusion & Vulnerable Children.,085965,Barnard,Transfer Payments,515002,Social Services Clients,10-Jun-2022,000008285743150,AMZNMktplace,5999,Pocket money,9.25,1.54,7.71
Children and Young Peoples Services,Head of Early Help Inclusion & Vulnerable Children.,085965,Barnard,Transfer Payments,515002,Social Services Clients,10-Jun-2022,000008285743154,AMZNMktplace,5999,Pocket money,4.62,0.77,3.85
Children and Young Peoples Services,Head of Early Help Inclusion & Vulnerable Children.,085965,Barnard,Supplies and Services,324117,Provisions E324,10-Jun-2022,000008285743156,TESCO STORES 6329,5411,Catering costs - provisions,119.18,0.00,119.18
Neighbourhoods and Climate Change,Environmental Services,010919,C&G - Countryside Site Management,Supplies and Services,304221,Equipment and Materials,10-Jun-2022,000008285743198,SCREWFIX DIR LTD,5211,Direct materials,9.89,1.65,8.24
Neighbourhoods and Climate Change,Environmental Services,010919,C&G - Countryside Site Management,Supplies and Services,304221,Equipment and Materials,10-Jun-2022,000008285743204,WWW.SCREWFIX.COM,5211,Direct materials,16.63,2.77,13.86
Resources BK0010,HR & Employee Services,010984,Training and Development,Employees,040149,Recruitment Instruction and Training,10-Jun-2022,000008285743252,PAYPAL NPORS LTD,8699,Training-all costs,120.00,20.00,100.00
Children and Young Peoples Services,Head of Childrens Social Care,085352,New Childrens Home (previously Tow Law),Supplies and Services,348037,Subsistence E348,10-Jun-2022,000008285743394,COSTA COFFEE 43038640,5814,Subsistence,16.15,0.00,16.15
Dedicated Schools Grant BG0015,DSG Schools Block,418517,Belmont Community School 004185 - Pupil Premium,Supplies and Services,364301,Grants to Voluntary Organisations,10-Jun-2022,000008285743436,ARGOS LTD,5310,Hardship,210.00,35.00,175.00
Regeneration Economy and Growth,Development and Housing,030554,International Relations 030554,Transport,235057,Public Transport,10-Jun-2022,000008285743448,WALKERGATE CAR PAR,7523,Staff travelling,2.00,0.00,2.00
Children and Young Peoples Services,Head of Early Help Inclusion & Vulnerable Children.,071441,Bishop Auckland One Point Hub,Supplies and Services,304259,Equipment and Materials,10-Jun-2022,000008285743470,AMZNMktplace,5999,Equipment-purchase and rental,20.76,3.48,17.28
Children and Young Peoples Services,Head of Childrens Social Care,085364,Children Looked After Team 1,Supplies and Services,340001,Postages E340,10-Jun-2022,000008285743472,POST OFFICE COUNTER,9402,Postages,4.90,0.00,4.90
Children and Young Peoples Services,Head of Childrens Social Care,085366,Children Looked After Team 3,Supplies and Services,384302,Miscellaneous Expenses,10-Jun-2022,000008285743478,GEN REGISTER OFFICE,9399,Activity expenses,11.00,0.00,11.00
Regeneration Economy and Growth,Business Durham CL0850,030672,Operations Team,Supplies and Services,352001,Conference Expenses,10-Jun-2022,000008285743520,RAMSIDE HALL HOTEL,7011,Conferencesseminars fees etc,122.80,0.00,122.80
Children and Young Peoples Services,Head of Childrens Social Care,085351,Framwellgate Moor CU,Transport,235057,Public Transport,10-Jun-2022,000008285743530,WWW.SMARTPARKING.COM,7523,Staff travelling,50.00,0.00,50.00
Regeneration Economy and Growth,Business Durham CL0850,030717,Business Services,Supplies and Services,304403,Equipment and Materials,10-Jun-2022,000008285743540,AMZNMktplace,5999,Other consumables,13.69,0.00,13.69
Regeneration Economy and Growth,Business Durham CL0850,030717,Business Services,Supplies and Services,304403,Equipment and Materials,10-Jun-2022,000008285743544,AMZNMktplace,5999,Other consumables,28.75,4.79,23.96
Adult and Health Services,Head of Adults,055301,Stanley Pathways,Supplies and Services,324117,Provisions E324,10-Jun-2022,000008285743580,ASDA SUPERSTORE,5411,Catering costs - provisions,17.50,0.00,17.50
Children and Young Peoples Services,Head of Early Help Inclusion & Vulnerable Children.,085801,CDYJS - Support,Supplies and Services,384237,Miscellaneous Expenses,10-Jun-2022,000008285743712,JUMP 360 NEWCASTLE ONL,7999,Recreational exps outings parties,31.00,0.00,31.00
Children and Young Peoples Services,Head of Childrens Social Care,085363,Childrens Permanence Team,Supplies and Services,338045,Services,10-Jun-2022,000008285743738,LANCASHIRE CC WEBSITE,8299,Legal expenses 338045,22.00,0.00,22.00
Children and Young Peoples Services,Head of Childrens Social Care,085363,Childrens Permanence Team,Supplies and Services,338045,Services,10-Jun-2022,000008285743746,Durham County CNCL,9399,Legal expenses 338045,44.00,0.00,44.00
Neighbourhoods and Climate Change,Community Protection,010809,Community Protection Management,Supplies and Services,338048,Services,10-Jun-2022,000008285744028,HMCTS DURHAM012,9222,Court costs 338048,226.00,0.00,226.00
Neighbourhoods and Climate Change,Environmental Services,010367,C&G - South Grounds Maintenance,Supplies and Services,304999,Equipment and Materials,10-Jun-2022,000008285744032,GRALANDS WOODWORK SUPP,5251,Misc equipment tools and materials,35.92,0.00,35.92
Neighbourhoods and Climate Change,Environmental Services,010367,C&G - South Grounds Maintenance,Supplies and Services,304403,Equipment and Materials,10-Jun-2022,000008285744036,TIMPSON LTD,5999,Other consumables,12.00,0.00,12.00
Children and Young Peoples Services,Head of Education and Skills,071802,Louisa Cent Nursery,Supplies and Services,324117,Provisions E324,10-Jun-2022,000008285744134,ASDA GROCERIES ONLINE,5411,Catering costs - provisions,220.03,0.00,220.03
Children and Young Peoples Services,Head of Education and Skills,071802,Louisa Cent Nursery,Supplies and Services,324117,Provisions E324,10-Jun-2022,000008285744140,ASDA GROCERIES ONLINE,5411,Catering costs - provisions,-1.04,0.00,-1.04
Children and Young Peoples Services,Head of Childrens Social Care,085332,Middlestone Moor CU,Supplies and Services,304403,Equipment and Materials,10-Jun-2022,000008285744320,AMZNMKTPLACE AMAZON.CO,5999,Other consumables,9.34,1.56,7.78
Children and Young Peoples Services,Head of Childrens Social Care,085332,Middlestone Moor CU,Supplies and Services,328041,Clothing uniforms and laundry E328,10-Jun-2022,000008285744324,WRIGHTS STEMS,5992,Clothing uniforms and laundry,42.50,0.00,42.50
Children and Young Peoples Services,Head of Childrens Social Care,085332,Middlestone Moor CU,Supplies and Services,324117,Provisions E324,10-Jun-2022,000008285744338,PPOINT_ WASHINGTON VIL,5411,Catering costs - provisions,7.39,0.00,7.39
Children and Young Peoples Services,Head of Childrens Social Care,085332,Middlestone Moor CU,Supplies and Services,348037,Subsistence E348,10-Jun-2022,000008285744350,MCDONALDS,5814,Subsistence,7.61,0.00,7.61
Children and Young Peoples Services,Head of Early Help Inclusion & Vulnerable Children.,085962,Aycliffe Secure - Durham,Supplies and Services,304403,Equipment and Materials,10-Jun-2022,000008285744354,AMZNMktplace,5999,Other consumables,19.69,3.28,16.41
Children and Young Peoples Services,Head of Early Help Inclusion & Vulnerable Children.,085962,Aycliffe Secure - Durham,Supplies and Services,304403,Equipment and Materials,10-Jun-2022,000008285744360,AMZNMktplace,5999,Other consumables,7.92,1.32,6.60
Children and Young Peoples Services,Head of Early Help Inclusion & Vulnerable Children.,085962,Aycliffe Secure - Durham,Supplies and Services,304403,Equipment and Materials,10-Jun-2022,000008285744364,AMZNMktplace,5999,Other consumables,15.60,2.60,13.00
Children and Young Peoples Services,Head of Early Help Inclusion & Vulnerable Children.,085962,Aycliffe Secure - Durham,Supplies and Services,332047,Printing Stationery and Gen Off Exps,10-Jun-2022,000008285744370,Vue Entertainment Ltd,7832,Stationery,13.98,0.00,13.98
Regeneration Economy and Growth,Culture Sport and Tourism,054233,Bishop Auckland Town Hall Library,Supplies and Services,324117,Provisions E324,10-Jun-2022,000008285744384,HERON FOODS,5411,Catering costs - provisions,1.02,0.17,0.85
Regeneration Economy and Growth,Culture Sport and Tourism,054233,Bishop Auckland Town Hall Library,Supplies and Services,324117,Provisions E324,10-Jun-2022,000008285744384 - 1,HERON FOODS,5411,Catering costs - provisions,22.14,,22.14
Children and Young Peoples Services,Head of Childrens Social Care,085331,New Lea Childrens Home,Transport,235057,Public Transport,10-Jun-2022,000008285744510,TT2 LTD,4784,Staff travelling,7.60,0.00,7.60
Adult and Health Services,Head of Adults,055310,Positive Journeys (Tudhoe),Supplies and Services,324117,Provisions E324,10-Jun-2022,000008285744632,ALDI 32 774,5411,Catering costs - provisions,7.96,0.00,7.96
Regeneration Economy and Growth,Development and Housing,031634,LOCAL LETTINGS AGENCY,Supplies and Services,304259,Equipment and Materials,10-Jun-2022,000008285744656,Durham County CNCL,9399,Equipment-purchase and rental,62.61,0.00,62.61
Neighbourhoods and Climate Change,Environmental Services,031200,North Pennines Core,Supplies and Services,344033,Telephones,10-Jun-2022,000008285744820,ZOOM.US 888-799-9666,4814,Telephones general-all costs,134.40,0.00,134.40
Children and Young Peoples Services,Head of Early Help Inclusion & Vulnerable Children.,088101,Bullion Lane & Brandon Family Centre,Supplies and Services,324117,Provisions E324,10-Jun-2022,000008285744862,ASDA GEORGE COM LEEDS,5411,Catering costs - provisions,219.10,36.52,182.58
Regeneration Economy and Growth,Development and Housing,030554,International Relations 030554,Supplies and Services,304259,Equipment and Materials,10-Jun-2022,000008285744918,LIVIN HOUSING,9399,Equipment-purchase and rental,95.62,0.00,95.62
Regeneration Economy and Growth,Corporate Property and Land,011275,Catering -Durham Leadership Centre,Supplies and Services,324117,Provisions E324,10-Jun-2022,000008285846852,FREEMAN CATERING BUTCH,5422,Catering costs - provisions,90.94,0.00,90.94
Regeneration Economy and Growth,Corporate Property and Land,011296,Catering - Crimdon Dene Hub,Supplies and Services,324117,Provisions E324,10-Jun-2022,000008285846854,JR HOLLAND FOODSERVICE,5499,Catering costs - provisions,117.77,0.00,117.77
Regeneration Economy and Growth,Corporate Property and Land,030691,Catering - Durham Dales Centre,Supplies and Services,324117,Provisions E324,10-Jun-2022,000008285846856,FREEMAN CATERING BUTCH,5422,Catering costs - provisions,109.73,0.00,109.73
Regeneration Economy and Growth,Corporate Property and Land,030691,Catering - Durham Dales Centre,Supplies and Services,324117,Provisions E324,10-Jun-2022,000008285846858,JR HOLLAND FOODSERVICE,5499,Catering costs - provisions,148.33,0.00,148.33
Regeneration Economy and Growth,Corporate Property and Land,030691,Catering - Durham Dales Centre,Supplies and Services,324117,Provisions E324,10-Jun-2022,000008285846860,JR HOLLAND FOODSERVICE,5499,Catering costs - provisions,31.96,0.00,31.96
Regeneration Economy and Growth,Culture Sport and Tourism,054235,Bishop Auckland Town Hall Cafe,Supplies and Services,324117,Provisions E324,10-Jun-2022,000008285846862,JR HOLLAND FOODSERVICE,5499,Catering costs - provisions,27.90,0.00,27.90
Regeneration Economy and Growth,Culture Sport and Tourism,054235,Bishop Auckland Town Hall Cafe,Supplies and Services,324117,Provisions E324,10-Jun-2022,000008285846864,JR HOLLAND FOODSERVICE,5499,Catering costs - provisions,-29.89,0.00,-29.89
Adult and Health Services,Head of Adults,055643,Hawthorn House LD Respite Unit,Supplies and Services,324117,Provisions E324,10-Jun-2022,000008285846866,FREEMAN CATERING BUTCH,5422,Catering costs - provisions,43.90,0.00,43.90
Adult and Health Services,Head of Adults,055643,Hawthorn House LD Respite Unit,Supplies and Services,324117,Provisions E324,10-Jun-2022,000008285846868,FREEMAN CATERING BUTCH,5422,Catering costs - provisions,26.83,0.00,26.83
Adult and Health Services,Head of Adults,055643,Hawthorn House LD Respite Unit,Supplies and Services,324117,Provisions E324,10-Jun-2022,000008285846870,FREEMAN CATERING BUTCH,5422,Catering costs - provisions,24.73,0.00,24.73
Adult and Health Services,Head of Adults,055643,Hawthorn House LD Respite Unit,Supplies and Services,324117,Provisions E324,10-Jun-2022,000008285846872,JR HOLLAND FOODSERVICE,5499,Catering costs - provisions,24.84,0.00,24.84
Adult and Health Services,Head of Adults,055643,Hawthorn House LD Respite Unit,Supplies and Services,324117,Provisions E324,10-Jun-2022,000008285846874,JR HOLLAND FOODSERVICE,5499,Catering costs - provisions,26.30,0.00,26.30
Adult and Health Services,Head of Adults,055643,Hawthorn House LD Respite Unit,Supplies and Services,324117,Provisions E324,10-Jun-2022,000008285846876,JR HOLLAND FOODSERVICE,5499,Catering costs - provisions,5.18,0.00,5.18
Neighbourhoods and Climate Change,Environmental Services,011060,C&G - Hardwick Park Catering,Supplies and Services,324117,Provisions E324,10-Jun-2022,000008285846884,FREEMAN CATERING BUTCH,5422,Catering costs - provisions,88.24,0.00,88.24
Neighbourhoods and Climate Change,Environmental Services,011060,C&G - Hardwick Park Catering,Supplies and Services,324117,Provisions E324,10-Jun-2022,000008285846886,FREEMAN CATERING BUTCH,5422,Catering costs - provisions,67.12,0.00,67.12
Neighbourhoods and Climate Change,Environmental Services,011060,C&G - Hardwick Park Catering,Supplies and Services,324117,Provisions E324,10-Jun-2022,000008285846888,FREEMAN CATERING BUTCH,5422,Catering costs - provisions,15.40,0.00,15.40
Neighbourhoods and Climate Change,Environmental Services,011060,C&G - Hardwick Park Catering,Supplies and Services,324117,Provisions E324,10-Jun-2022,000008285846890,FREEMAN CATERING BUTCH,5422,Catering costs - provisions,57.44,0.00,57.44
Neighbourhoods and Climate Change,Environmental Services,011060,C&G - Hardwick Park Catering,Supplies and Services,324117,Provisions E324,10-Jun-2022,000008285846892,JR HOLLAND FOODSERVICE,5499,Catering costs - provisions,220.15,0.00,220.15
Regeneration Economy and Growth,Corporate Property and Land,021234,Catering - Locomotion,Supplies and Services,324117,Provisions E324,10-Jun-2022,000008285846894,FREEMAN CATERING BUTCH,5422,Catering costs - provisions,57.03,0.00,57.03
Regeneration Economy and Growth,Corporate Property and Land,021234,Catering - Locomotion,Supplies and Services,324117,Provisions E324,10-Jun-2022,000008285846896,FREEMAN CATERING BUTCH,5422,Catering costs - provisions,28.32,0.00,28.32
Regeneration Economy and Growth,Culture Sport and Tourism,011263,Louisa Centre 011263,Supplies and Services,324117,Provisions E324,10-Jun-2022,000008285846900,JR HOLLAND FOODSERVICE,5499,Catering costs - provisions,64.54,0.00,64.54
Regeneration Economy and Growth,Culture Sport and Tourism,054812,Gala Theatre - Catering etc,Supplies and Services,324117,Provisions E324,10-Jun-2022,000008285846902,FREEMAN CATERING BUTCH,5422,Catering costs - provisions,19.16,0.00,19.16
Regeneration Economy and Growth,Culture Sport and Tourism,054812,Gala Theatre - Catering etc,Supplies and Services,324117,Provisions E324,10-Jun-2022,000008285846904,JR HOLLAND FOODSERVICE,5499,Catering costs - provisions,31.48,0.00,31.48
Regeneration Economy and Growth,Corporate Property and Land,021324,Catering - Meadowfield,Supplies and Services,324117,Provisions E324,10-Jun-2022,000008285846906,FREEMAN CATERING BUTCH,5422,Catering costs - provisions,68.77,0.00,68.77
Children and Young Peoples Services,Head of Early Help Inclusion & Vulnerable Children.,088103,Stanley & Moorside Family Centre,Supplies and Services,384302,Miscellaneous Expenses,11-Jun-2022,000008285741876,AMZNMktplace,5999,Activity expenses,12.99,2.17,10.82
Children and Young Peoples Services,Head of Childrens Social Care,085342,16 Hickstead Rise (previously 9 Cedar Ave),Transport,215995,Running Costs of Vehicles,11-Jun-2022,000008285742268,WOODHAM SERVICES,5541,Vehicle running expenses,40.01,0.00,40.01
Children and Young Peoples Services,Head of Childrens Social Care,085342,16 Hickstead Rise (previously 9 Cedar Ave),Supplies and Services,324117,Provisions E324,11-Jun-2022,000008285742274,TESCO STORES 2916,5411,Catering costs - provisions,23.35,0.00,23.35
Children and Young Peoples Services,Head of Childrens Social Care,085334,West Rainton Satelite Home,Supplies and Services,348037,Subsistence E348,11-Jun-2022,000008285742312,W2 WORLD BUFFET,5812,Subsistence,57.20,0.00,57.20
Children and Young Peoples Services,Head of Childrens Social Care,085347,Solo Home The Manse,Supplies and Services,324117,Provisions E324,11-Jun-2022,000008285742632,PPOINT_ COSTCUTTER 108,5499,Catering costs - provisions,4.39,0.00,4.39
Children and Young Peoples Services,Head of Childrens Social Care,085331,New Lea Childrens Home,Supplies and Services,348037,Subsistence E348,11-Jun-2022,000008285742870,STROOD STATION KIOSK,5814,Subsistence,5.50,0.00,5.50
Children and Young Peoples Services,Head of Childrens Social Care,085331,New Lea Childrens Home,Transport,235057,Public Transport,11-Jun-2022,000008285742872,STRATFORD SST,4112,Staff travelling,21.60,0.00,21.60
Children and Young Peoples Services,Head of Childrens Social Care,085331,New Lea Childrens Home,Supplies and Services,348037,Subsistence E348,11-Jun-2022,000008285742874,LOBOS MEAT AND TAPAS -,5812,Subsistence,71.97,0.00,71.97
Children and Young Peoples Services,Head of Childrens Social Care,085331,New Lea Childrens Home,Supplies and Services,352001,Conference Expenses,11-Jun-2022,000008285742878,BRITANNIA INTERNAT,7011,Conferencesseminars fees etc,298.00,0.00,298.00
Children and Young Peoples Services,Head of Childrens Social Care,085331,New Lea Childrens Home,Supplies and Services,352001,Conference Expenses,11-Jun-2022,000008285742882,BRITANNIA INTERNAT,7011,Conferencesseminars fees etc,25.05,0.00,25.05
Children and Young Peoples Services,Head of Childrens Social Care,085331,New Lea Childrens Home,Supplies and Services,324117,Provisions E324,11-Jun-2022,000008285742888,TESCO METRO 2239,5411,Catering costs - provisions,3.84,0.00,3.84
Children and Young Peoples Services,Head of Childrens Social Care,085331,New Lea Childrens Home,Supplies and Services,304259,Equipment and Materials,11-Jun-2022,000008285742894,CURRYS STRATFORD,5732,Equipment-purchase and rental,14.99,0.00,14.99
Children and Young Peoples Services,Head of Childrens Social Care,085331,New Lea Childrens Home,Supplies and Services,348037,Subsistence E348,11-Jun-2022,000008285742898,Hutong,5812,Subsistence,10.22,0.00,10.22
Children and Young Peoples Services,Head of Childrens Social Care,085331,New Lea Childrens Home,Supplies and Services,304403,Equipment and Materials,11-Jun-2022,000008285742900,Sam Souvenirs,5947,Other consumables,19.98,0.00,19.98
Children and Young Peoples Services,Head of Education and Skills,071732,Dean Bank Childcare,Supplies and Services,324117,Provisions E324,11-Jun-2022,000008285742920,SAINSBURYS S/MKTS,5411,Catering costs - provisions,85.34,0.00,85.34
Children and Young Peoples Services,Head of Childrens Social Care,085341,High Etherley Satelite Home,Supplies and Services,348037,Subsistence E348,11-Jun-2022,000008285742940,EposNow,5812,Subsistence,3.00,0.00,3.00
Children and Young Peoples Services,Head of Childrens Social Care,085341,High Etherley Satelite Home,Supplies and Services,348037,Subsistence E348,11-Jun-2022,000008285742946,EposNow,5812,Subsistence,3.40,0.00,3.40
Children and Young Peoples Services,Head of Childrens Social Care,085341,High Etherley Satelite Home,Employees,040149,Recruitment Instruction and Training,11-Jun-2022,000008285742950,SCOPE,8398,Training-all costs,3.00,0.00,3.00
Children and Young Peoples Services,Head of Childrens Social Care,085341,High Etherley Satelite Home,Employees,040149,Recruitment Instruction and Training,11-Jun-2022,000008285742952,SCOPE,8398,Training-all costs,4.00,0.00,4.00
Children and Young Peoples Services,Head of Childrens Social Care,085341,High Etherley Satelite Home,Supplies and Services,324117,Provisions E324,11-Jun-2022,000008285742954,ASDA SUPERSTORE,5411,Catering costs - provisions,47.46,0.00,47.46
Children and Young Peoples Services,Head of Childrens Social Care,085333,Coxhoe Satelite Home,Supplies and Services,312009,Newspapers books and periodicals E312,11-Jun-2022,000008285743006,FIRST NEWS,5994,Newspapers books and periodicals,99.99,0.00,99.99
Children and Young Peoples Services,Head of Early Help Inclusion & Vulnerable Children.,085962,Aycliffe Secure - Durham,Supplies and Services,324117,Provisions E324,11-Jun-2022,000008285743016,TESCO STORES 2916,5411,Catering costs - provisions,69.30,0.00,69.30
Children and Young Peoples Services,Head of Early Help Inclusion & Vulnerable Children.,085957,Secure Management,Supplies and Services,384999,Miscellaneous Expenses,11-Jun-2022,000008285743082,Amazon.co.uk 2C8ME6X44,5969,Other expenses,25.30,0.00,25.30
